{"text_format":"1","workbook":"xlsx","n_sheets":15,"sheets":["NAVODILA","VNOS PODATKOV","6 NZO LIST 1","6 NZO LIST 2","6 NZO LIST 3","8A POGOJI VLOGA","9A MNENJA VLOGA","11B - GD NZO ZAHTEVA","12 GD SPREM","13B GRADNJA","9B MNENJA VLOGA DMO","16A DOPOL VLOGE","16B DOPOL PODALJ","BAZA PODATKOV","MNENJEDAJALCI"],"not_rendered":{"charts":0,"images":37,"macros":1,"external_links":0,"defined_names":20,"comments":0,"pivot_tables":0},"unopened":[],"bounds":{"document_bytes":16777216,"sheet_cells":100000,"rows_first":2000,"rows_last":500,"rows_between":2000,"halvings":0,"cell_chars":16384,"cell_head_chars":4096},"cells_cut":0,"cells_raw":0,"read":"whole","date_system":"1900"}

{"sheet":"NAVODILA","index":0,"n_rows":52,"n_cols":1,"rows_kept":52,"cut":false,"hidden":false,"merged":[]}
[]
["NAVODILA"]
[]
["Aplikacija za pripravo obrazcev v zvezi z graditvijo objektov je pripomoček za pripravo dokumentacije in zahtevkov, izdelan v skladu s Pravilnikom o projektni in drugi dokumentaciji ter obrazcih pri graditvi objektov (Uradni list RS, št. 30/23). Nova verzija obrazcev glede na prejšnjo uvaja nekaj sprememb, opisanih v nadaljevanju. "]
[]
["Za pravilno delovanje navigacijskih in drugih ukaznih gumbov je potrebno ob odpiranju dokumenta omogočiti uporabo makrov. Uporaba makrov je vezana izključno na delovanje navigacijskih gumbov in na avtomatično generiranje vlog za mnenjedajalce na obrazcih 8 in 9. Vse osnovne funkcionalnosti, torej vnos in izpis podatkov, delujejo tudi brez delovanja makrov. Namesto z uporabo navigacijskih gumbov lahko posamezne liste izbirate v spodnji vrstici aplikacije, za tiskanje in pripravo pdf dokumentov pa uporabite ustrezne ukaze iz menija. Polja z nazivi in naslovi na vlogah za mnenjedajalce na obrazcih 8 in 9 v tem primeru izpolnite ročno. "]
[]
["DATOTEKE"]
[]
["Priloge so razdeljene v več datotek. Vsaka izmed datotek je pripravljena za posamezno skupino uporabnikov (projektanti, izvajalci, mnenjedajalci, upravni organ) tako, da vključuje vse faze posameznega postopka. Sklop za projektante je dodatno razdeljen glede na zahtevnost nameravane gradnje. \nSeznam datotek:\n- projektanti - obrazci za zahtevne in manj zahtevne objekte\n- projektanti - obrazci za nezahtevne objekte\n- projektanti - obrazci za spremembo namembnosti\n- projektanti - manjša rekonstrukcija\n- projektanti - legalizacije\n- projektanti - začasni objekti\n- izvajalci - DZO\n- mnenjedajalci - projektni pogoji in mnenja\n- upravni organ - odločbe\n\nV nadaljevanju so opisana navodila za uporabo obrazcev projektanti - nezahtevni objekti."]
[]
["ZAŠČITA PODATKOV"]
[]
["Vsi listi v datoteki so odklenjeni. Kljub temu priporočamo, da liste zaklenete tako, da na zavihku Pregled na traku v skupini Spremembe izberete Zaščiti list. Namen te osnovne zaščite je preprečiti nenamerno spreminjanje že izpolnjenih polj. \n\nOPOZORILO:\nPodatke lahko vnašate le v rumeno obarvana okenca, vrstice pa lahko dodajate le tam, kjer je to izrecno navedeno, sicer se podatki morda ne bodo prenesli pravilno!"]
[]
["KAZALO VSEBINE"]
[]
["List za vnos podatkov ima v zgornjem delu kazalo celotne vsebine. Vsebina je razporejena v tabelo po fazah upravnega postopka. Naslovi delujejo kot povezave na posamezne liste."]
[]
["VNAŠANJE PODATKOV"]
[]
["V novi verziji obrazcev se na listu za vnos podatkov vnašajo le tisti podatki, ki imajo vedno samo eno vrednost. Podatki, ki imajo lahko poljubno mnogo vrednosti, kot na primer navajanje zemljiških parcel, pa se vnašajo neposredno v obrazce. "]
[]
["Polja za vnos podatkov so smiselno razdeljena na posamezna poglavja. Nekatere vsebine vnašamo s pomočjo spustnih menijev, pri nekaterih vsebinah pa je potrebno označiti izbiro. Pod posameznimi naslovi so opombe z dodatnimi navodili za izpolnjevanje, stolpec A pa je odklenjen in je namenjen internim opombam uporabnika."]
[]
["OBRAZCI ZA ZAHTEVKE"]
[]
["Obrazci z vlogami oziroma zahtevki imajo poleg vsebin, ki se prenašajo avtomatično, tudi vsebine, ki so specifične za posamezen zahtevek. Te vsebine je potrebno izpolniti na vsaki posamezni vlogi."]
[]
["PRILAGAJANJE VIŠINE VRSTIC"]
[]
["Različne verzije programa na različne načine prikazujejo višino in širino celic, zato se lahko zgodi, da vsebina posameznih polj ni v celoti vidna. V tem primeru lahko višino celice spremenite tako, da v meniju Osnovno v skupini Poravnava izberete Prelomi besedilo, oziroma ročno spremenite višino vrstice tako, da najprej izberite celotno vrstico v stolpcu z oznakami vrstic (sivi stolpec s številkami vrstic na skrajni levi strani), na zavihku Osnovno v skupini Celice kliknite Oblika, nato pa v razdelku Velikost celice kliknite Samodejno prilagodi višino vrstice oziroma vpišete željeno višino vrstice. Enako velja za prilagajanje širine stolpcev."]
[]
["TISKANJE IN SHRANJEVANJE"]
[]
["Po končanem vnosu podatkov, potrebnih za izpolnjevanje določenega obrazca, lahko obrazec natisnete ali pa shranite kot .pdf dokument. Za tiskanje in pripravo .pdf dokumentov lahko uporabite ukazne gumbe ali pa izberete ustrezen ukaz v meniju. V skladu s pravilnikom mora biti vloga zapisana v formatu PDF/A-2b."]
[]
["TISKANJE IN SHRANJEVANJE ZAHTEVKOV ZA POGOJE IN MNENJA"]
[]
["Če želite lahko uporabite avtomatizirano pripravo zahtevkov za pogoje in mnenja, ki bodo vsebovali različne nazive, naslove in druge specifične podatke za vse navedene mnenjedajalce. To storite z izbiro gumba \"shrani vse zahtevke\". Zahtevki bodo shranjeni v mapi, v kateri se nahaja izvorna datoteka. Na enak način lahko natisnete vse zahtevke z izbiro gumba \"natisni vse zahtevke\". Zahtevke za pogoje in mnenja pa lahko pripravite tudi tako, da nazive, naslove in druge specifične podatke izpolnite ročno. Polja, ki jih je v tem primeru potrebno izpolniti ročno, so obarvana svetlo rumeno."]
[]
["PODPISOVANJE VLOG"]
[]
["Vloga se lahko v skladu z ZUP (63. člen) vloži v pisni obliki. Pisna vloga je vloga, ki je napisana ali natisnjena in lastnoročno podpisana (vloga v fizični obliki), ali vloga, ki je v elektronski obliki in je podpisana z varnim elektronskim podpisom s kvalificiranim potrdilom. Pisna vloga se praviloma izroči neposredno organu, pošlje po pošti, po elektronski poti ali preko osebe, ki opravlja posredovanje vlog kot svojo dejavnost (poslovni ponudnik). Vloga v elektronski obliki se vloži tako, da se pošlje po elektronski poti informacijskemu sistemu organa ali enotnemu informacijskemu sistemu za sprejem vlog.\n\nVlogo digitalno podpišete tako, da zahtevek shranite v obliki pdf, nato pa v pregledovalniku pdf datotek izberete ukaz vstavi digitalni podpis, za kar potrebujete kvalificirano potrdilo (npr. SIGEN-CA, ACNLB). Več o podpisovanju pdf datotek s certifikatom najdete na spodnji povezavi."]
["https://helpx.adobe.com/acrobat/using/certificate-based-signatures.html"]
[]
["POPRAVKI V VERZIJI 3.1"]
[]
["- odklenjeni vsi obrazci,\n- popravljeno avtomatično generiranje prilog (8A Pogoji vloga in 9A Mnenja vloga."]
[]
[]
["NADALJUJ NA VNOS PODATKOV"]

{"sheet":"VNOS PODATKOV","index":1,"n_rows":219,"n_cols":16,"rows_kept":219,"cut":false,"hidden":false,"merged":[[101,2,101,3],[110,2,110,4],[16,2,16,3],[53,2,53,3]]}
[null,null,"VSEBINA DATOTEKE:"]
[null,null,"NEZAHTEVNI OBJEKTI"]
[null,null,"OBARVANA POLJA DELUJEJO KOT POVEZAVE NA POSAMEZNE LISTE"]
[null,null,"PRIDOBIVANJE PROJEKTNIH POGOJEV","PRIDOBIVANJE MNENJ","PRIDOBIVANJE GRADBENEGA DOVOLJENJA","SPREMEMBA GRADBENEGA DOVOLJENJA","DOPUSTNA MANJŠA ODSTOPANJA","PRIJAVA ZAČETKA GRADNJE","DOPOLNITEV VLOGE","PODALJŠANJE ROKA ZA DOPOLNITEV"]
[null,null,"ZAHTEVKI"]
[null,null,"8A - POGOJI","9A - MNENJA","11B - GRADBENO DOVOLJENJE","12 - SPREMEMBA GRADBENEGA DOVOLJENJA","9A - MNENJE GLEDE DOPUSTNIH MANJŠIH ODSTOPANJ","13B - PRIJAVA ZAČETKA GRADNJE","16A - DOPOLNITEV VLOGE","16B - ZAHTEVA ZA PODALJŠANJE ROKA ZA DOPOLNITEV"]
[null,null,null,null,"MNENJA","MNENJA"]
[]
[]
[null,null,"PROJEKTNA DOKUMENTACIJA"]
[null,null,"DNZO","DNZO","DNZO","DNZO"]
[null,null,"ZBIRNI PRIKAZ","ZBIRNI PRIKAZ","ZBIRNI PRIKAZ","ZBIRNI PRIKAZ"]
[null,null,"6 - DNZO LIST 1","6 - DNZO LIST 1","6 - DNZO LIST 1","6 - DNZO LIST 1"]
[null,null,"6 - DNZO LIST 2","6 - DNZO LIST 2","6 - DNZO LIST 2","6 - DNZO LIST 2"]
[null,null,"6 - DNZO LIST 3","6 - DNZO LIST 3","6 - DNZO LIST 3","6 - DNZO LIST 3"]
[]
["PROSTOR ZA OPOMBE ",null,"VNOS PODATKOV"]
[]
[null,"A","UDELEŽENCI PRI GRADITVI"]
[null,"A1","POOBLAŠČENEC"]
[null,null,"INVESTITOR"]
[null,"A1.1","INVESTITOR"]
[null,null,"INVESTITOR 1"]
[null,null,"ime in priimek ali naziv družbe"]
[null,null,"naslov ali sedež družbe"]
[null,null,"davčna številka"]
[null,null,"INVESTITOR 2"]
[null,null,"ime in priimek ali naziv družbe"]
[null,null,"naslov ali sedež družbe"]
[null,null,"davčna številka"]
[null,null,"INVESTITOR 3"]
[null,null,"ime in priimek ali naziv družbe"]
[null,null,"naslov ali sedež družbe"]
[null,null,"davčna številka"]
[null,"A1.2","KONTAKTNA OSEBA"]
[null,null,"ime in priimek"]
[null,null,"telefonska številka"]
[null,null,"elektronski naslov"]
[null,"A1.3","POOBLAŠČENEC"]
[null,null,"podatki se vpišejo, kadar je imenovan pooblaščenec"]
[null,null,"Investitor imenuje pooblaščenca",false]
[null,null,"ime in priimek ali naziv družbe"]
[null,null,"naslov ali sedež družbe"]
[null,null,"kontaktna oseba"]
[null,null,"telefonska številka"]
[null,null,"elektronski naslov"]
[null,"A2","PROJEKTANT"]
[null,"A2.1","PROJEKTANT "]
[null,null,"PODATKI O DRUŽBI"]
[null,null,"projektant (naziv družbe)"]
[null,null,"naslov"]
[null,"A3","NADZORNIK"]
[null,"A3.1","NADZORNIK"]
[null,null,"imenovanje nadzornika ni obvezno v primeru gradnje nezahtevnega objekta, če jo izvaja izvajalec, ki izpolnjuje pogoje za opravljanje dejavnosti gradbeništva (16. člen GZ-1)"]
[null,null,"imenovan je nadzornik gradnje",false]
[null,null,"PODATKI O DRUŽBI"]
[null,null,"naziv družbe"]
[null,null,"sedež družbe"]
[null,null,"davčna številka za pravne subjekte"]
[null,null,"odgovorna oseba nadzornika"]
[null,null,"VODJA NADZORA"]
[null,null,"vodja nadzora"]
[null,null,"strokovna izobrazba"]
[null,null,"identifikacijska številka"]
[null,"B","PODATKI O DOKUMENTACIJI"]
[null,null,"podatki se vpišejo, če dokumentacijo izdela projektant"]
[null,"B1","PROJEKTNA DOKUMENTACIJA"]
[null,null,"vrsta projektne dokumentacije","DNZO (dokumentacija za pridobitev gradbenega dovoljenja za nezahtevne objekte)"]
[null,null,"številka projekta"]
[null,null,"datum izdelave"]
[null,"C","PODATKI O GRADNJI"]
[null,"C1","OSNOVNI PODATKI"]
[null,"C1.1","OPIS GRADNJE"]
[null,null,"naziv gradnje"]
[null,null,"naziv gradnje se določi po namenu glavnega objekta"]
[null,null,"kratek opis gradnje"]
[null,null,"navedba objektov in njihovih značilnosti"]
[null,"C1.3","VEČJA ODSTOPANJA"]
[null,null,"izpolniti, če gre za spremembo gradbenega dovoljenja"]
[null,null,"kratek opis spremembe zaradi večjih odstopanj od gradbenega dovoljenja"]
[null,"C2","VRSTE GRADNJE"]
[null,"C2.1","VRSTE GRADNJE"]
[null,null,"označiti vse ustrezne vrste gradnje"]
[null,null,"NOVOGRADNJA - NOVOZGRAJEN OBJEKT",false]
[null,null,"NOVOGRADNJA - PRIZIDAVA",false]
[null,null,"REKONSTRUKCIJA",false]
[null,null,"SPREMEMBA NAMEMBNOSTI",false]
[null,null,"LEGALIZACIJA",false]
[null,"C3","POSEBNI PRIMERI"]
[null,"C3.2","POROČILO O VPLIVIH NA OKOLJE (PVO)"]
[null,null,"podatki se vpišejo, kadar gre za objekt z vplivi na okolje"]
[null,null,"objekt z vplivi na okolje",false]
[null,null,"številka poročila"]
[null,null,"datum izdelave poročila"]
[null,null,"izdelovalec poročila"]
[null,"C3.3","PREDHODNA PRESOJA VPLIVOV NA OKOLJE"]
[null,null,"podatki se vpišejo, če gre za objekt z vplivi na okolje in če je bil izveden predhodni postopek v skladu z zakonom, ki ureja varstvo okolja"]
[null,null,"predhodna presoja vplivov na okolje",false]
[null,null,"številka sklepa"]
[null,null,"datum sklepa"]
[null,"C3.7","DOVOLJENJA ZA OBSTOJEČI OBJEKT"]
[null,null,"podatek se vpiše, če se gradnja nanaša na obstoječ objekt (rekonstrukcija, odstranitev, sprememba namembnosti, novogradnja - prizidava)"]
[null,null,"naslov stavbe, če je določen"]
[null,null,"številka stavbe"]
[null,null,"številka posameznega dela stavbe"]
[null,null,"objekt, zgrajen pred 31. 12. 1967",false]
[null,null,"navedba upravnega organa, ki je izdal odločbo"]
[null,null,"številka GD ali odločbe o legalizaciji ali odločbe o objektu daljšega obstoja"]
[null,null,"datum odločbe"]
[null,"E","POGOJI IN MNENJA"]
[null,null,"Izpolniti v IZP in DGD, če je za poseg relevantno. V stolpcu B odkljukajte pridobljene pogoje oziroma mnenja, nato pa v stolpec E vpišite oziroma izberite mnenjedajalca. V nekaterih primerih se bo stolpec F z naslovom mnenjedajalca izpolnil avtomatično, sicer pa ga navedite sami. V stolpec G in H navedite podatke o pridobljenih pogojih, v stolpec I in J pa o pridobljenih mnenjih."]
[null,"E1.1","SKLADNOST S PROSTORSKIMI AKTI"]
[null,null,null,null,"MNENJEDAJALEC",null,"PROJEKTNI POGOJI",null,"MNENJE"]
[null,null,"področje","naziv mnenja","navedba mnenjedajalca","naslov mnenjedajalca","številka projektnih pogojev","datum projektnih pogojev","datum podaje zahtevka za mnenje","številka mnenja","datum mnenja"]
[null,false,"OBČINA","SKLADNOST S PROSTORSKIMI AKTI",null,null,null,null,null,null,null,{"$f":"IF($B115=FALSE,0,MAX(L114:L$114)+1)","v":0}]
[null,"E1.2","VAROVANA, VARSTVENA IN OGROŽENA OBMOČJA, VODNA IN PRIOBALNA ZEMLJIŠČA"]
[null,null,null,null,"MNENJEDAJALEC",null,"PROJEKTNI POGOJI",null,"MNENJE"]
[null,null,"področje","naziv mnenja","navedba mnenjedajalca","naslov mnenjedajalca","številka projektnih pogojev","datum projektnih pogojev","datum podaje zahtevka za mnenje","številka mnenja","datum mnenja"]
[null,false,"VARSTVO KULTURNE DEDIŠČINE - POSEG","KULTUROVARSTVENO MNENJE ZA POSEG",null,{"$f":"IFERROR(INDEX('BAZA PODATKOV'!$B$221:$B$228,MATCH(E119,'BAZA PODATKOV'!$A$221:$A$228,0),1),\"\")","v":""},null,null,null,null,null,{"$f":"IF($B119=FALSE,\"\",MAX(L$118:L118)+1)","v":""},null,null,null,{"$f":"IFERROR(INDEX($C$119:$K$128,MATCH(ROW()-ROW($P$118),$O$119:$O$128,0),1),\"\")","v":""}]
[null,false,"VARSTVO KULTURNE DEDIŠČINE - RAZISKAVA IN ODSTRANITEV","KULTURNOVARSTVENO MNENJE ZA RAZISKAVO IN ODSTRANITEV",null,{"$f":"IFERROR(INDEX('BAZA PODATKOV'!$B$221:$B$228,MATCH(E120,'BAZA PODATKOV'!$A$221:$A$228,0),1),\"\")","v":""},null,null,null,null,null,{"$f":"IF($B120=FALSE,\"\",MAX(L$118:L119)+1)","v":""},null,null,null,""]
[null,false,"VARSTVO NARAVE","NARAVOVARSTVENO MNENJE",null,{"$f":"IFERROR(INDEX('BAZA PODATKOV'!$B$221:$B$311,MATCH(E121,'BAZA PODATKOV'!$A$221:$A$311,0),1),\"\")","v":""},null,null,null,null,null,{"$f":"IF($B121=FALSE,\"\",MAX(L$118:L120)+1)","v":""},null,null,null,""]
[null,false,"VARSTVO PODZEMNIH JAM","MNENJE ZA POSEG V JAME",null,{"$f":"IFERROR(INDEX('BAZA PODATKOV'!$B$221:$B$311,MATCH(E122,'BAZA PODATKOV'!$A$221:$A$311,0),1),\"\")","v":""},null,null,null,null,null,{"$f":"IF($B122=FALSE,\"\",MAX(L$118:L121)+1)","v":""},null,null,null,""]
[null,false,"VARSTVO VODA","VODNO MNENJE",null,{"$f":"IFERROR(INDEX('BAZA PODATKOV'!$B$221:$B$311,MATCH(E123,'BAZA PODATKOV'!$A$221:$A$311,0),1),\"\")","v":""},null,null,null,null,null,{"$f":"IF($B123=FALSE,\"\",MAX(L$118:L122)+1)","v":""},null,null,null,""]
[null,false,"VARSTVO GOZDOV","MNENJE ZA GRADNJO V GOZDNEM PROSTORU",null,{"$f":"IFERROR(INDEX('BAZA PODATKOV'!$B$221:$B$311,MATCH(E124,'BAZA PODATKOV'!$A$221:$A$311,0),1),\"\")","v":""},null,null,null,null,null,{"$f":"IF($B124=FALSE,\"\",MAX(L$118:L123)+1)","v":""},null,null,null,""]
[null,true,"RIBIŠKI OKOLIŠ","MNENJE ZA GRADNJO IN DRUGE POSEGE NA OBMOČJU RIBIŠKEGA OKOLIŠA","Zavod za ribištvo Slovenije","Spodnje Gameljne 61a\n1000 Ljubljana",null,null,null,null,null,{"$f":"IF($B125=FALSE,\"\",MAX(L$118:L124)+1)","v":1},null,null,null,""]
[null,false,"OKOLJE DIVJADI","MNENJE ZA POSEGE V OKOLJE DIVJADI",null,{"$f":"IFERROR(INDEX('BAZA PODATKOV'!$B$221:$B$311,MATCH(E126,'BAZA PODATKOV'!$A$221:$A$311,0),1),\"\")","v":""},null,null,null,null,null,{"$f":"IF($B126=FALSE,\"\",MAX(L$118:L125)+1)","v":""}]
[null,false,"OBMOČJE MEJNEGA PREHODA","MNENJE ZA GRADNJO NA OBMOČJU MEJNEGA PREHODA",null,{"$f":"IFERROR(INDEX('BAZA PODATKOV'!$B$286:$B$294,MATCH(E127,'BAZA PODATKOV'!$A$286:$A$294,0),1),\"\")","v":""},null,null,null,null,null,{"$f":"IF($B127=FALSE,\"\",MAX(L$118:L126)+1)","v":""}]
[null,false,"CARINA","MNENJE ZA GRADNJO OBJEKTOV V PROSTI CONI CARINSKEGA OBMOČJA UNIJE","Finančna uprava Republike Slovenije","Šmartinska cesta 55, 1000 Ljubljana",null,null,null,null,null,{"$f":"IF($B128=FALSE,\"\",MAX(L$118:L127)+1)","v":""}]
[null,false,"LETALIŠČA","MNENJE ZA GRADNJO V OBMOČJU IZKLJUČNE, OMEJENE IN NADZOROVANE RABE","Javna agencija za civilno letalstvo","Kotnikova 19a, 1000 Ljubljana",null,null,null,null,null,{"$f":"IF($B129=FALSE,\"\",MAX(L$118:L128)+1)","v":""}]
[null,false,"OVIRE ZA ZRAČNI PROMET","MNENJE ZA POSTAVLJANJE OVIR ZA ZRAČNI PROMET",null,null,null,null,null,null,null,{"$f":"IF($B130=FALSE,\"\",MAX(L$118:L129)+1)","v":""}]
[null,false,"VARNOST PLOVBE","MNENJE ZA GRADNJO ALI OBNOVO OBJEKTOV PRISTANIŠKE INFRASTRUKTURE ALI OBJEKTOV, KI LAHKO VPLIVAJO NA VARNOST PLOVBE NA OBALI ALI V MORJU","Uprava RS za pomorstvo","Ukmarjev trg 2, 6000 Koper",null,null,null,null,null,{"$f":"IF($B131=FALSE,\"\",MAX(L$118:L130)+1)","v":""}]
[null,false,"OBJEKT V MEJAH RUDNIŠKEGA PROSTORA","MNENJE ZA GRADNJO V MEJAH RUDNIŠKEGA PROSTORA","Ministrstvo za infrastrukturo","Langusova ulica 4, 1535 Ljubljana",null,null,null,null,null,{"$f":"IF($B132=FALSE,\"\",MAX(L$118:L131)+1)","v":""}]
[null,false,"OBJEKT V VAROVALNEM PASU ŽIČNIŠKE NAPRAVE","MNENJE ZA GRADNJO Z VIDIKA VAROVANJA ŽIČNIC",null,null,null,null,null,null,null,{"$f":"IF($B133=FALSE,\"\",MAX(L$118:L132)+1)","v":""}]
[null,false,"DRUGO (NAVEDI)","MNENJE",null,null,null,null,null,null,null,{"$f":"IF($B134=FALSE,\"\",MAX(L$118:L133)+1)","v":""}]
[null,false,"DRUGO (NAVEDI)","MNENJE",null,null,null,null,null,null,null,{"$f":"IF($B135=FALSE,\"\",MAX(L$118:L134)+1)","v":""}]
[null,false,"DRUGO (NAVEDI)","MNENJE",null,null,null,null,null,null,null,{"$f":"IF($B136=FALSE,\"\",MAX(L$118:L135)+1)","v":""}]
[null,"E1.3","VAROVALNI PASOVI INFRASTRUKTURE"]
[null,null,null,null,"MNENJEDAJALEC",null,"PROJEKTNI POGOJI",null,"MNENJE"]
[null,null,"področje","naziv mnenja","navedba mnenjedajalca","naslov mnenjedajalca","številka projektnih pogojev","datum projektnih pogojev","datum podaje zahtevka za mnenje","številka mnenja","datum mnenja"]
[null,false,"VODOVOD","MNENJE",null,null,null,null,null,null,null,{"$f":"IF($B140=FALSE,\"\",MAX(L$139:L139)+1)","v":""}]
[null,false,"ELEKTRIKA","MNENJE Z VIDIKA VAROVANJA ENERGETSKIH SISTEMOV",null,{"$f":"IFERROR(INDEX('BAZA PODATKOV'!$B$221:$B$311,MATCH(E141,'BAZA PODATKOV'!$A$221:$A$311,0),1),\"\")","v":""},null,null,null,null,null,{"$f":"IF($B141=FALSE,\"\",MAX(L$139:L140)+1)","v":""}]
[null,false,"PLIN","MNENJE Z VIDIKA VAROVANJA ENERGETSKIH SISTEMOV",null,null,null,null,null,null,null,{"$f":"IF($B142=FALSE,\"\",MAX(L$139:L141)+1)","v":""}]
[null,false,"TOPLOVOD","MNENJE",null,null,null,null,null,null,null,{"$f":"IF($B143=FALSE,\"\",MAX(L$139:L142)+1)","v":""}]
[null,false,"FEKALNE VODE","MNENJE",null,null,null,null,null,null,null,{"$f":"IF($B144=FALSE,\"\",MAX(L$139:L143)+1)","v":""}]
[null,false,"METEORNE VODE","MNENJE",null,null,null,null,null,null,null,{"$f":"IF($B145=FALSE,\"\",MAX(L$139:L144)+1)","v":""}]
[null,false,"KOMUNIKACIJSKI VODI","MNENJE",null,null,null,null,null,null,null,{"$f":"IF($B146=FALSE,\"\",MAX(L$139:L145)+1)","v":""}]
[null,false,"JAVNE CESTE","MNENJE ZA GRADNJO Z VIDIKA VAROVANJA JAVNIH CEST",null,null,null,null,null,null,null,{"$f":"IF($B147=FALSE,\"\",MAX(L$139:L146)+1)","v":""}]
[null,false,"ŽELEZNICE - GRADNJA","MNENJE ZA GRADNJO V PRAGOVNEM PASU ŽELEZNICE",null,null,null,null,null,null,null,{"$f":"IF($B148=FALSE,\"\",MAX(L$139:L147)+1)","v":""}]
[null,false,"ŽELEZNICE","MNENJE ZA ZAGOTAVLJANJE INTEROPERABILNOSTI IN VARNOSTI",null,null,null,null,null,null,null,{"$f":"IF($B149=FALSE,\"\",MAX(L$139:L148)+1)","v":""}]
[null,false,"DRUGO (NAVEDI)","MNENJE",null,null,null,null,null,null,null,{"$f":"IF($B150=FALSE,\"\",MAX(L$139:L149)+1)","v":""}]
[null,false,"DRUGO (NAVEDI)","MNENJE",null,null,null,null,null,null,null,{"$f":"IF($B151=FALSE,\"\",MAX(L$139:L150)+1)","v":""}]
[null,false,"DRUGO (NAVEDI)","MNENJE",null,null,null,null,null,null,null,{"$f":"IF($B152=FALSE,\"\",MAX(L$139:L151)+1)","v":""}]
[null,"E1.4","PRIKLJUČEVANJE NA INFRASTRUKTURO"]
[null,null,null,null,"MNENJEDAJALEC",null,"PROJEKTNI POGOJI",null,"MNENJE"]
[null,null,"področje","naziv mnenja","navedba mnenjedajalca","naslov mnenjedajalca","številka projektnih pogojev","datum projektnih pogojev","datum podaje zahtevka za mnenje","številka mnenja","datum mnenja"]
[null,false,"VODOVOD","MNENJE ALI SOGLASJE ZA PRIKLJUČITEV",null,null,null,null,null,null,null,{"$f":"IF($B156=FALSE,\"\",MAX(L$155:L155)+1)","v":""}]
[null,false,"ELEKTRIKA","MNENJE ALI SOGLASJE ZA PRIKLJUČITEV",null,{"$f":"IFERROR(INDEX('BAZA PODATKOV'!$B$221:$B$311,MATCH(E157,'BAZA PODATKOV'!$A$221:$A$311,0),1),\"\")","v":""},null,null,null,null,null,{"$f":"IF($B157=FALSE,\"\",MAX(L$155:L156)+1)","v":""}]
[null,false,"PLIN","MNENJE ALI SOGLASJE ZA PRIKLJUČITEV",null,null,null,null,null,null,null,{"$f":"IF($B158=FALSE,\"\",MAX(L$155:L157)+1)","v":""}]
[null,false,"TOPLOVOD","MNENJE ALI SOGLASJE ZA PRIKLJUČITEV",null,null,null,null,null,null,null,{"$f":"IF($B159=FALSE,\"\",MAX(L$155:L158)+1)","v":""}]
[null,false,"FEKALNE VODE","MNENJE ALI SOGLASJE ZA PRIKLJUČITEV",null,null,null,null,null,null,null,{"$f":"IF($B160=FALSE,\"\",MAX(L$155:L159)+1)","v":""}]
[null,false,"METEORNE VODE","MNENJE ALI SOGLASJE ZA PRIKLJUČITEV",null,null,null,null,null,null,null,{"$f":"IF($B161=FALSE,\"\",MAX(L$155:L160)+1)","v":""}]
[null,false,"DOSTOP","MNENJE ALI SOGLASJE ZA PRIKLJUČITEV",null,null,null,null,null,null,null,{"$f":"IF($B162=FALSE,\"\",MAX(L$155:L161)+1)","v":""}]
[null,false,"KOMUNIKACIJE","MNENJE ALI SOGLASJE ZA PRIKLJUČITEV",null,null,null,null,null,null,null,{"$f":"IF($B163=FALSE,\"\",MAX(L$155:L162)+1)","v":""}]
[null,false,"DRUGO (NAVEDI)","MNENJE",null,null,null,null,null,null,null,{"$f":"IF($B164=FALSE,\"\",MAX(L$155:L163)+1)","v":""}]
[null,false,"DRUGO (NAVEDI)","MNENJE",null,null,null,null,null,null,null,{"$f":"IF($B165=FALSE,\"\",MAX(L$155:L164)+1)","v":""}]
[null,false,"DRUGO (NAVEDI)","MNENJE",null,null,null,null,null,null,null,{"$f":"IF($B166=FALSE,\"\",MAX(L$155:L165)+1)","v":""}]
[null,"E1.5","DRUGA MNENJA"]
[null,null,null,null,"MNENJEDAJALEC",null,"PROJEKTNI POGOJI",null,"MNENJE"]
[null,null,"področje","naziv mnenja","navedba mnenjedajalca","naslov mnenjedajalca","številka projektnih pogojev","datum projektnih pogojev","datum podaje zahtevka za mnenje","številka mnenja","datum mnenja"]
[null,false,"JEDRSKA VARNOST ","MNENJE H GRADNJAM, KI VPLIVAJO NA JEDRSKO VARNOST","Uprava RS za jedrsko varnost","Litostrojska cesta 54, 1000 Ljubljana",null,null,null,null,null,{"$f":"IF($B170=FALSE,\"\",MAX(L$169:L169)+1)","v":""}]
[null,false,"SEVALNA VARNOST ","MNENJE H GRADNJAM, KI VPLIVAJO NA SEVALNO VARNOST","Uprava RS za jedrsko varnost","Litostrojska cesta 54, 1000 Ljubljana",null,null,null,null,null,{"$f":"IF($B171=FALSE,\"\",MAX(L$169:L170)+1)","v":""}]
[null,false,"KMETIJSKO GOSPODARSTVO","MNENJE ZA GRADNJO ALI REKONSTRUKCIJO VELIKEGA OBRATA KMETIJSKEGA GOSPODARSTVA","Ministrstvo za kmetijstvo, gozdarstvo in prehrano","Dunajska 22, 1000 Ljubljana",null,null,null,null,null,{"$f":"IF($B172=FALSE,\"\",MAX(L$169:L171)+1)","v":""}]
[null,false,"VETERINA","MNENJE ZA GRADNJO OBJEKTA POD VETERINARSKIM NADZOROM","Uprava RS za varno hrano, veterinarstvo in varstvo rastlin","Dunajska 22, 1000 Ljubljana",null,null,null,null,null,{"$f":"IF($B173=FALSE,\"\",MAX(L$169:L172)+1)","v":""}]
[null,false,"OBRAMBA","MNENJE ZA GRADNJO NEKATERIH OBJEKTOV Z VIDIKA UPOŠTEVANJA OBRAMBNIH POTREB","Ministrstvo za obrambo","Vojkova cesta 55, 1000 Ljubljana",null,null,null,null,null,{"$f":"IF($B174=FALSE,\"\",MAX(L$169:L173)+1)","v":""}]
[null,false,"DRUGO (NAVEDI)","MNENJE",null,null,null,null,null,null,null,{"$f":"IF($B175=FALSE,\"\",MAX(L$169:L174)+1)","v":""}]
[null,false,"DRUGO (NAVEDI)","MNENJE",null,null,null,null,null,null,null,{"$f":"IF($B176=FALSE,\"\",MAX(L$169:L175)+1)","v":""}]
[null,false,"DRUGO (NAVEDI)","MNENJE",null,null,null,null,null,null,null,{"$f":"IF($B177=FALSE,\"\",MAX(L$169:L176)+1)","v":""}]
[null,"F","UPRAVNI POSTOPKI"]
[null,"F0.1","NAVEDBA ORGANA, PRI KATEREM SE VLAGA ZAHTEVA"]
[null,null,"pri avtomatičnem generiranju PDF datotek z zahtevki za pogoje in mnenja se podatki vpišejo avtomatično"]
[null,null,"naziv"]
[null,null,"naslov"]
[null,"F1","GRADBENO DOVOLJENJE"]
[null,"F1.1","PODATKI ZA IZRAČUN UPRAVNE TAKSE"]
[null,null,"Samo v DGD in PID. V DGD se vpiše prva vrednost, v fazi PID pa druga vrednost."]
[null,null,"ocenjena vrednost objekta v EUR brez DDV"]
[null,"F1.2","PODATKI O IZDANEM GRADBENEM DOVOLJENJU"]
[null,null,"Navedejo se vsa pridobljena gradbena dovoljenja. Izpolni se za spremembo GD, prijavo pričetka del in pripravljalnih del ter za pridobivanje uporabnega dovoljenja."]
[null,null,"navedba organa"]
[null,null,"številka dovoljenja"]
[null,null,"datum dovoljenja","2023-07-05"]
[null,null,"dokončnost","2023-08-05"]
[null,null,"pravnomočnost","2023-10-05"]
[null,"F1.3","PODATKI O SPREMEMBI GRADBENEGA DOVOLJENJA"]
[null,null,"Navedejo se vsa pridobljena gradbena dovoljenja. Izpolni se za spremembo GD, prijavo pričetka del in pripravljalnih del ter za pridobivanje uporabnega dovoljenja."]
[null,null,"navedba organa"]
[null,null,"številka dovoljenja"]
[null,null,"datum dovoljenja","2023-07-05"]
[null,null,"dokončnost","2023-08-05"]
[null,null,"pravnomočnost","2023-10-05"]
[]
[]
[]
[]
[]
[]
[]
[]
[]
[]
[]
[]
[]
[]
[]
[]
[]
[null,null,null,true]
[null,null,null,true]

{"sheet":"6 NZO LIST 1","index":2,"n_rows":56,"n_cols":3,"rows_kept":56,"cut":false,"hidden":false,"merged":[[1,0,1,2],[49,0,49,1],[40,0,40,2]]}
["PRILOGA 6"]
["DOKUMENTACIJA ZA PRIDOBITEV GRADBENEGA DOVOLJENJA ZA NEZAHTEVNE OBJEKTE"]
["LIST 1: PODATKI O INVESTITORJU IN OBJEKTU"]
["INVESTITOR"]
[{"$f":"'VNOS PODATKOV'!C23","v":"INVESTITOR 1"}]
["ime in priimek ali naziv družbe",null,{"$f":"'VNOS PODATKOV'!D24","v":0}]
["naslov ali sedež družbe",null,{"$f":"'VNOS PODATKOV'!D25","v":0}]
[{"$f":"'VNOS PODATKOV'!C27","v":"INVESTITOR 2"}]
["ime in priimek ali naziv družbe",null,{"$f":"'VNOS PODATKOV'!D28","v":0}]
["naslov ali sedež družbe",null,{"$f":"'VNOS PODATKOV'!D29","v":0}]
[{"$f":"'VNOS PODATKOV'!C31","v":"INVESTITOR 3"}]
["ime in priimek ali naziv družbe",null,{"$f":"'VNOS PODATKOV'!D32","v":0}]
["naslov ali sedež družbe",null,{"$f":"'VNOS PODATKOV'!D33","v":0}]
["PODATKI O STAVBAH IN GRADBENO INŽENIRSKIH OBJEKTIH"]
["vpisujejo se podatki, ki so relevantni za objekt"]
[{"$f":"'VNOS PODATKOV'!C74","v":"naziv gradnje"},null,{"$f":"'VNOS PODATKOV'!D74","v":0}]
["klasifikacija objekta po CC-SI"]
["klasifikacija glavnega objekta po CC-SI, če je nezahtevni objekt pripadajoči objekt"]
["PODATKI ZA STAVBE"]
["zunanje mere na stiku z zemljiščem (maksimalna širina x dolžina, premer ali podobno)"]
["višina"]
["bruto tlorisna površina"]
["bruto prostornina"]
["etažnost"]
["globina"]
["PODATKI ZA GRADBENO INŽENIRSKE OBJEKTE"]
["višina"]
["širina"]
["globina"]
["dolžina"]
["nosilni razpon"]
["bruto tlorisna površina"]
["bruto prostornina"]
["opis zmogljivosti (pretok, tlak, premer, napetost, PE ipd.)"]
["OBJEKT PROIZVOD"]
[null,false,"je kot celota dan na trg kot proizvod, ki izpolnjuje zahteve iz predpisov, ki urejajo splošno varnost proizvodov"]
[null,false,"za njegovo postavitev se ne uporabljajo betonska in zidarska dela ali se na mestu postavitve ne varijo konstrukcijski elementi"]
[null,false,"nima lastnih komunalnih in drugih priključkov "]
[null,false,"ni enostavni objekt"]
["po potrebi dodati rubriko"]
["ZEMLJIŠČA ZA GRADNJO"]
["številka katastrske občine"]
["katastrska občina"]
["parc. št."]
["po potrebi dodati vrstice"]
["PRIKLJUČEVANJE NA KOMUNALNO INFRASTRUKTURO (NAVESTI, KATERO):"]
[]
[]
[]
[]
[]
["po potrebi dodati vrstice"]
[]
[]
["datum izdelave",null,"2019-04-02"]
["izdelal"]

{"sheet":"6 NZO LIST 2","index":3,"n_rows":4,"n_cols":6,"rows_kept":4,"cut":false,"hidden":false,"merged":[[1,0,1,7]]}
["PRILOGA 6 - LIST 2"]
["DOKUMENTACIJA ZA PRIDOBITEV GRADBENEGA DOVOLJENJA ZA NEZAHTEVNE OBJEKTE"]
["LIST 2: TLORIS, ZNAČILNI PREREZI (PROFILI), POGLEDI OZIROMA OBLIKOVANJE TERENA"]
["MERILO  1 ≈ 100",null,null,null,null,"1 kvadrat = 1 m"]

{"sheet":"6 NZO LIST 3","index":4,"n_rows":7,"n_cols":1,"rows_kept":7,"cut":false,"hidden":false,"merged":[[2,0,2,1],[4,0,4,1],[6,0,6,1]]}
["PRILOGA 6 - LIST 3"]
["DOKUMENTACIJA ZA PRIDOBITEV GRADBENEGA DOVOLJENJA ZA NEZAHTEVNE OBJEKTE"]
["LIST 3: PRIKAZ OBJEKTA NA GRAFIČNEM PRIKAZU NEPREMIČNINE"]
[]
["Kot list 3 se vloži grafični prikaz nepremičnine, na katerem se prikaže objekt, tako da je razvidna njegova tlorisna velikost na stiku z zemljiščem. "]
[]
["Če se zaradi gradnje nezahtevnega objekta spreminja prometna ureditev ali se objekt priključuje na gospodarsko javno infrastrukturo (GJI), se na grafičnem prikazu nepremičnine prikažejo tudi prometne in funkcionalne površine (vključno z dostopi, dovozi, parkirišči, mestom za odpadke) ter mesto priključevanja na GJI."]

{"sheet":"8A POGOJI VLOGA","index":5,"n_rows":67,"n_cols":3,"rows_kept":67,"cut":false,"hidden":false,"merged":[[34,0,34,2],[60,0,60,2],[32,0,32,1],[1,0,1,2],[17,0,17,2],[30,0,30,2],[31,0,31,1]]}
["PRILOGA 8A"]
["ZAHTEVA ZA IZDAJO \nPROJEKTNIH IN DRUGIH POGOJEV"]
[]
[{"$f":"'VNOS PODATKOV'!C22","v":"INVESTITOR"}]
[{"$f":"'VNOS PODATKOV'!C23","v":"INVESTITOR 1"}]
[{"$f":"'VNOS PODATKOV'!C24","v":"ime in priimek ali naziv družbe"},null,{"$f":"'VNOS PODATKOV'!D24","v":0}]
[{"$f":"'VNOS PODATKOV'!C25","v":"naslov ali sedež družbe"},null,{"$f":"'VNOS PODATKOV'!D25","v":0}]
[{"$f":"'VNOS PODATKOV'!C26","v":"davčna številka"},null,{"$f":"'VNOS PODATKOV'!D26","v":0}]
[{"$f":"'VNOS PODATKOV'!C27","v":"INVESTITOR 2"}]
[{"$f":"'VNOS PODATKOV'!C28","v":"ime in priimek ali naziv družbe"},null,{"$f":"'VNOS PODATKOV'!D28","v":0}]
[{"$f":"'VNOS PODATKOV'!C29","v":"naslov ali sedež družbe"},null,{"$f":"'VNOS PODATKOV'!D29","v":0}]
[{"$f":"'VNOS PODATKOV'!C30","v":"davčna številka"},null,{"$f":"'VNOS PODATKOV'!D30","v":0}]
[{"$f":"'VNOS PODATKOV'!C31","v":"INVESTITOR 3"}]
[{"$f":"'VNOS PODATKOV'!C32","v":"ime in priimek ali naziv družbe"},null,{"$f":"'VNOS PODATKOV'!D32","v":0}]
[{"$f":"'VNOS PODATKOV'!C33","v":"naslov ali sedež družbe"},null,{"$f":"'VNOS PODATKOV'!D33","v":0}]
[{"$f":"'VNOS PODATKOV'!C34","v":"davčna številka"},null,{"$f":"'VNOS PODATKOV'!D34","v":0}]
[]
[{"$f":"'VNOS PODATKOV'!C35","v":"KONTAKTNA OSEBA"}]
[{"$f":"'VNOS PODATKOV'!C36","v":"ime in priimek"},null,{"$f":"'VNOS PODATKOV'!D36","v":0}]
[{"$f":"'VNOS PODATKOV'!C37","v":"telefonska številka"},null,{"$f":"'VNOS PODATKOV'!D37","v":0}]
[{"$f":"'VNOS PODATKOV'!C38","v":"elektronski naslov"},null,{"$f":"'VNOS PODATKOV'!D38","v":0}]
[]
[{"$f":"'VNOS PODATKOV'!C39","v":"POOBLAŠČENEC"}]
[{"$f":"'VNOS PODATKOV'!C40","v":"podatki se vpišejo, kadar je imenovan pooblaščenec"}]
[{"$f":"'VNOS PODATKOV'!C42","v":"ime in priimek ali naziv družbe"},null,{"$f":"IF('VNOS PODATKOV'!D$41=TRUE,'VNOS PODATKOV'!D42, \"\")","v":""}]
[{"$f":"'VNOS PODATKOV'!C43","v":"naslov ali sedež družbe"},null,{"$f":"IF('VNOS PODATKOV'!D$41=TRUE,'VNOS PODATKOV'!D43, \"\")","v":""}]
[{"$f":"'VNOS PODATKOV'!C44","v":"kontaktna oseba"},null,{"$f":"IF('VNOS PODATKOV'!D$41=TRUE,'VNOS PODATKOV'!D44, \"\")","v":""}]
[{"$f":"'VNOS PODATKOV'!C45","v":"telefonska številka"},null,{"$f":"IF('VNOS PODATKOV'!D$41=TRUE,'VNOS PODATKOV'!D45, \"\")","v":""}]
[{"$f":"'VNOS PODATKOV'!C46","v":"elektronski naslov"},null,{"$f":"IF('VNOS PODATKOV'!D$41=TRUE,'VNOS PODATKOV'!D46, \"\")","v":""}]
[]
["NAVEDBA ORGANA, PRI KATEREM SE VLAGA ZAHTEVA"]
[{"$f":"'VNOS PODATKOV'!C181","v":"naziv"},null,"Zavod za ribištvo Slovenije"]
[{"$f":"'VNOS PODATKOV'!C182","v":"naslov"},null,"Spodnje Gameljne 61a\n1000 Ljubljana"]
[]
[{"$f":"'VNOS PODATKOV'!C71","v":"PODATKI O GRADNJI"}]
[{"$f":"'VNOS PODATKOV'!C74","v":"naziv gradnje"},null,{"$f":"'VNOS PODATKOV'!D74","v":0}]
[{"$f":"'VNOS PODATKOV'!C76","v":"kratek opis gradnje"},null,{"$f":"'VNOS PODATKOV'!D76","v":0}]
[{"$f":"'VNOS PODATKOV'!C82","v":"VRSTE GRADNJE"},null,{"$f":"IFERROR(INDEX('VNOS PODATKOV'!$C$84:$D$88,MATCH(ROW()-ROW(#REF!),'VNOS PODATKOV'!$E$84:$E$88,0),1),\"\")","v":""}]
["navesti vse ustrezne vrste gradnje"]
[false,{"$f":"IF('VNOS PODATKOV'!D84=TRUE,TRUE,FALSE)","v":false},{"$f":"'VNOS PODATKOV'!C84","v":"NOVOGRADNJA - NOVOZGRAJEN OBJEKT"}]
[{"$f":"IF('VNOS PODATKOV'!D85=TRUE,TRUE,FALSE)","v":false},{"$f":"IF('VNOS PODATKOV'!D85=TRUE,TRUE,FALSE)","v":false},{"$f":"'VNOS PODATKOV'!C85","v":"NOVOGRADNJA - PRIZIDAVA"}]
[{"$f":"IF('VNOS PODATKOV'!D86=TRUE,TRUE,FALSE)","v":false},{"$f":"IF('VNOS PODATKOV'!D86=TRUE,TRUE,FALSE)","v":false},{"$f":"'VNOS PODATKOV'!C86","v":"REKONSTRUKCIJA"}]
[{"$f":"IF('VNOS PODATKOV'!D87=TRUE,TRUE,FALSE)","v":false},{"$f":"IF('VNOS PODATKOV'!D87=TRUE,TRUE,FALSE)","v":false},{"$f":"'VNOS PODATKOV'!C87","v":"SPREMEMBA NAMEMBNOSTI"}]
[{"$f":"IF('VNOS PODATKOV'!D88=TRUE,TRUE,FALSE)","v":false},{"$f":"IF('VNOS PODATKOV'!D88=TRUE,TRUE,FALSE)","v":false},{"$f":"'VNOS PODATKOV'!C88","v":"LEGALIZACIJA"}]
[null,null,{"$f":"IFERROR(INDEX('VNOS PODATKOV'!$C$84:$D$88,MATCH(ROW()-ROW(C$38),'VNOS PODATKOV'!$E$84:$E$88,0),1),\"\")","v":""}]
[{"$f":"IF('VNOS PODATKOV'!D92=TRUE,TRUE,FALSE)","v":false},{"$f":"IF('VNOS PODATKOV'!D92=TRUE,TRUE,FALSE)","v":false},{"$f":"'VNOS PODATKOV'!C92","v":"objekt z vplivi na okolje"}]
[]
["PROJEKTNA DOKUMENTACIJA"]
[{"$f":"'VNOS PODATKOV'!C66","v":"podatki se vpišejo, če dokumentacijo izdela projektant"}]
["vrsta projektne dokumentacije",null,{"$f":"'VNOS PODATKOV'!D68","v":"DNZO (dokumentacija za pridobitev gradbenega dovoljenja za nezahtevne objekte)"}]
[{"$f":"'VNOS PODATKOV'!C69","v":"številka projekta"},null,{"$f":"'VNOS PODATKOV'!D69","v":0}]
["datum izdelave projekta",null,{"$f":"'VNOS PODATKOV'!D70","v":0}]
[{"$f":"'VNOS PODATKOV'!C50","v":"projektant (naziv družbe)"},null,{"$f":"'VNOS PODATKOV'!D50","v":0}]
[]
[null,null,"Na podlagi navedenih podatkov vas prosim za določitev projektnih pogojev \nv skladu z vašimi pristojnostmi."]
[]
["datum",null,"podpis vložnika"]
[{"$f":"TODAY()","v":"2023-06-07"}]
[]
[]
["PRILOGE"]
["ustrezno označiti"]
[null,false,"Pooblastilo (če zahteve ne vlaga investitor)"]
[null,false,"Projektna dokumentacija za pridobitev projektnih in drugih pogojev  (DPP)"]
[null,false,"Dokumentacija za pridobitev gradbenega dovoljenja za nezahtevne objekte (DNZO)"]
[null,false,"Dokumentacija za pridobitev gradbenega dovoljenja za spremembo namembnosti (DSN)"]
[null,false,"Druge priloge (navesti, katere):"]

{"sheet":"9A MNENJA VLOGA","index":6,"n_rows":108,"n_cols":3,"rows_kept":108,"cut":false,"hidden":false,"merged":[[98,0,98,2],[54,0,54,2],[61,0,61,2],[66,0,66,2],[72,0,72,2],[77,0,77,2],[1,0,1,2],[3,0,3,2],[17,0,17,2],[30,0,30,2],[40,0,40,2]]}
["PRILOGA 9A"]
["ZAHTEVA ZA IZDAJO MNENJA"]
[]
[{"$f":"'VNOS PODATKOV'!C22","v":"INVESTITOR"}]
[{"$f":"'VNOS PODATKOV'!C23","v":"INVESTITOR 1"}]
[{"$f":"'VNOS PODATKOV'!C24","v":"ime in priimek ali naziv družbe"},null,{"$f":"'VNOS PODATKOV'!D24","v":0}]
[{"$f":"'VNOS PODATKOV'!C25","v":"naslov ali sedež družbe"},null,{"$f":"'VNOS PODATKOV'!D25","v":0}]
[{"$f":"'VNOS PODATKOV'!C26","v":"davčna številka"},null,{"$f":"'VNOS PODATKOV'!D26","v":0}]
[{"$f":"'VNOS PODATKOV'!C27","v":"INVESTITOR 2"}]
[{"$f":"'VNOS PODATKOV'!C28","v":"ime in priimek ali naziv družbe"},null,{"$f":"'VNOS PODATKOV'!D28","v":0}]
[{"$f":"'VNOS PODATKOV'!C29","v":"naslov ali sedež družbe"},null,{"$f":"'VNOS PODATKOV'!D29","v":0}]
[{"$f":"'VNOS PODATKOV'!C30","v":"davčna številka"},null,{"$f":"'VNOS PODATKOV'!D30","v":0}]
[{"$f":"'VNOS PODATKOV'!C31","v":"INVESTITOR 3"}]
[{"$f":"'VNOS PODATKOV'!C32","v":"ime in priimek ali naziv družbe"},null,{"$f":"'VNOS PODATKOV'!D32","v":0}]
[{"$f":"'VNOS PODATKOV'!C33","v":"naslov ali sedež družbe"},null,{"$f":"'VNOS PODATKOV'!D33","v":0}]
[{"$f":"'VNOS PODATKOV'!C34","v":"davčna številka"},null,{"$f":"'VNOS PODATKOV'!D34","v":0}]
[]
[{"$f":"'VNOS PODATKOV'!C35","v":"KONTAKTNA OSEBA"}]
[{"$f":"'VNOS PODATKOV'!C36","v":"ime in priimek"}]
[{"$f":"'VNOS PODATKOV'!C37","v":"telefonska številka"}]
[{"$f":"'VNOS PODATKOV'!C38","v":"elektronski naslov"},null,{"$f":"'VNOS PODATKOV'!D38","v":0}]
[]
[{"$f":"'VNOS PODATKOV'!C39","v":"POOBLAŠČENEC"},null,"SKLADNOST S PROSTORSKIMI AKTI"]
[{"$f":"'VNOS PODATKOV'!C40","v":"podatki se vpišejo, kadar je imenovan pooblaščenec"}]
[{"$f":"'VNOS PODATKOV'!C42","v":"ime in priimek ali naziv družbe"},null,{"$f":"IF('VNOS PODATKOV'!D$41=TRUE,'VNOS PODATKOV'!D42, \"\")","v":""}]
[{"$f":"'VNOS PODATKOV'!C43","v":"naslov ali sedež družbe"},null,{"$f":"IF('VNOS PODATKOV'!D$41=TRUE,'VNOS PODATKOV'!D43, \"\")","v":""}]
[{"$f":"'VNOS PODATKOV'!C44","v":"kontaktna oseba"},null,{"$f":"IF('VNOS PODATKOV'!D$41=TRUE,'VNOS PODATKOV'!D44, \"\")","v":""}]
[{"$f":"'VNOS PODATKOV'!C45","v":"telefonska številka"},null,{"$f":"IF('VNOS PODATKOV'!D$41=TRUE,'VNOS PODATKOV'!D45, \"\")","v":""}]
[{"$f":"'VNOS PODATKOV'!C46","v":"elektronski naslov"},null,{"$f":"IF('VNOS PODATKOV'!D$41=TRUE,'VNOS PODATKOV'!D46, \"\")","v":""}]
[]
["NAVEDBA ORGANA, PRI KATEREM SE VLAGA ZAHTEVA"]
[{"$f":"'VNOS PODATKOV'!C181","v":"naziv"}]
[{"$f":"'VNOS PODATKOV'!C182","v":"naslov"}]
[{"$f":"'VNOS PODATKOV'!D114","v":"naziv mnenja"},null,"MNENJE ZA GRADNJO NA OBMOČJU MEJNEGA PREHODA"]
[]
["PRIDOBLJENI PROJEKTNI POGOJI"]
["vpišejo se podatki o projektnih pogojih, če so bili pridobljeni"]
[{"$f":"'VNOS PODATKOV'!G114","v":"številka projektnih pogojev"}]
[{"$f":"'VNOS PODATKOV'!H114","v":"datum projektnih pogojev"}]
[]
[{"$f":"'VNOS PODATKOV'!C71","v":"PODATKI O GRADNJI"}]
[{"$f":"'VNOS PODATKOV'!C74","v":"naziv gradnje"},null,{"$f":"'VNOS PODATKOV'!D74","v":0}]
[{"$f":"'VNOS PODATKOV'!C76","v":"kratek opis gradnje"},null,{"$f":"'VNOS PODATKOV'!D76","v":0}]
[{"$f":"'VNOS PODATKOV'!C82","v":"VRSTE GRADNJE"},null,{"$f":"IFERROR(INDEX('VNOS PODATKOV'!$C$84:$D$88,MATCH(ROW()-ROW(#REF!),'VNOS PODATKOV'!$E$84:$E$88,0),1),\"\")","v":""}]
["navesti vse ustrezne vrste gradnje"]
[{"$f":"IF('VNOS PODATKOV'!D84=TRUE,TRUE,FALSE)","v":false},{"$f":"IF('VNOS PODATKOV'!D84=TRUE,TRUE,FALSE)","v":false},{"$f":"'VNOS PODATKOV'!C84","v":"NOVOGRADNJA - NOVOZGRAJEN OBJEKT"}]
[{"$f":"IF('VNOS PODATKOV'!D85=TRUE,TRUE,FALSE)","v":false},{"$f":"IF('VNOS PODATKOV'!D85=TRUE,TRUE,FALSE)","v":false},{"$f":"'VNOS PODATKOV'!C85","v":"NOVOGRADNJA - PRIZIDAVA"}]
[{"$f":"IF('VNOS PODATKOV'!D86=TRUE,TRUE,FALSE)","v":false},{"$f":"IF('VNOS PODATKOV'!D86=TRUE,TRUE,FALSE)","v":false},{"$f":"'VNOS PODATKOV'!C86","v":"REKONSTRUKCIJA"}]
[{"$f":"IF('VNOS PODATKOV'!D87=TRUE,TRUE,FALSE)","v":false},{"$f":"IF('VNOS PODATKOV'!D87=TRUE,TRUE,FALSE)","v":false},{"$f":"'VNOS PODATKOV'!C87","v":"SPREMEMBA NAMEMBNOSTI"}]
[{"$f":"IF('VNOS PODATKOV'!D88=TRUE,TRUE,FALSE)","v":false},{"$f":"IF('VNOS PODATKOV'!D88=TRUE,TRUE,FALSE)","v":false},{"$f":"'VNOS PODATKOV'!C88","v":"LEGALIZACIJA"}]
[null,null,{"$f":"IFERROR(INDEX('VNOS PODATKOV'!$C$84:$D$88,MATCH(ROW()-ROW(C$44),'VNOS PODATKOV'!$E$84:$E$88,0),1),\"\")","v":""}]
[{"$f":"IF('VNOS PODATKOV'!D92=TRUE,TRUE,FALSE)","v":false},{"$f":"IF('VNOS PODATKOV'!D92=TRUE,TRUE,FALSE)","v":false},{"$f":"'VNOS PODATKOV'!C92","v":"objekt z vplivi na okolje"}]
[{"$f":"IF('VNOS PODATKOV'!D98=TRUE,TRUE,FALSE)","v":false},{"$f":"IF('VNOS PODATKOV'!D98=TRUE,TRUE,FALSE)","v":false},{"$f":"'VNOS PODATKOV'!C98","v":"predhodna presoja vplivov na okolje"}]
[]
["PODATKI O PROJEKTNI DOKUMENTACIJI"]
[{"$f":"'VNOS PODATKOV'!C66","v":"podatki se vpišejo, če dokumentacijo izdela projektant"}]
["vrsta dokumentacije",null,{"$f":"'VNOS PODATKOV'!D68","v":"DNZO (dokumentacija za pridobitev gradbenega dovoljenja za nezahtevne objekte)"}]
[{"$f":"'VNOS PODATKOV'!C69","v":"številka projekta"},null,{"$f":"'VNOS PODATKOV'!D69","v":0}]
[{"$f":"'VNOS PODATKOV'!C70","v":"datum izdelave"},null,{"$f":"'VNOS PODATKOV'!D70","v":0}]
[{"$f":"'VNOS PODATKOV'!C50","v":"projektant (naziv družbe)"},null,{"$f":"'VNOS PODATKOV'!D50","v":0}]
[]
["PREDHODNA PRESOJA VPLIVOV NA OKOLJE"]
["podatki se vpišejo, če gre za objekt z vplivi na okolje in če je bil izveden predhodni postopek v skladu z zakonom, ki ureja varstvo okolja"]
["številka sklepa"]
["datum sklepa"]
[]
["POROČILO O VPLIVIH NA OKOLJE (PVO)"]
["podatki se vpišejo, kadar gre za objekt z vplivi na okolje"]
["številka poročila"]
["datum izdelave poročila"]
["izdelovalec poročila"]
[]
["PODATKI O VODNI PRAVICI"]
["navedejo se podatki o vodni pravici, če je bila pridobljena"]
["številka "]
["datum izdaje"]
[]
["PODATKI O DOVOLJENJU ZA RAZISKAVO PODZEMNIH VODA"]
["navedejo se podatki o dovoljenju za raziskavo podzemnih voda, če je bilo pridobljeno"]
["številka "]
["datum izdaje"]
[]
["PODATKI O VODNIH ZEMLJIŠČIH ZARADI USTANOVITEV STVARNE SLUŽNOSTI"]
["podatki se navedejo, če se poseg načrtuje na vodnih ali priobalnih zemljiščih v lasti države"]
["številka katastrske občine"]
["katastrska občina"]
["parc. št."]
["služnostni upravičenec"]
["matična številka"]
["davčna številka"]
["zakoniti zastopnik"]
[]
[null,null,"Na podlagi navedenih podatkov vas prosim za mnenje, ali je priložena dokumentacija skladna s predpisi iz vaše pristojnosti, ter za določitev morebitnih pogojev za izvedbo gradnje in uporabo objekta."]
[]
["datum",null,"podpis vložnika"]
[{"$f":"TODAY()","v":"2023-06-07"}]
[]
[]
["PRILOGE"]
["ustrezno označiti"]
[null,false,"Pooblastilo (če zahteve ne vlaga investitor)"]
[null,false,"Projektna dokumentacija za pridobitev mnenj in gradbenega dovoljenja - DGD (če gre za zahteven ali manj zahteven objekt)"]
[null,false,"Dokumentacija za pridobitev gradbenega dovoljenja za nezahtevne objekte - DNZO"]
[null,false,"Dokumentacija za pridobitev gradbenega dovoljenja za spremembo namembnosti - DSN"]
[null,false,"Dokumentacija za legalizacijo - DL"]
[null,false,"Poročilo o vplivih na okolje (če gre za objekt z vplivi na okolje)"]
[null,false,"Priloga 1 Vloge za izdajo vodnega soglasja, določene na spletni strani Direkcije RS za vode, \nče se poseg načrtuje na vodnih ali priobalnih zemljiščih v lasti države"]
[null,false,"Druge priloge (navesti, katere):"]

{"sheet":"11B - GD NZO ZAHTEVA","index":7,"n_rows":124,"n_cols":3,"rows_kept":124,"cut":false,"hidden":false,"merged":[[1,0,1,2],[28,0,28,1],[29,0,29,1],[64,0,64,2],[118,0,118,2],[108,0,108,2]]}
["PRILOGA 11B"]
["ZAHTEVA ZA IZDAJO \nGRADBENEGA DOVOLJENJA \nZA NEZAHTEVNI OBJEKT"]
[]
["INVESTITOR"]
["INVESTITOR 1"]
["ime in priimek ali naziv družbe",null,{"$f":"'VNOS PODATKOV'!D24","v":0}]
["naslov ali sedež družbe",null,{"$f":"'VNOS PODATKOV'!D25","v":0}]
["INVESTITOR 2"]
["ime in priimek ali naziv družbe",null,{"$f":"'VNOS PODATKOV'!D28","v":0}]
["naslov ali sedež družbe",null,{"$f":"'VNOS PODATKOV'!D29","v":0}]
["INVESTITOR 3"]
["ime in priimek ali naziv družbe",null,{"$f":"'VNOS PODATKOV'!D32","v":0}]
["naslov ali sedež družbe",null,{"$f":"'VNOS PODATKOV'!D33","v":0}]
[]
[{"$f":"'VNOS PODATKOV'!C35","v":"KONTAKTNA OSEBA"}]
[{"$f":"'VNOS PODATKOV'!C36","v":"ime in priimek"},null,{"$f":"'VNOS PODATKOV'!D36","v":0}]
[{"$f":"'VNOS PODATKOV'!C37","v":"telefonska številka"},null,{"$f":"'VNOS PODATKOV'!D37","v":0}]
[{"$f":"'VNOS PODATKOV'!C38","v":"elektronski naslov"},null,{"$f":"'VNOS PODATKOV'!D38","v":0}]
[]
["POOBLAŠČENEC"]
["podatki se vpišejo kadar je imenovan pooblaščenec"]
[{"$f":"'VNOS PODATKOV'!C42","v":"ime in priimek ali naziv družbe"},null,{"$f":"IF('VNOS PODATKOV'!D$41=TRUE,'VNOS PODATKOV'!D42, \"\")","v":""}]
[{"$f":"'VNOS PODATKOV'!C43","v":"naslov ali sedež družbe"},null,{"$f":"IF('VNOS PODATKOV'!D$41=TRUE,'VNOS PODATKOV'!D43, \"\")","v":""}]
[{"$f":"'VNOS PODATKOV'!C44","v":"kontaktna oseba"},null,{"$f":"IF('VNOS PODATKOV'!D$41=TRUE,'VNOS PODATKOV'!D44, \"\")","v":""}]
[{"$f":"'VNOS PODATKOV'!C45","v":"telefonska številka"},null,{"$f":"IF('VNOS PODATKOV'!D$41=TRUE,'VNOS PODATKOV'!D45, \"\")","v":""}]
[{"$f":"'VNOS PODATKOV'!C46","v":"elektronski naslov"},null,{"$f":"IF('VNOS PODATKOV'!D$41=TRUE,'VNOS PODATKOV'!D46, \"\")","v":""}]
[]
["NAVEDBA ORGANA, PRI KATEREM SE VLAGA ZAHTEVA"]
["naziv",null,{"$f":"'VNOS PODATKOV'!D181","v":0}]
["naslov",null,{"$f":"'VNOS PODATKOV'!D182","v":0}]
[]
["ZEMLJIŠČA ZA GRADNJO"]
["številka katastrske občine"]
["katastrska občina"]
["parc. št."]
[]
[{"$f":"'VNOS PODATKOV'!C71","v":"PODATKI O GRADNJI"}]
[{"$f":"'VNOS PODATKOV'!C74","v":"naziv gradnje"},null,{"$f":"'VNOS PODATKOV'!D74","v":0}]
[{"$f":"'VNOS PODATKOV'!C82","v":"VRSTE GRADNJE"},null,{"$f":"IFERROR(INDEX('VNOS PODATKOV'!$C$84:$D$88,MATCH(ROW()-ROW(#REF!),'VNOS PODATKOV'!$E$84:$E$88,0),1),\"\")","v":""}]
["navesti vse ustrezne vrste gradnje"]
[{"$f":"IF('VNOS PODATKOV'!D84=TRUE,TRUE,FALSE)","v":false},null,{"$f":"'VNOS PODATKOV'!C84","v":"NOVOGRADNJA - NOVOZGRAJEN OBJEKT"}]
[{"$f":"IF('VNOS PODATKOV'!D85=TRUE,TRUE,FALSE)","v":false},null,{"$f":"'VNOS PODATKOV'!C85","v":"NOVOGRADNJA - PRIZIDAVA"}]
[{"$f":"IF('VNOS PODATKOV'!D86=TRUE,TRUE,FALSE)","v":false},null,{"$f":"'VNOS PODATKOV'!C86","v":"REKONSTRUKCIJA"}]
[{"$f":"IF('VNOS PODATKOV'!D87=TRUE,TRUE,FALSE)","v":false},null,{"$f":"'VNOS PODATKOV'!C87","v":"SPREMEMBA NAMEMBNOSTI"}]
[{"$f":"IF('VNOS PODATKOV'!D88=TRUE,TRUE,FALSE)","v":false},null,{"$f":"'VNOS PODATKOV'!C88","v":"LEGALIZACIJA"}]
[]
[{"$f":"IF('VNOS PODATKOV'!D92=TRUE,TRUE,FALSE)","v":false},null,{"$f":"'VNOS PODATKOV'!C92","v":"objekt z vplivi na okolje"}]
[{"$f":"IF('VNOS PODATKOV'!D98=TRUE,TRUE,FALSE)","v":false},null,{"$f":"'VNOS PODATKOV'!C98","v":"predhodna presoja vplivov na okolje"}]
[]
[{"$f":"'VNOS PODATKOV'!C101","v":"DOVOLJENJA ZA OBSTOJEČI OBJEKT"}]
[{"$f":"'VNOS PODATKOV'!C102","v":"podatek se vpiše, če se gradnja nanaša na obstoječ objekt (rekonstrukcija, odstranitev, sprememba namembnosti, novogradnja - prizidava)"}]
[{"$f":"IF('VNOS PODATKOV'!D106=TRUE,TRUE,FALSE)","v":false},null,{"$f":"'VNOS PODATKOV'!C106","v":"objekt, zgrajen pred 31. 12. 1967"}]
[{"$f":"'VNOS PODATKOV'!C108","v":"številka GD ali odločbe o legalizaciji ali odločbe o objektu daljšega obstoja"},null,{"$f":"'VNOS PODATKOV'!D108","v":0}]
[{"$f":"'VNOS PODATKOV'!C107","v":"navedba upravnega organa, ki je izdal odločbo"},null,{"$f":"'VNOS PODATKOV'!D107","v":0}]
[{"$f":"'VNOS PODATKOV'!C109","v":"datum odločbe"},null,{"$f":"'VNOS PODATKOV'!D109","v":"00:00:00"}]
[]
[null,null,"Na podlagi navedenih podatkov in priloženega projekta ter ostalih priloženih listin vas prosim za izdajo gradbenega dovoljenja."]
[]
["datum",null,"podpis vložnika"]
[{"$f":"TODAY()","v":"2023-06-07"}]
[]
[]
["PRILOGE"]
["ustrezno označi"]
["MNENJA ALI DOKAZILO, DA JE BILA ZAHTEVA ZA MNEJE PODANA, \nV KOLIKOR MNENJE NI BILO IZDANO"]
[null,null,"OBČINA"]
[null,null,"SKLADNOST S PROSTORSKIMI AKTI"]
[null,null,"VAROVANA OBMOČJA"]
[null,null,"KULTUROVARSTVENO MNENJE ZA POSEG"]
[null,null,"KULTUROVARSTVENO MNENJE ZA RAZISKAVO IN ODSTRANITEV"]
[null,null,"NARAVOVARSTVENO SOGLASJE"]
[null,null,"MNENJE ZA POSEG V JAME"]
[null,null,"VODNO MNENJE"]
[null,null,"MNENJE ZA GRADNJO V GOZDNEM PROSTORU"]
[null,null,"MNENJE ZA GRADNJO IN DRUGE POSEGE NA OBMOČJU RIBIŠKEGA OKOLIŠA"]
[null,null,"MNENJE ZA POSEGE V OKOLJE DIVJADI"]
[null,null,"MNENJE ZA GRADNJO NA OBMOČJU MEJNEGA PREHODA"]
[null,null,"MNENJE ZA GRADNJO OBJEKTOV V PROSTI CONI CARINSKEGA OBMOČJA UNIJE"]
[null,null,"VAROVALNI PASOVI INFRASTRUKTURE"]
[null,null,"VODOVOD"]
[null,null,"ELEKTRIKA"]
[null,null,"PLIN"]
[null,null,"TOPLOVOD"]
[null,null,"FEKALNE VODE"]
[null,null,"METEORNE VODE"]
[null,null,"KOMUNIKACIJSKI VODI"]
[null,null,"JAVNE CESTE"]
[null,null,"ŽELEZNICE, PRAGOVNI PAS"]
[null,null,"ŽELEZNICE, INTEROPERABILNOST"]
[null,null,"LETALIŠČA"]
[null,null,"VARNOST PLOVBE"]
[null,null,"OBJEKT V MEJAH RUDNIŠKEGA PROSTORA"]
[null,null,"OBJEKT V VAROVALNEM PASU ŽIČNIŠKE NAPRAVE"]
[null,null,"PRIKLJUČEVANJE NA INFRASTRUKTURO"]
[null,null,"VODOVOD"]
[null,null,"ELEKTRIKA"]
[null,null,"PLIN"]
[null,null,"TOPLOVOD"]
[null,null,"FEKALNE VODE"]
[null,null,"METEORNE VODE"]
[null,null,"DOSTOP"]
[null,null,"DRUGA MNENJA"]
[null,null,"JEDRSKA VARNOST"]
[null,null,"SEVALNA VARNOST"]
[null,null,"KMETIJSKO GOSPODARSTVO"]
[null,null,"VETERINA"]
[null,null,"OBRAMBA"]
[]
["IZKAZOVANJE PRAVICE GRADITI"]
[null,false,"Lastninska ali druga stvarna pravica na nepremičninah, na katerih se bo izvajala gradnja, je vpisana v zemljiški knjigi"]
[null,false,"Iz uradnih evidenc je razvidno, da je investitor zakoniti upravljavec nepremičnine, na kateri se bo izvajala gradnja"]
[null,false,"Pravico graditi izkazujem z listinami:"]
[null,false,"Notarsko overjena pogodba o pridobitvi lastninske ali druge stvarne pravice na nepremičninah, na katerih se bo izvajala gradnja, ki je predlagana za vpis v zemljiško knjigo,"]
[null,false,"Sodna ali upravna odločba, ki investitorju omogoča gradnjo oziroma izvajanje del"]
[null,null,"Sklep o določitvi investitorja kot upravljavca nepremičnine, če gre za nepremičnino v lasti njegovega ustanovitelja"]
[null,null,"Druga listina, ki v skladu z zakonom investitorju omogoča gradnjo oziroma izvajanje del"]
[null,false,"Soglasje upravljavca javne ceste za izvedbo gradnje v cestnem telesu, če gre za gradnjo objekta gospodarske javne infrastrukture, skupaj s priključki, ki se izvaja v cestnem telesu javne ceste"]
[null,false,"Notarsko overjena pogodba o pridobitvi obligacijske pravice, za nepremičnine na katerih so predvidene začasne ureditve za potrebe gradnje"]
["OSTALE PRILOGE"]
[null,null,"Pooblastilo (če zahteve ne vlaga investitor)"]
[null,null,"Dokumentacija za pridobitev gradbenega dovoljenja za nezahtevne objekte (DNZO)"]
[null,null,"Dokazilo o obstoju objekta pred 31.12.1967"]
[null,null,"Pisne izjave strank da se strinjajo z nameravano gradnjo, če so pridobljene"]
[null,null,"Druge priloge (navesti katere):"]

{"sheet":"12 GD SPREM","index":8,"n_rows":169,"n_cols":6,"rows_kept":169,"cut":false,"hidden":false,"merged":[[169,2,169,5],[170,2,170,5],[157,0,157,5],[163,2,163,5],[165,2,165,5],[166,2,166,5],[167,2,167,5],[168,2,168,5],[147,0,147,5],[137,2,137,5],[138,2,138,5],[139,2,139,5],[140,2,140,5],[141,2,141,5],[151,2,151,5],[79,0,79,5],[1,0,1,2],[3,0,3,2],[31,2,31,5],[32,2,32,5],[46,0,46,5],[47,2,47,5],[48,2,48,5],[53,0,53,5],[54,0,54,5],[72,0,72,5],[142,2,142,5],[143,2,143,5],[144,2,144,5],[145,2,145,5]]}
["PRILOGA 12"]
["ZAHTEVA ZA SPREMEMBO \nGRADBENEGA DOVOLJENJA"]
[]
[{"$f":"'VNOS PODATKOV'!C22","v":"INVESTITOR"}]
[{"$f":"'VNOS PODATKOV'!C23","v":"INVESTITOR 1"}]
[{"$f":"'VNOS PODATKOV'!C24","v":"ime in priimek ali naziv družbe"},null,{"$f":"'VNOS PODATKOV'!D24","v":0}]
[{"$f":"'VNOS PODATKOV'!C25","v":"naslov ali sedež družbe"},null,{"$f":"'VNOS PODATKOV'!D25","v":0}]
[{"$f":"'VNOS PODATKOV'!C26","v":"davčna številka"},null,{"$f":"'VNOS PODATKOV'!D26","v":0}]
[{"$f":"'VNOS PODATKOV'!C27","v":"INVESTITOR 2"}]
[{"$f":"'VNOS PODATKOV'!C28","v":"ime in priimek ali naziv družbe"},null,{"$f":"'VNOS PODATKOV'!D28","v":0}]
[{"$f":"'VNOS PODATKOV'!C29","v":"naslov ali sedež družbe"},null,{"$f":"'VNOS PODATKOV'!D29","v":0}]
[{"$f":"'VNOS PODATKOV'!C30","v":"davčna številka"},null,{"$f":"'VNOS PODATKOV'!D30","v":0}]
[{"$f":"'VNOS PODATKOV'!C31","v":"INVESTITOR 3"}]
[{"$f":"'VNOS PODATKOV'!C32","v":"ime in priimek ali naziv družbe"},null,{"$f":"'VNOS PODATKOV'!D32","v":0}]
[{"$f":"'VNOS PODATKOV'!C33","v":"naslov ali sedež družbe"},null,{"$f":"'VNOS PODATKOV'!D33","v":0}]
[{"$f":"'VNOS PODATKOV'!C34","v":"davčna številka"},null,{"$f":"'VNOS PODATKOV'!D34","v":0}]
[]
[{"$f":"'VNOS PODATKOV'!C35","v":"KONTAKTNA OSEBA"}]
[{"$f":"'VNOS PODATKOV'!C36","v":"ime in priimek"},null,{"$f":"'VNOS PODATKOV'!D36","v":0}]
[{"$f":"'VNOS PODATKOV'!C37","v":"telefonska številka"},null,{"$f":"'VNOS PODATKOV'!D37","v":0}]
[{"$f":"'VNOS PODATKOV'!C38","v":"elektronski naslov"},null,{"$f":"'VNOS PODATKOV'!D38","v":0}]
[]
[{"$f":"'VNOS PODATKOV'!C39","v":"POOBLAŠČENEC"}]
[{"$f":"'VNOS PODATKOV'!C40","v":"podatki se vpišejo, kadar je imenovan pooblaščenec"}]
[{"$f":"'VNOS PODATKOV'!C42","v":"ime in priimek ali naziv družbe"},null,{"$f":"IF('VNOS PODATKOV'!D$41=TRUE,'VNOS PODATKOV'!D42, \"\")","v":""}]
[{"$f":"'VNOS PODATKOV'!C43","v":"naslov ali sedež družbe"},null,{"$f":"IF('VNOS PODATKOV'!D$41=TRUE,'VNOS PODATKOV'!D43, \"\")","v":""}]
[{"$f":"'VNOS PODATKOV'!C44","v":"kontaktna oseba"},null,{"$f":"IF('VNOS PODATKOV'!D$41=TRUE,'VNOS PODATKOV'!D44, \"\")","v":""}]
[{"$f":"'VNOS PODATKOV'!C45","v":"telefonska številka"},null,{"$f":"IF('VNOS PODATKOV'!D$41=TRUE,'VNOS PODATKOV'!D45, \"\")","v":""}]
[{"$f":"'VNOS PODATKOV'!C46","v":"elektronski naslov"},null,{"$f":"IF('VNOS PODATKOV'!D$41=TRUE,'VNOS PODATKOV'!D46, \"\")","v":""}]
[]
["NAVEDBA ORGANA, PRI KATEREM SE VLAGA ZAHTEVA"]
["naziv",null,{"$f":"'VNOS PODATKOV'!D181","v":0}]
["naslov",null,{"$f":"'VNOS PODATKOV'!D182","v":0}]
[]
[{"$f":"'VNOS PODATKOV'!C187","v":"PODATKI O IZDANEM GRADBENEM DOVOLJENJU"}]
[{"$f":"'VNOS PODATKOV'!C189","v":"navedba organa"},null,{"$f":"'VNOS PODATKOV'!D189","v":0}]
[{"$f":"'VNOS PODATKOV'!C190","v":"številka dovoljenja"},null,{"$f":"'VNOS PODATKOV'!D190","v":0}]
[{"$f":"'VNOS PODATKOV'!C191","v":"datum dovoljenja"},null,{"$f":"'VNOS PODATKOV'!D191","v":"2023-07-05"}]
[{"$f":"'VNOS PODATKOV'!C193","v":"pravnomočnost"},null,{"$f":"'VNOS PODATKOV'!D193","v":"2023-10-05"}]
[]
[{"$f":"'VNOS PODATKOV'!C194","v":"PODATKI O SPREMEMBI GRADBENEGA DOVOLJENJA"}]
[{"$f":"'VNOS PODATKOV'!C196","v":"navedba organa"},null,{"$f":"'VNOS PODATKOV'!D196","v":0}]
[{"$f":"'VNOS PODATKOV'!C197","v":"številka dovoljenja"},null,{"$f":"'VNOS PODATKOV'!D197","v":0}]
[{"$f":"'VNOS PODATKOV'!C198","v":"datum dovoljenja"},null,{"$f":"'VNOS PODATKOV'!D198","v":"2023-07-05"}]
[{"$f":"'VNOS PODATKOV'!C200","v":"pravnomočnost"},null,{"$f":"'VNOS PODATKOV'!D200","v":"2023-10-05"}]
[]
[{"$f":"'VNOS PODATKOV'!C71","v":"PODATKI O GRADNJI"}]
[{"$f":"'VNOS PODATKOV'!C74","v":"naziv gradnje"},null,{"$f":"'VNOS PODATKOV'!D74","v":0}]
["vsebina zahteve oz. opis, na kaj se spremembe nanašajo"]
[{"$f":"IF('VNOS PODATKOV'!D92=TRUE,TRUE,FALSE)","v":false},null,{"$f":"'VNOS PODATKOV'!C92","v":"objekt z vplivi na okolje"}]
[{"$f":"IF('VNOS PODATKOV'!D98=TRUE,TRUE,FALSE)","v":false},null,{"$f":"'VNOS PODATKOV'!C98","v":"predhodna presoja vplivov na okolje"}]
[null,true,"vloga se nanaša samo na nezahtevni objekt"]
[]
["ZEMLJIŠČA ZA GRADNJO",true]
["podatki se vpišejo, če se zaradi spremembe DGD posega na druga zemljišča\n"]
["številka katastrske občine"]
["katastrska občina"]
["parc. št."]
[]
["PODATKI O PROJEKTNI DOKUMENTACIJI ZA SPREMEMBO GRADBENEGA DOVOLJENJA"]
[{"$f":"'VNOS PODATKOV'!C66","v":"podatki se vpišejo, če dokumentacijo izdela projektant"}]
["vrsta dokumentacije",null,{"$f":"'VNOS PODATKOV'!D68","v":"DNZO (dokumentacija za pridobitev gradbenega dovoljenja za nezahtevne objekte)"}]
[{"$f":"'VNOS PODATKOV'!C69","v":"številka projekta"},null,{"$f":"'VNOS PODATKOV'!D69","v":0}]
[{"$f":"'VNOS PODATKOV'!C70","v":"datum izdelave"},null,{"$f":"'VNOS PODATKOV'!D70","v":"00:00:00"}]
[{"$f":"'VNOS PODATKOV'!C50","v":"projektant (naziv družbe)"},null,{"$f":"'VNOS PODATKOV'!D50","v":0}]
[{"$f":"'VNOS PODATKOV'!C51","v":"naslov"},null,{"$f":"'VNOS PODATKOV'!D51","v":0}]
[]
["PREDHODNA PRESOJA VPLIVOV NA OKOLJE"]
["podatki se vpišejo, če gre za objekt z vplivi na okolje in če je bil izveden predhodni postopek v skladu z zakonom, ki ureja varstvo okolja"]
["številka sklepa",null,{"$f":"'VNOS PODATKOV'!D99","v":0}]
["datum sklepa",null,{"$f":"'VNOS PODATKOV'!D100","v":"00:00:00"}]
[]
["POROČILO O VPLIVIH NA OKOLJE (PVO)"]
["podatki se vpišejo, kadar gre za objekt z vplivi na okolje"]
["številka poročila",null,{"$f":"'VNOS PODATKOV'!D93","v":0}]
["datum izdelave poročila",null,{"$f":"'VNOS PODATKOV'!D94","v":"00:00:00"}]
["izdelovalec poročila",null,{"$f":"'VNOS PODATKOV'!D95","v":0}]
[]
["MNENJA"]
["vpišejo se podatki za vsa pridobljena mnenja k spremembi DGD, če spremembe vplivajo na že pridobljena mnenja\n"]
[null,null,{"$f":"'VNOS PODATKOV'!E118","v":"navedba mnenjedajalca"},{"$f":"'VNOS PODATKOV'!I114","v":"datum podaje zahtevka za mnenje"},{"$f":"'VNOS PODATKOV'!J118","v":"številka mnenja"},{"$f":"'VNOS PODATKOV'!K118","v":"datum mnenja"}]
[{"$f":"'VNOS PODATKOV'!C112","v":"SKLADNOST S PROSTORSKIMI AKTI"}]
["OBČINA",null,{"$f":"'VNOS PODATKOV'!E115","v":0},{"$f":"'VNOS PODATKOV'!I115","v":"00:00:00"},{"$f":"'VNOS PODATKOV'!J115","v":0},{"$f":"'VNOS PODATKOV'!K115","v":"00:00:00"}]
[{"$f":"'VNOS PODATKOV'!C116","v":"VAROVANA, VARSTVENA IN OGROŽENA OBMOČJA, VODNA IN PRIOBALNA ZEMLJIŠČA"}]
[{"$f":"IFERROR(INDEX('VNOS PODATKOV'!$C$119:$K$136,MATCH(ROW()-ROW(A$84),'VNOS PODATKOV'!$L$119:$L$136,0),1),\"\")","v":"RIBIŠKI OKOLIŠ"},null,{"$f":"IFERROR(INDEX('VNOS PODATKOV'!$C$119:$K$136,MATCH(ROW()-ROW(A$84),'VNOS PODATKOV'!$L$119:$L$136,0),3),\"\")","v":"Zavod za ribištvo Slovenije"},{"$f":"IFERROR(INDEX('VNOS PODATKOV'!$C$119:$K$136,MATCH(ROW()-ROW(A$84),'VNOS PODATKOV'!$L$119:$L$136,0),7),\"\")","v":"00:00:00"},{"$f":"IFERROR(INDEX('VNOS PODATKOV'!$C$119:$K$136,MATCH(ROW()-ROW(A$84),'VNOS PODATKOV'!$L$119:$L$136,0),8),\"\")","v":0},{"$f":"IFERROR(INDEX('VNOS PODATKOV'!$C$119:$K$136,MATCH(ROW()-ROW(B$84),'VNOS PODATKOV'!$L$119:$L$136,0),9),\"\")","v":"00:00:00"}]
[{"$f":"IFERROR(INDEX('VNOS PODATKOV'!$C$119:$K$136,MATCH(ROW()-ROW(A$84),'VNOS PODATKOV'!$L$119:$L$136,0),1),\"\")","v":""},null,{"$f":"IFERROR(INDEX('VNOS PODATKOV'!$C$119:$K$136,MATCH(ROW()-ROW(A$84),'VNOS PODATKOV'!$L$119:$L$136,0),3),\"\")","v":""},{"$f":"IFERROR(INDEX('VNOS PODATKOV'!$C$119:$K$136,MATCH(ROW()-ROW(A$84),'VNOS PODATKOV'!$L$119:$L$136,0),7),\"\")","v":""},{"$f":"IFERROR(INDEX('VNOS PODATKOV'!$C$119:$K$136,MATCH(ROW()-ROW(A$84),'VNOS PODATKOV'!$L$119:$L$136,0),8),\"\")","v":""},{"$f":"IFERROR(INDEX('VNOS PODATKOV'!$C$119:$K$136,MATCH(ROW()-ROW(B$84),'VNOS PODATKOV'!$L$119:$L$136,0),9),\"\")","v":""}]
[{"$f":"IFERROR(INDEX('VNOS PODATKOV'!$C$119:$K$136,MATCH(ROW()-ROW(A$84),'VNOS PODATKOV'!$L$119:$L$136,0),1),\"\")","v":""},null,{"$f":"IFERROR(INDEX('VNOS PODATKOV'!$C$119:$K$136,MATCH(ROW()-ROW(A$84),'VNOS PODATKOV'!$L$119:$L$136,0),3),\"\")","v":""},{"$f":"IFERROR(INDEX('VNOS PODATKOV'!$C$119:$K$136,MATCH(ROW()-ROW(A$84),'VNOS PODATKOV'!$L$119:$L$136,0),7),\"\")","v":""},{"$f":"IFERROR(INDEX('VNOS PODATKOV'!$C$119:$K$136,MATCH(ROW()-ROW(A$84),'VNOS PODATKOV'!$L$119:$L$136,0),8),\"\")","v":""},{"$f":"IFERROR(INDEX('VNOS PODATKOV'!$C$119:$K$136,MATCH(ROW()-ROW(B$84),'VNOS PODATKOV'!$L$119:$L$136,0),9),\"\")","v":""}]
[{"$f":"IFERROR(INDEX('VNOS PODATKOV'!$C$119:$K$136,MATCH(ROW()-ROW(A$84),'VNOS PODATKOV'!$L$119:$L$136,0),1),\"\")","v":""},null,{"$f":"IFERROR(INDEX('VNOS PODATKOV'!$C$119:$K$136,MATCH(ROW()-ROW(A$84),'VNOS PODATKOV'!$L$119:$L$136,0),3),\"\")","v":""},{"$f":"IFERROR(INDEX('VNOS PODATKOV'!$C$119:$K$136,MATCH(ROW()-ROW(A$84),'VNOS PODATKOV'!$L$119:$L$136,0),7),\"\")","v":""},{"$f":"IFERROR(INDEX('VNOS PODATKOV'!$C$119:$K$136,MATCH(ROW()-ROW(A$84),'VNOS PODATKOV'!$L$119:$L$136,0),8),\"\")","v":""},{"$f":"IFERROR(INDEX('VNOS PODATKOV'!$C$119:$K$136,MATCH(ROW()-ROW(B$84),'VNOS PODATKOV'!$L$119:$L$136,0),9),\"\")","v":""}]
[{"$f":"IFERROR(INDEX('VNOS PODATKOV'!$C$119:$K$136,MATCH(ROW()-ROW(A$84),'VNOS PODATKOV'!$L$119:$L$136,0),1),\"\")","v":""},null,{"$f":"IFERROR(INDEX('VNOS PODATKOV'!$C$119:$K$136,MATCH(ROW()-ROW(A$84),'VNOS PODATKOV'!$L$119:$L$136,0),3),\"\")","v":""},{"$f":"IFERROR(INDEX('VNOS PODATKOV'!$C$119:$K$136,MATCH(ROW()-ROW(A$84),'VNOS PODATKOV'!$L$119:$L$136,0),7),\"\")","v":""},{"$f":"IFERROR(INDEX('VNOS PODATKOV'!$C$119:$K$136,MATCH(ROW()-ROW(A$84),'VNOS PODATKOV'!$L$119:$L$136,0),8),\"\")","v":""},{"$f":"IFERROR(INDEX('VNOS PODATKOV'!$C$119:$K$136,MATCH(ROW()-ROW(B$84),'VNOS PODATKOV'!$L$119:$L$136,0),9),\"\")","v":""}]
[{"$f":"IFERROR(INDEX('VNOS PODATKOV'!$C$119:$K$136,MATCH(ROW()-ROW(A$84),'VNOS PODATKOV'!$L$119:$L$136,0),1),\"\")","v":""},null,{"$f":"IFERROR(INDEX('VNOS PODATKOV'!$C$119:$K$136,MATCH(ROW()-ROW(A$84),'VNOS PODATKOV'!$L$119:$L$136,0),3),\"\")","v":""},{"$f":"IFERROR(INDEX('VNOS PODATKOV'!$C$119:$K$136,MATCH(ROW()-ROW(A$84),'VNOS PODATKOV'!$L$119:$L$136,0),7),\"\")","v":""},{"$f":"IFERROR(INDEX('VNOS PODATKOV'!$C$119:$K$136,MATCH(ROW()-ROW(A$84),'VNOS PODATKOV'!$L$119:$L$136,0),8),\"\")","v":""},{"$f":"IFERROR(INDEX('VNOS PODATKOV'!$C$119:$K$136,MATCH(ROW()-ROW(B$84),'VNOS PODATKOV'!$L$119:$L$136,0),9),\"\")","v":""}]
[{"$f":"IFERROR(INDEX('VNOS PODATKOV'!$C$119:$K$136,MATCH(ROW()-ROW(A$84),'VNOS PODATKOV'!$L$119:$L$136,0),1),\"\")","v":""},null,{"$f":"IFERROR(INDEX('VNOS PODATKOV'!$C$119:$K$136,MATCH(ROW()-ROW(A$84),'VNOS PODATKOV'!$L$119:$L$136,0),3),\"\")","v":""},{"$f":"IFERROR(INDEX('VNOS PODATKOV'!$C$119:$K$136,MATCH(ROW()-ROW(A$84),'VNOS PODATKOV'!$L$119:$L$136,0),7),\"\")","v":""},{"$f":"IFERROR(INDEX('VNOS PODATKOV'!$C$119:$K$136,MATCH(ROW()-ROW(A$84),'VNOS PODATKOV'!$L$119:$L$136,0),8),\"\")","v":""},{"$f":"IFERROR(INDEX('VNOS PODATKOV'!$C$119:$K$136,MATCH(ROW()-ROW(B$84),'VNOS PODATKOV'!$L$119:$L$136,0),9),\"\")","v":""}]
[{"$f":"IFERROR(INDEX('VNOS PODATKOV'!$C$119:$K$136,MATCH(ROW()-ROW(A$84),'VNOS PODATKOV'!$L$119:$L$136,0),1),\"\")","v":""},null,{"$f":"IFERROR(INDEX('VNOS PODATKOV'!$C$119:$K$136,MATCH(ROW()-ROW(A$84),'VNOS PODATKOV'!$L$119:$L$136,0),3),\"\")","v":""},{"$f":"IFERROR(INDEX('VNOS PODATKOV'!$C$119:$K$136,MATCH(ROW()-ROW(A$84),'VNOS PODATKOV'!$L$119:$L$136,0),7),\"\")","v":""},{"$f":"IFERROR(INDEX('VNOS PODATKOV'!$C$119:$K$136,MATCH(ROW()-ROW(A$84),'VNOS PODATKOV'!$L$119:$L$136,0),8),\"\")","v":""},{"$f":"IFERROR(INDEX('VNOS PODATKOV'!$C$119:$K$136,MATCH(ROW()-ROW(B$84),'VNOS PODATKOV'!$L$119:$L$136,0),9),\"\")","v":""}]
[{"$f":"IFERROR(INDEX('VNOS PODATKOV'!$C$119:$K$136,MATCH(ROW()-ROW(A$84),'VNOS PODATKOV'!$L$119:$L$136,0),1),\"\")","v":""},null,{"$f":"IFERROR(INDEX('VNOS PODATKOV'!$C$119:$K$136,MATCH(ROW()-ROW(A$84),'VNOS PODATKOV'!$L$119:$L$136,0),3),\"\")","v":""},{"$f":"IFERROR(INDEX('VNOS PODATKOV'!$C$119:$K$136,MATCH(ROW()-ROW(A$84),'VNOS PODATKOV'!$L$119:$L$136,0),7),\"\")","v":""},{"$f":"IFERROR(INDEX('VNOS PODATKOV'!$C$119:$K$136,MATCH(ROW()-ROW(A$84),'VNOS PODATKOV'!$L$119:$L$136,0),8),\"\")","v":""},{"$f":"IFERROR(INDEX('VNOS PODATKOV'!$C$119:$K$136,MATCH(ROW()-ROW(B$84),'VNOS PODATKOV'!$L$119:$L$136,0),9),\"\")","v":""}]
[{"$f":"IFERROR(INDEX('VNOS PODATKOV'!$C$119:$K$136,MATCH(ROW()-ROW(A$84),'VNOS PODATKOV'!$L$119:$L$136,0),1),\"\")","v":""},null,{"$f":"IFERROR(INDEX('VNOS PODATKOV'!$C$119:$K$136,MATCH(ROW()-ROW(A$84),'VNOS PODATKOV'!$L$119:$L$136,0),3),\"\")","v":""},{"$f":"IFERROR(INDEX('VNOS PODATKOV'!$C$119:$K$136,MATCH(ROW()-ROW(A$84),'VNOS PODATKOV'!$L$119:$L$136,0),7),\"\")","v":""},{"$f":"IFERROR(INDEX('VNOS PODATKOV'!$C$119:$K$136,MATCH(ROW()-ROW(A$84),'VNOS PODATKOV'!$L$119:$L$136,0),8),\"\")","v":""},{"$f":"IFERROR(INDEX('VNOS PODATKOV'!$C$119:$K$136,MATCH(ROW()-ROW(B$84),'VNOS PODATKOV'!$L$119:$L$136,0),9),\"\")","v":""}]
[{"$f":"IFERROR(INDEX('VNOS PODATKOV'!$C$119:$K$136,MATCH(ROW()-ROW(A$84),'VNOS PODATKOV'!$L$119:$L$136,0),1),\"\")","v":""},null,{"$f":"IFERROR(INDEX('VNOS PODATKOV'!$C$119:$K$136,MATCH(ROW()-ROW(A$84),'VNOS PODATKOV'!$L$119:$L$136,0),3),\"\")","v":""},{"$f":"IFERROR(INDEX('VNOS PODATKOV'!$C$119:$K$136,MATCH(ROW()-ROW(A$84),'VNOS PODATKOV'!$L$119:$L$136,0),7),\"\")","v":""},{"$f":"IFERROR(INDEX('VNOS PODATKOV'!$C$119:$K$136,MATCH(ROW()-ROW(A$84),'VNOS PODATKOV'!$L$119:$L$136,0),8),\"\")","v":""},{"$f":"IFERROR(INDEX('VNOS PODATKOV'!$C$119:$K$136,MATCH(ROW()-ROW(B$84),'VNOS PODATKOV'!$L$119:$L$136,0),9),\"\")","v":""}]
[{"$f":"IFERROR(INDEX('VNOS PODATKOV'!$C$119:$K$136,MATCH(ROW()-ROW(A$84),'VNOS PODATKOV'!$L$119:$L$136,0),1),\"\")","v":""},null,{"$f":"IFERROR(INDEX('VNOS PODATKOV'!$C$119:$K$136,MATCH(ROW()-ROW(A$84),'VNOS PODATKOV'!$L$119:$L$136,0),3),\"\")","v":""},{"$f":"IFERROR(INDEX('VNOS PODATKOV'!$C$119:$K$136,MATCH(ROW()-ROW(A$84),'VNOS PODATKOV'!$L$119:$L$136,0),7),\"\")","v":""},{"$f":"IFERROR(INDEX('VNOS PODATKOV'!$C$119:$K$136,MATCH(ROW()-ROW(A$84),'VNOS PODATKOV'!$L$119:$L$136,0),8),\"\")","v":""},{"$f":"IFERROR(INDEX('VNOS PODATKOV'!$C$119:$K$136,MATCH(ROW()-ROW(B$84),'VNOS PODATKOV'!$L$119:$L$136,0),9),\"\")","v":""}]
[{"$f":"IFERROR(INDEX('VNOS PODATKOV'!$C$119:$K$136,MATCH(ROW()-ROW(A$84),'VNOS PODATKOV'!$L$119:$L$136,0),1),\"\")","v":""},null,{"$f":"IFERROR(INDEX('VNOS PODATKOV'!$C$119:$K$136,MATCH(ROW()-ROW(A$84),'VNOS PODATKOV'!$L$119:$L$136,0),3),\"\")","v":""},{"$f":"IFERROR(INDEX('VNOS PODATKOV'!$C$119:$K$136,MATCH(ROW()-ROW(A$84),'VNOS PODATKOV'!$L$119:$L$136,0),7),\"\")","v":""},{"$f":"IFERROR(INDEX('VNOS PODATKOV'!$C$119:$K$136,MATCH(ROW()-ROW(A$84),'VNOS PODATKOV'!$L$119:$L$136,0),8),\"\")","v":""},{"$f":"IFERROR(INDEX('VNOS PODATKOV'!$C$119:$K$136,MATCH(ROW()-ROW(B$84),'VNOS PODATKOV'!$L$119:$L$136,0),9),\"\")","v":""}]
[{"$f":"IFERROR(INDEX('VNOS PODATKOV'!$C$119:$K$136,MATCH(ROW()-ROW(A$84),'VNOS PODATKOV'!$L$119:$L$136,0),1),\"\")","v":""},null,{"$f":"IFERROR(INDEX('VNOS PODATKOV'!$C$119:$K$136,MATCH(ROW()-ROW(A$84),'VNOS PODATKOV'!$L$119:$L$136,0),3),\"\")","v":""},{"$f":"IFERROR(INDEX('VNOS PODATKOV'!$C$119:$K$136,MATCH(ROW()-ROW(A$84),'VNOS PODATKOV'!$L$119:$L$136,0),7),\"\")","v":""},{"$f":"IFERROR(INDEX('VNOS PODATKOV'!$C$119:$K$136,MATCH(ROW()-ROW(A$84),'VNOS PODATKOV'!$L$119:$L$136,0),8),\"\")","v":""},{"$f":"IFERROR(INDEX('VNOS PODATKOV'!$C$119:$K$136,MATCH(ROW()-ROW(B$84),'VNOS PODATKOV'!$L$119:$L$136,0),9),\"\")","v":""}]
[{"$f":"IFERROR(INDEX('VNOS PODATKOV'!$C$119:$K$136,MATCH(ROW()-ROW(A$84),'VNOS PODATKOV'!$L$119:$L$136,0),1),\"\")","v":""},null,{"$f":"IFERROR(INDEX('VNOS PODATKOV'!$C$119:$K$136,MATCH(ROW()-ROW(A$84),'VNOS PODATKOV'!$L$119:$L$136,0),3),\"\")","v":""},{"$f":"IFERROR(INDEX('VNOS PODATKOV'!$C$119:$K$136,MATCH(ROW()-ROW(A$84),'VNOS PODATKOV'!$L$119:$L$136,0),7),\"\")","v":""},{"$f":"IFERROR(INDEX('VNOS PODATKOV'!$C$119:$K$136,MATCH(ROW()-ROW(A$84),'VNOS PODATKOV'!$L$119:$L$136,0),8),\"\")","v":""},{"$f":"IFERROR(INDEX('VNOS PODATKOV'!$C$119:$K$136,MATCH(ROW()-ROW(B$84),'VNOS PODATKOV'!$L$119:$L$136,0),9),\"\")","v":""}]
[{"$f":"'VNOS PODATKOV'!C137","v":"VAROVALNI PASOVI INFRASTRUKTURE"}]
[{"$f":"IFERROR(INDEX('VNOS PODATKOV'!$C$140:$K$152,MATCH(ROW()-ROW(A$100),'VNOS PODATKOV'!$L$140:$L$152,0),1),\"\")","v":""},null,{"$f":"IFERROR(INDEX('VNOS PODATKOV'!$C$140:$K$152,MATCH(ROW()-ROW(A$100),'VNOS PODATKOV'!$L$140:$L$152,0),3),\"\")","v":""},{"$f":"IFERROR(INDEX('VNOS PODATKOV'!$C$140:$K$152,MATCH(ROW()-ROW(A$100),'VNOS PODATKOV'!$L$140:$L$152,0),7),\"\")","v":""},{"$f":"IFERROR(INDEX('VNOS PODATKOV'!$C$140:$K$152,MATCH(ROW()-ROW(A$100),'VNOS PODATKOV'!$L$140:$L$152,0),8),\"\")","v":""},{"$f":"IFERROR(INDEX('VNOS PODATKOV'!$C$140:$K$152,MATCH(ROW()-ROW(B$100),'VNOS PODATKOV'!$L$140:$L$152,0),9),\"\")","v":""}]
[{"$f":"IFERROR(INDEX('VNOS PODATKOV'!$C$140:$K$152,MATCH(ROW()-ROW(A$100),'VNOS PODATKOV'!$L$140:$L$152,0),1),\"\")","v":""},null,{"$f":"IFERROR(INDEX('VNOS PODATKOV'!$C$140:$K$152,MATCH(ROW()-ROW(A$100),'VNOS PODATKOV'!$L$140:$L$152,0),3),\"\")","v":""},{"$f":"IFERROR(INDEX('VNOS PODATKOV'!$C$140:$K$152,MATCH(ROW()-ROW(A$100),'VNOS PODATKOV'!$L$140:$L$152,0),7),\"\")","v":""},{"$f":"IFERROR(INDEX('VNOS PODATKOV'!$C$140:$K$152,MATCH(ROW()-ROW(A$100),'VNOS PODATKOV'!$L$140:$L$152,0),8),\"\")","v":""},{"$f":"IFERROR(INDEX('VNOS PODATKOV'!$C$140:$K$152,MATCH(ROW()-ROW(B$100),'VNOS PODATKOV'!$L$140:$L$152,0),9),\"\")","v":""}]
[{"$f":"IFERROR(INDEX('VNOS PODATKOV'!$C$140:$K$152,MATCH(ROW()-ROW(A$100),'VNOS PODATKOV'!$L$140:$L$152,0),1),\"\")","v":""},null,{"$f":"IFERROR(INDEX('VNOS PODATKOV'!$C$140:$K$152,MATCH(ROW()-ROW(A$100),'VNOS PODATKOV'!$L$140:$L$152,0),3),\"\")","v":""},{"$f":"IFERROR(INDEX('VNOS PODATKOV'!$C$140:$K$152,MATCH(ROW()-ROW(A$100),'VNOS PODATKOV'!$L$140:$L$152,0),7),\"\")","v":""},{"$f":"IFERROR(INDEX('VNOS PODATKOV'!$C$140:$K$152,MATCH(ROW()-ROW(A$100),'VNOS PODATKOV'!$L$140:$L$152,0),8),\"\")","v":""},{"$f":"IFERROR(INDEX('VNOS PODATKOV'!$C$140:$K$152,MATCH(ROW()-ROW(B$100),'VNOS PODATKOV'!$L$140:$L$152,0),9),\"\")","v":""}]
[{"$f":"IFERROR(INDEX('VNOS PODATKOV'!$C$140:$K$152,MATCH(ROW()-ROW(A$100),'VNOS PODATKOV'!$L$140:$L$152,0),1),\"\")","v":""},null,{"$f":"IFERROR(INDEX('VNOS PODATKOV'!$C$140:$K$152,MATCH(ROW()-ROW(A$100),'VNOS PODATKOV'!$L$140:$L$152,0),3),\"\")","v":""},{"$f":"IFERROR(INDEX('VNOS PODATKOV'!$C$140:$K$152,MATCH(ROW()-ROW(A$100),'VNOS PODATKOV'!$L$140:$L$152,0),7),\"\")","v":""},{"$f":"IFERROR(INDEX('VNOS PODATKOV'!$C$140:$K$152,MATCH(ROW()-ROW(A$100),'VNOS PODATKOV'!$L$140:$L$152,0),8),\"\")","v":""},{"$f":"IFERROR(INDEX('VNOS PODATKOV'!$C$140:$K$152,MATCH(ROW()-ROW(B$100),'VNOS PODATKOV'!$L$140:$L$152,0),9),\"\")","v":""}]
[{"$f":"IFERROR(INDEX('VNOS PODATKOV'!$C$140:$K$152,MATCH(ROW()-ROW(A$100),'VNOS PODATKOV'!$L$140:$L$152,0),1),\"\")","v":""},null,{"$f":"IFERROR(INDEX('VNOS PODATKOV'!$C$140:$K$152,MATCH(ROW()-ROW(A$100),'VNOS PODATKOV'!$L$140:$L$152,0),3),\"\")","v":""},{"$f":"IFERROR(INDEX('VNOS PODATKOV'!$C$140:$K$152,MATCH(ROW()-ROW(A$100),'VNOS PODATKOV'!$L$140:$L$152,0),7),\"\")","v":""},{"$f":"IFERROR(INDEX('VNOS PODATKOV'!$C$140:$K$152,MATCH(ROW()-ROW(A$100),'VNOS PODATKOV'!$L$140:$L$152,0),8),\"\")","v":""},{"$f":"IFERROR(INDEX('VNOS PODATKOV'!$C$140:$K$152,MATCH(ROW()-ROW(B$100),'VNOS PODATKOV'!$L$140:$L$152,0),9),\"\")","v":""}]
[{"$f":"IFERROR(INDEX('VNOS PODATKOV'!$C$140:$K$152,MATCH(ROW()-ROW(A$100),'VNOS PODATKOV'!$L$140:$L$152,0),1),\"\")","v":""},null,{"$f":"IFERROR(INDEX('VNOS PODATKOV'!$C$140:$K$152,MATCH(ROW()-ROW(A$100),'VNOS PODATKOV'!$L$140:$L$152,0),3),\"\")","v":""},{"$f":"IFERROR(INDEX('VNOS PODATKOV'!$C$140:$K$152,MATCH(ROW()-ROW(A$100),'VNOS PODATKOV'!$L$140:$L$152,0),7),\"\")","v":""},{"$f":"IFERROR(INDEX('VNOS PODATKOV'!$C$140:$K$152,MATCH(ROW()-ROW(A$100),'VNOS PODATKOV'!$L$140:$L$152,0),8),\"\")","v":""},{"$f":"IFERROR(INDEX('VNOS PODATKOV'!$C$140:$K$152,MATCH(ROW()-ROW(B$100),'VNOS PODATKOV'!$L$140:$L$152,0),9),\"\")","v":""}]
[{"$f":"IFERROR(INDEX('VNOS PODATKOV'!$C$140:$K$152,MATCH(ROW()-ROW(A$100),'VNOS PODATKOV'!$L$140:$L$152,0),1),\"\")","v":""},null,{"$f":"IFERROR(INDEX('VNOS PODATKOV'!$C$140:$K$152,MATCH(ROW()-ROW(A$100),'VNOS PODATKOV'!$L$140:$L$152,0),3),\"\")","v":""},{"$f":"IFERROR(INDEX('VNOS PODATKOV'!$C$140:$K$152,MATCH(ROW()-ROW(A$100),'VNOS PODATKOV'!$L$140:$L$152,0),7),\"\")","v":""},{"$f":"IFERROR(INDEX('VNOS PODATKOV'!$C$140:$K$152,MATCH(ROW()-ROW(A$100),'VNOS PODATKOV'!$L$140:$L$152,0),8),\"\")","v":""},{"$f":"IFERROR(INDEX('VNOS PODATKOV'!$C$140:$K$152,MATCH(ROW()-ROW(B$100),'VNOS PODATKOV'!$L$140:$L$152,0),9),\"\")","v":""}]
[{"$f":"IFERROR(INDEX('VNOS PODATKOV'!$C$140:$K$152,MATCH(ROW()-ROW(A$100),'VNOS PODATKOV'!$L$140:$L$152,0),1),\"\")","v":""},null,{"$f":"IFERROR(INDEX('VNOS PODATKOV'!$C$140:$K$152,MATCH(ROW()-ROW(A$100),'VNOS PODATKOV'!$L$140:$L$152,0),3),\"\")","v":""},{"$f":"IFERROR(INDEX('VNOS PODATKOV'!$C$140:$K$152,MATCH(ROW()-ROW(A$100),'VNOS PODATKOV'!$L$140:$L$152,0),7),\"\")","v":""},{"$f":"IFERROR(INDEX('VNOS PODATKOV'!$C$140:$K$152,MATCH(ROW()-ROW(A$100),'VNOS PODATKOV'!$L$140:$L$152,0),8),\"\")","v":""},{"$f":"IFERROR(INDEX('VNOS PODATKOV'!$C$140:$K$152,MATCH(ROW()-ROW(B$100),'VNOS PODATKOV'!$L$140:$L$152,0),9),\"\")","v":""}]
[{"$f":"IFERROR(INDEX('VNOS PODATKOV'!$C$140:$K$152,MATCH(ROW()-ROW(A$100),'VNOS PODATKOV'!$L$140:$L$152,0),1),\"\")","v":""},null,{"$f":"IFERROR(INDEX('VNOS PODATKOV'!$C$140:$K$152,MATCH(ROW()-ROW(A$100),'VNOS PODATKOV'!$L$140:$L$152,0),3),\"\")","v":""},{"$f":"IFERROR(INDEX('VNOS PODATKOV'!$C$140:$K$152,MATCH(ROW()-ROW(A$100),'VNOS PODATKOV'!$L$140:$L$152,0),7),\"\")","v":""},{"$f":"IFERROR(INDEX('VNOS PODATKOV'!$C$140:$K$152,MATCH(ROW()-ROW(A$100),'VNOS PODATKOV'!$L$140:$L$152,0),8),\"\")","v":""},{"$f":"IFERROR(INDEX('VNOS PODATKOV'!$C$140:$K$152,MATCH(ROW()-ROW(B$100),'VNOS PODATKOV'!$L$140:$L$152,0),9),\"\")","v":""}]
[{"$f":"IFERROR(INDEX('VNOS PODATKOV'!$C$140:$K$152,MATCH(ROW()-ROW(A$100),'VNOS PODATKOV'!$L$140:$L$152,0),1),\"\")","v":""},null,{"$f":"IFERROR(INDEX('VNOS PODATKOV'!$C$140:$K$152,MATCH(ROW()-ROW(A$100),'VNOS PODATKOV'!$L$140:$L$152,0),3),\"\")","v":""},{"$f":"IFERROR(INDEX('VNOS PODATKOV'!$C$140:$K$152,MATCH(ROW()-ROW(A$100),'VNOS PODATKOV'!$L$140:$L$152,0),7),\"\")","v":""},{"$f":"IFERROR(INDEX('VNOS PODATKOV'!$C$140:$K$152,MATCH(ROW()-ROW(A$100),'VNOS PODATKOV'!$L$140:$L$152,0),8),\"\")","v":""},{"$f":"IFERROR(INDEX('VNOS PODATKOV'!$C$140:$K$152,MATCH(ROW()-ROW(B$100),'VNOS PODATKOV'!$L$140:$L$152,0),9),\"\")","v":""}]
[{"$f":"IFERROR(INDEX('VNOS PODATKOV'!$C$140:$K$152,MATCH(ROW()-ROW(A$100),'VNOS PODATKOV'!$L$140:$L$152,0),1),\"\")","v":""},null,{"$f":"IFERROR(INDEX('VNOS PODATKOV'!$C$140:$K$152,MATCH(ROW()-ROW(A$100),'VNOS PODATKOV'!$L$140:$L$152,0),3),\"\")","v":""},{"$f":"IFERROR(INDEX('VNOS PODATKOV'!$C$140:$K$152,MATCH(ROW()-ROW(A$100),'VNOS PODATKOV'!$L$140:$L$152,0),7),\"\")","v":""},{"$f":"IFERROR(INDEX('VNOS PODATKOV'!$C$140:$K$152,MATCH(ROW()-ROW(A$100),'VNOS PODATKOV'!$L$140:$L$152,0),8),\"\")","v":""},{"$f":"IFERROR(INDEX('VNOS PODATKOV'!$C$140:$K$152,MATCH(ROW()-ROW(B$100),'VNOS PODATKOV'!$L$140:$L$152,0),9),\"\")","v":""}]
[{"$f":"IFERROR(INDEX('VNOS PODATKOV'!$C$140:$K$152,MATCH(ROW()-ROW(A$100),'VNOS PODATKOV'!$L$140:$L$152,0),1),\"\")","v":""},null,{"$f":"IFERROR(INDEX('VNOS PODATKOV'!$C$140:$K$152,MATCH(ROW()-ROW(A$100),'VNOS PODATKOV'!$L$140:$L$152,0),3),\"\")","v":""},{"$f":"IFERROR(INDEX('VNOS PODATKOV'!$C$140:$K$152,MATCH(ROW()-ROW(A$100),'VNOS PODATKOV'!$L$140:$L$152,0),7),\"\")","v":""},{"$f":"IFERROR(INDEX('VNOS PODATKOV'!$C$140:$K$152,MATCH(ROW()-ROW(A$100),'VNOS PODATKOV'!$L$140:$L$152,0),8),\"\")","v":""},{"$f":"IFERROR(INDEX('VNOS PODATKOV'!$C$140:$K$152,MATCH(ROW()-ROW(B$100),'VNOS PODATKOV'!$L$140:$L$152,0),9),\"\")","v":""}]
[{"$f":"IFERROR(INDEX('VNOS PODATKOV'!$C$140:$K$152,MATCH(ROW()-ROW(A$100),'VNOS PODATKOV'!$L$140:$L$152,0),1),\"\")","v":""},null,{"$f":"IFERROR(INDEX('VNOS PODATKOV'!$C$140:$K$152,MATCH(ROW()-ROW(A$100),'VNOS PODATKOV'!$L$140:$L$152,0),3),\"\")","v":""},{"$f":"IFERROR(INDEX('VNOS PODATKOV'!$C$140:$K$152,MATCH(ROW()-ROW(A$100),'VNOS PODATKOV'!$L$140:$L$152,0),7),\"\")","v":""},{"$f":"IFERROR(INDEX('VNOS PODATKOV'!$C$140:$K$152,MATCH(ROW()-ROW(A$100),'VNOS PODATKOV'!$L$140:$L$152,0),8),\"\")","v":""},{"$f":"IFERROR(INDEX('VNOS PODATKOV'!$C$140:$K$152,MATCH(ROW()-ROW(B$100),'VNOS PODATKOV'!$L$140:$L$152,0),9),\"\")","v":""}]
[{"$f":"'VNOS PODATKOV'!C153","v":"PRIKLJUČEVANJE NA INFRASTRUKTURO"}]
[{"$f":"IFERROR(INDEX('VNOS PODATKOV'!$C$156:$K$166,MATCH(ROW()-ROW(A$114),'VNOS PODATKOV'!$L$156:$L$166,0),1),\"\")","v":""},null,{"$f":"IFERROR(INDEX('VNOS PODATKOV'!$C$156:$K$166,MATCH(ROW()-ROW(A$114),'VNOS PODATKOV'!$L$156:$L$166,0),3),\"\")","v":""},{"$f":"IFERROR(INDEX('VNOS PODATKOV'!$C$156:$K$166,MATCH(ROW()-ROW(A$114),'VNOS PODATKOV'!$L$156:$L$166,0),7),\"\")","v":""},{"$f":"IFERROR(INDEX('VNOS PODATKOV'!$C$156:$K$166,MATCH(ROW()-ROW(A$114),'VNOS PODATKOV'!$L$156:$L$166,0),8),\"\")","v":""},{"$f":"IFERROR(INDEX('VNOS PODATKOV'!$C$156:$K$166,MATCH(ROW()-ROW(A$114),'VNOS PODATKOV'!$L$156:$L$166,0),9),\"\")","v":""}]
[{"$f":"IFERROR(INDEX('VNOS PODATKOV'!$C$156:$K$166,MATCH(ROW()-ROW(A$114),'VNOS PODATKOV'!$L$156:$L$166,0),1),\"\")","v":""},null,{"$f":"IFERROR(INDEX('VNOS PODATKOV'!$C$156:$K$166,MATCH(ROW()-ROW(A$114),'VNOS PODATKOV'!$L$156:$L$166,0),3),\"\")","v":""},{"$f":"IFERROR(INDEX('VNOS PODATKOV'!$C$156:$K$166,MATCH(ROW()-ROW(A$114),'VNOS PODATKOV'!$L$156:$L$166,0),7),\"\")","v":""},{"$f":"IFERROR(INDEX('VNOS PODATKOV'!$C$156:$K$166,MATCH(ROW()-ROW(A$114),'VNOS PODATKOV'!$L$156:$L$166,0),8),\"\")","v":""},{"$f":"IFERROR(INDEX('VNOS PODATKOV'!$C$156:$K$166,MATCH(ROW()-ROW(A$114),'VNOS PODATKOV'!$L$156:$L$166,0),9),\"\")","v":""}]
[{"$f":"IFERROR(INDEX('VNOS PODATKOV'!$C$156:$K$166,MATCH(ROW()-ROW(A$114),'VNOS PODATKOV'!$L$156:$L$166,0),1),\"\")","v":""},null,{"$f":"IFERROR(INDEX('VNOS PODATKOV'!$C$156:$K$166,MATCH(ROW()-ROW(A$114),'VNOS PODATKOV'!$L$156:$L$166,0),3),\"\")","v":""},{"$f":"IFERROR(INDEX('VNOS PODATKOV'!$C$156:$K$166,MATCH(ROW()-ROW(A$114),'VNOS PODATKOV'!$L$156:$L$166,0),7),\"\")","v":""},{"$f":"IFERROR(INDEX('VNOS PODATKOV'!$C$156:$K$166,MATCH(ROW()-ROW(A$114),'VNOS PODATKOV'!$L$156:$L$166,0),8),\"\")","v":""},{"$f":"IFERROR(INDEX('VNOS PODATKOV'!$C$156:$K$166,MATCH(ROW()-ROW(A$114),'VNOS PODATKOV'!$L$156:$L$166,0),9),\"\")","v":""}]
[{"$f":"IFERROR(INDEX('VNOS PODATKOV'!$C$156:$K$166,MATCH(ROW()-ROW(A$114),'VNOS PODATKOV'!$L$156:$L$166,0),1),\"\")","v":""},null,{"$f":"IFERROR(INDEX('VNOS PODATKOV'!$C$156:$K$166,MATCH(ROW()-ROW(A$114),'VNOS PODATKOV'!$L$156:$L$166,0),3),\"\")","v":""},{"$f":"IFERROR(INDEX('VNOS PODATKOV'!$C$156:$K$166,MATCH(ROW()-ROW(A$114),'VNOS PODATKOV'!$L$156:$L$166,0),7),\"\")","v":""},{"$f":"IFERROR(INDEX('VNOS PODATKOV'!$C$156:$K$166,MATCH(ROW()-ROW(A$114),'VNOS PODATKOV'!$L$156:$L$166,0),8),\"\")","v":""},{"$f":"IFERROR(INDEX('VNOS PODATKOV'!$C$156:$K$166,MATCH(ROW()-ROW(A$114),'VNOS PODATKOV'!$L$156:$L$166,0),9),\"\")","v":""}]
[{"$f":"IFERROR(INDEX('VNOS PODATKOV'!$C$156:$K$166,MATCH(ROW()-ROW(A$114),'VNOS PODATKOV'!$L$156:$L$166,0),1),\"\")","v":""},null,{"$f":"IFERROR(INDEX('VNOS PODATKOV'!$C$156:$K$166,MATCH(ROW()-ROW(A$114),'VNOS PODATKOV'!$L$156:$L$166,0),3),\"\")","v":""},{"$f":"IFERROR(INDEX('VNOS PODATKOV'!$C$156:$K$166,MATCH(ROW()-ROW(A$114),'VNOS PODATKOV'!$L$156:$L$166,0),7),\"\")","v":""},{"$f":"IFERROR(INDEX('VNOS PODATKOV'!$C$156:$K$166,MATCH(ROW()-ROW(A$114),'VNOS PODATKOV'!$L$156:$L$166,0),8),\"\")","v":""},{"$f":"IFERROR(INDEX('VNOS PODATKOV'!$C$156:$K$166,MATCH(ROW()-ROW(A$114),'VNOS PODATKOV'!$L$156:$L$166,0),9),\"\")","v":""}]
[{"$f":"IFERROR(INDEX('VNOS PODATKOV'!$C$156:$K$166,MATCH(ROW()-ROW(A$114),'VNOS PODATKOV'!$L$156:$L$166,0),1),\"\")","v":""},null,{"$f":"IFERROR(INDEX('VNOS PODATKOV'!$C$156:$K$166,MATCH(ROW()-ROW(A$114),'VNOS PODATKOV'!$L$156:$L$166,0),3),\"\")","v":""},{"$f":"IFERROR(INDEX('VNOS PODATKOV'!$C$156:$K$166,MATCH(ROW()-ROW(A$114),'VNOS PODATKOV'!$L$156:$L$166,0),7),\"\")","v":""},{"$f":"IFERROR(INDEX('VNOS PODATKOV'!$C$156:$K$166,MATCH(ROW()-ROW(A$114),'VNOS PODATKOV'!$L$156:$L$166,0),8),\"\")","v":""},{"$f":"IFERROR(INDEX('VNOS PODATKOV'!$C$156:$K$166,MATCH(ROW()-ROW(A$114),'VNOS PODATKOV'!$L$156:$L$166,0),9),\"\")","v":""}]
[{"$f":"IFERROR(INDEX('VNOS PODATKOV'!$C$156:$K$166,MATCH(ROW()-ROW(A$114),'VNOS PODATKOV'!$L$156:$L$166,0),1),\"\")","v":""},null,{"$f":"IFERROR(INDEX('VNOS PODATKOV'!$C$156:$K$166,MATCH(ROW()-ROW(A$114),'VNOS PODATKOV'!$L$156:$L$166,0),3),\"\")","v":""},{"$f":"IFERROR(INDEX('VNOS PODATKOV'!$C$156:$K$166,MATCH(ROW()-ROW(A$114),'VNOS PODATKOV'!$L$156:$L$166,0),7),\"\")","v":""},{"$f":"IFERROR(INDEX('VNOS PODATKOV'!$C$156:$K$166,MATCH(ROW()-ROW(A$114),'VNOS PODATKOV'!$L$156:$L$166,0),8),\"\")","v":""},{"$f":"IFERROR(INDEX('VNOS PODATKOV'!$C$156:$K$166,MATCH(ROW()-ROW(A$114),'VNOS PODATKOV'!$L$156:$L$166,0),9),\"\")","v":""}]
[{"$f":"IFERROR(INDEX('VNOS PODATKOV'!$C$156:$K$166,MATCH(ROW()-ROW(A$114),'VNOS PODATKOV'!$L$156:$L$166,0),1),\"\")","v":""},null,{"$f":"IFERROR(INDEX('VNOS PODATKOV'!$C$156:$K$166,MATCH(ROW()-ROW(A$114),'VNOS PODATKOV'!$L$156:$L$166,0),3),\"\")","v":""},{"$f":"IFERROR(INDEX('VNOS PODATKOV'!$C$156:$K$166,MATCH(ROW()-ROW(A$114),'VNOS PODATKOV'!$L$156:$L$166,0),7),\"\")","v":""},{"$f":"IFERROR(INDEX('VNOS PODATKOV'!$C$156:$K$166,MATCH(ROW()-ROW(A$114),'VNOS PODATKOV'!$L$156:$L$166,0),8),\"\")","v":""},{"$f":"IFERROR(INDEX('VNOS PODATKOV'!$C$156:$K$166,MATCH(ROW()-ROW(A$114),'VNOS PODATKOV'!$L$156:$L$166,0),9),\"\")","v":""}]
[{"$f":"IFERROR(INDEX('VNOS PODATKOV'!$C$156:$K$166,MATCH(ROW()-ROW(A$114),'VNOS PODATKOV'!$L$156:$L$166,0),1),\"\")","v":""},null,{"$f":"IFERROR(INDEX('VNOS PODATKOV'!$C$156:$K$166,MATCH(ROW()-ROW(A$114),'VNOS PODATKOV'!$L$156:$L$166,0),3),\"\")","v":""},{"$f":"IFERROR(INDEX('VNOS PODATKOV'!$C$156:$K$166,MATCH(ROW()-ROW(A$114),'VNOS PODATKOV'!$L$156:$L$166,0),7),\"\")","v":""},{"$f":"IFERROR(INDEX('VNOS PODATKOV'!$C$156:$K$166,MATCH(ROW()-ROW(A$114),'VNOS PODATKOV'!$L$156:$L$166,0),8),\"\")","v":""},{"$f":"IFERROR(INDEX('VNOS PODATKOV'!$C$156:$K$166,MATCH(ROW()-ROW(A$114),'VNOS PODATKOV'!$L$156:$L$166,0),9),\"\")","v":""}]
[{"$f":"IFERROR(INDEX('VNOS PODATKOV'!$C$156:$K$166,MATCH(ROW()-ROW(A$114),'VNOS PODATKOV'!$L$156:$L$166,0),1),\"\")","v":""},null,{"$f":"IFERROR(INDEX('VNOS PODATKOV'!$C$156:$K$166,MATCH(ROW()-ROW(A$114),'VNOS PODATKOV'!$L$156:$L$166,0),3),\"\")","v":""},{"$f":"IFERROR(INDEX('VNOS PODATKOV'!$C$156:$K$166,MATCH(ROW()-ROW(A$114),'VNOS PODATKOV'!$L$156:$L$166,0),7),\"\")","v":""},{"$f":"IFERROR(INDEX('VNOS PODATKOV'!$C$156:$K$166,MATCH(ROW()-ROW(A$114),'VNOS PODATKOV'!$L$156:$L$166,0),8),\"\")","v":""},{"$f":"IFERROR(INDEX('VNOS PODATKOV'!$C$156:$K$166,MATCH(ROW()-ROW(A$114),'VNOS PODATKOV'!$L$156:$L$166,0),9),\"\")","v":""}]
[{"$f":"IFERROR(INDEX('VNOS PODATKOV'!$C$156:$K$166,MATCH(ROW()-ROW(A$114),'VNOS PODATKOV'!$L$156:$L$166,0),1),\"\")","v":""},null,{"$f":"IFERROR(INDEX('VNOS PODATKOV'!$C$156:$K$166,MATCH(ROW()-ROW(A$114),'VNOS PODATKOV'!$L$156:$L$166,0),3),\"\")","v":""},{"$f":"IFERROR(INDEX('VNOS PODATKOV'!$C$156:$K$166,MATCH(ROW()-ROW(A$114),'VNOS PODATKOV'!$L$156:$L$166,0),7),\"\")","v":""},{"$f":"IFERROR(INDEX('VNOS PODATKOV'!$C$156:$K$166,MATCH(ROW()-ROW(A$114),'VNOS PODATKOV'!$L$156:$L$166,0),8),\"\")","v":""},{"$f":"IFERROR(INDEX('VNOS PODATKOV'!$C$156:$K$166,MATCH(ROW()-ROW(A$114),'VNOS PODATKOV'!$L$156:$L$166,0),9),\"\")","v":""}]
[{"$f":"'VNOS PODATKOV'!C167","v":"DRUGA MNENJA"}]
[{"$f":"IFERROR(INDEX('VNOS PODATKOV'!$C$170:$K$177,MATCH(ROW()-ROW(A$126),'VNOS PODATKOV'!$L$170:$L$177,0),1),\"\")","v":""},null,{"$f":"IFERROR(INDEX('VNOS PODATKOV'!$C$170:$K$177,MATCH(ROW()-ROW(A$126),'VNOS PODATKOV'!$L$170:$L$177,0),3),\"\")","v":""},{"$f":"IFERROR(INDEX('VNOS PODATKOV'!$C$170:$K$177,MATCH(ROW()-ROW(C$126),'VNOS PODATKOV'!$L$170:$L$177,0),7),\"\")","v":""},{"$f":"IFERROR(INDEX('VNOS PODATKOV'!$C$170:$K$177,MATCH(ROW()-ROW(C$126),'VNOS PODATKOV'!$L$170:$L$177,0),8),\"\")","v":""},{"$f":"IFERROR(INDEX('VNOS PODATKOV'!$C$170:$K$177,MATCH(ROW()-ROW(C$126),'VNOS PODATKOV'!$L$170:$L$177,0),9),\"\")","v":""}]
[{"$f":"IFERROR(INDEX('VNOS PODATKOV'!$C$170:$K$177,MATCH(ROW()-ROW(A$126),'VNOS PODATKOV'!$L$170:$L$177,0),1),\"\")","v":""},null,{"$f":"IFERROR(INDEX('VNOS PODATKOV'!$C$170:$K$177,MATCH(ROW()-ROW(A$126),'VNOS PODATKOV'!$L$170:$L$177,0),3),\"\")","v":""},{"$f":"IFERROR(INDEX('VNOS PODATKOV'!$C$170:$K$177,MATCH(ROW()-ROW(C$126),'VNOS PODATKOV'!$L$170:$L$177,0),7),\"\")","v":""},{"$f":"IFERROR(INDEX('VNOS PODATKOV'!$C$170:$K$177,MATCH(ROW()-ROW(C$126),'VNOS PODATKOV'!$L$170:$L$177,0),8),\"\")","v":""},{"$f":"IFERROR(INDEX('VNOS PODATKOV'!$C$170:$K$177,MATCH(ROW()-ROW(C$126),'VNOS PODATKOV'!$L$170:$L$177,0),9),\"\")","v":""}]
[{"$f":"IFERROR(INDEX('VNOS PODATKOV'!$C$170:$K$177,MATCH(ROW()-ROW(A$126),'VNOS PODATKOV'!$L$170:$L$177,0),1),\"\")","v":""},null,{"$f":"IFERROR(INDEX('VNOS PODATKOV'!$C$170:$K$177,MATCH(ROW()-ROW(A$126),'VNOS PODATKOV'!$L$170:$L$177,0),3),\"\")","v":""},{"$f":"IFERROR(INDEX('VNOS PODATKOV'!$C$170:$K$177,MATCH(ROW()-ROW(C$126),'VNOS PODATKOV'!$L$170:$L$177,0),7),\"\")","v":""},{"$f":"IFERROR(INDEX('VNOS PODATKOV'!$C$170:$K$177,MATCH(ROW()-ROW(C$126),'VNOS PODATKOV'!$L$170:$L$177,0),8),\"\")","v":""},{"$f":"IFERROR(INDEX('VNOS PODATKOV'!$C$170:$K$177,MATCH(ROW()-ROW(C$126),'VNOS PODATKOV'!$L$170:$L$177,0),9),\"\")","v":""}]
[{"$f":"IFERROR(INDEX('VNOS PODATKOV'!$C$170:$K$177,MATCH(ROW()-ROW(A$126),'VNOS PODATKOV'!$L$170:$L$177,0),1),\"\")","v":""},null,{"$f":"IFERROR(INDEX('VNOS PODATKOV'!$C$170:$K$177,MATCH(ROW()-ROW(A$126),'VNOS PODATKOV'!$L$170:$L$177,0),3),\"\")","v":""},{"$f":"IFERROR(INDEX('VNOS PODATKOV'!$C$170:$K$177,MATCH(ROW()-ROW(C$126),'VNOS PODATKOV'!$L$170:$L$177,0),7),\"\")","v":""},{"$f":"IFERROR(INDEX('VNOS PODATKOV'!$C$170:$K$177,MATCH(ROW()-ROW(C$126),'VNOS PODATKOV'!$L$170:$L$177,0),8),\"\")","v":""},{"$f":"IFERROR(INDEX('VNOS PODATKOV'!$C$170:$K$177,MATCH(ROW()-ROW(C$126),'VNOS PODATKOV'!$L$170:$L$177,0),9),\"\")","v":""}]
[{"$f":"IFERROR(INDEX('VNOS PODATKOV'!$C$170:$K$177,MATCH(ROW()-ROW(A$126),'VNOS PODATKOV'!$L$170:$L$177,0),1),\"\")","v":""},null,{"$f":"IFERROR(INDEX('VNOS PODATKOV'!$C$170:$K$177,MATCH(ROW()-ROW(A$126),'VNOS PODATKOV'!$L$170:$L$177,0),3),\"\")","v":""},{"$f":"IFERROR(INDEX('VNOS PODATKOV'!$C$170:$K$177,MATCH(ROW()-ROW(C$126),'VNOS PODATKOV'!$L$170:$L$177,0),7),\"\")","v":""},{"$f":"IFERROR(INDEX('VNOS PODATKOV'!$C$170:$K$177,MATCH(ROW()-ROW(C$126),'VNOS PODATKOV'!$L$170:$L$177,0),8),\"\")","v":""},{"$f":"IFERROR(INDEX('VNOS PODATKOV'!$C$170:$K$177,MATCH(ROW()-ROW(C$126),'VNOS PODATKOV'!$L$170:$L$177,0),9),\"\")","v":""}]
[{"$f":"IFERROR(INDEX('VNOS PODATKOV'!$C$170:$K$177,MATCH(ROW()-ROW(A$126),'VNOS PODATKOV'!$L$170:$L$177,0),1),\"\")","v":""},null,{"$f":"IFERROR(INDEX('VNOS PODATKOV'!$C$170:$K$177,MATCH(ROW()-ROW(A$126),'VNOS PODATKOV'!$L$170:$L$177,0),3),\"\")","v":""},{"$f":"IFERROR(INDEX('VNOS PODATKOV'!$C$170:$K$177,MATCH(ROW()-ROW(C$126),'VNOS PODATKOV'!$L$170:$L$177,0),7),\"\")","v":""},{"$f":"IFERROR(INDEX('VNOS PODATKOV'!$C$170:$K$177,MATCH(ROW()-ROW(C$126),'VNOS PODATKOV'!$L$170:$L$177,0),8),\"\")","v":""},{"$f":"IFERROR(INDEX('VNOS PODATKOV'!$C$170:$K$177,MATCH(ROW()-ROW(C$126),'VNOS PODATKOV'!$L$170:$L$177,0),9),\"\")","v":""}]
[{"$f":"IFERROR(INDEX('VNOS PODATKOV'!$C$170:$K$177,MATCH(ROW()-ROW(A$126),'VNOS PODATKOV'!$L$170:$L$177,0),1),\"\")","v":""},null,{"$f":"IFERROR(INDEX('VNOS PODATKOV'!$C$170:$K$177,MATCH(ROW()-ROW(A$126),'VNOS PODATKOV'!$L$170:$L$177,0),3),\"\")","v":""},{"$f":"IFERROR(INDEX('VNOS PODATKOV'!$C$170:$K$177,MATCH(ROW()-ROW(C$126),'VNOS PODATKOV'!$L$170:$L$177,0),7),\"\")","v":""},{"$f":"IFERROR(INDEX('VNOS PODATKOV'!$C$170:$K$177,MATCH(ROW()-ROW(C$126),'VNOS PODATKOV'!$L$170:$L$177,0),8),\"\")","v":""},{"$f":"IFERROR(INDEX('VNOS PODATKOV'!$C$170:$K$177,MATCH(ROW()-ROW(C$126),'VNOS PODATKOV'!$L$170:$L$177,0),9),\"\")","v":""}]
[{"$f":"IFERROR(INDEX('VNOS PODATKOV'!$C$170:$K$177,MATCH(ROW()-ROW(A$126),'VNOS PODATKOV'!$L$170:$L$177,0),1),\"\")","v":""},null,{"$f":"IFERROR(INDEX('VNOS PODATKOV'!$C$170:$K$177,MATCH(ROW()-ROW(A$126),'VNOS PODATKOV'!$L$170:$L$177,0),3),\"\")","v":""},{"$f":"IFERROR(INDEX('VNOS PODATKOV'!$C$170:$K$177,MATCH(ROW()-ROW(C$126),'VNOS PODATKOV'!$L$170:$L$177,0),7),\"\")","v":""},{"$f":"IFERROR(INDEX('VNOS PODATKOV'!$C$170:$K$177,MATCH(ROW()-ROW(C$126),'VNOS PODATKOV'!$L$170:$L$177,0),8),\"\")","v":""},{"$f":"IFERROR(INDEX('VNOS PODATKOV'!$C$170:$K$177,MATCH(ROW()-ROW(C$126),'VNOS PODATKOV'!$L$170:$L$177,0),9),\"\")","v":""}]
[]
["IZKAZOVANJE PRAVICE GRADITI"]
["ustrezno označiti"]
[null,false,"Lastninska ali druga stvarna pravica na nepremičninah, na katerih se bo izvajala gradnja, je vpisana v zemljiški knjigi."]
[null,false,"Iz uradnih evidenc je razvidno, da je investitor zakoniti upravljavec nepremičnine, na kateri se bo izvajala gradnja."]
[null,null,"Pravico graditi dokazujem z listinami:"]
[null,false,"notarsko overjena pogodba o pridobitvi lastninske ali druge stvarne pravice na nepremičninah, na katerih se bo izvajala gradnja, ki je predlagana za vpis v zemljiško knjigo;"]
[null,false,"sodna ali upravna odločba, ki investitorju omogoča gradnjo oziroma izvajanje del;"]
[null,false,"sklep o določitvi investitorja kot upravljavca nepremičnine, če gre za nepremičnino v lasti njegovega ustanovitelja;"]
[null,false,"druga listina, ki v skladu z zakonom investitorju omogoča gradnjo oziroma izvajanje del;"]
[null,false,"soglasje upravljavca javne ceste za izvedbo gradnje v cestnem telesu, če gre za gradnjo objekta gospodarske javne infrastrukture, skupaj s priključki, ki se izvaja v cestnem telesu javne ceste;"]
[null,false,"notarsko overjena pogodba o pridobitvi obligacijske pravice, za nepremičnine, na katerih so predvidene začasne ureditve za potrebe gradnje."]
[]
["PODATKI ZA IZRAČUN UPRAVNE TAKSE"]
["podatek se ne vpiše, če se vloga nanaša samo na nezahtevni objekt"]
["Ocenjena vrednost objekta v EUR brez DDV"]
[]
[null,null,"Na podlagi navedenih podatkov in priloženega projekta ter ostalih priloženih listin vas prosim za spremembo gradbenega dovoljenja."]
[]
["datum",null,"podpis vložnika"]
[{"$f":"TODAY()","v":"2023-06-07"}]
[]
[]
["PRILOGE"]
["ustrezno označiti"]
[null,false,"Pooblastilo (če zahteve ne vlaga investitor)"]
[null,false,"Projektna dokumentacija za spremembo GD ali sprememba DNZO ali DSN"]
[null,false,"Sprememba projekta DGD, DNZO ali DSN"]
[null,false,"Nov projekt DGD, DNZO ali DSN"]
[null,false,"Sklep predhodne presoje vplivov na okolje (če gre za objekt z vplivi na okolje in če je bila pridobljena)"]
[null,false,"Poročilo o vplivih na okolje"]
[null,false,"Mnenja (če so pridobljena) ali dokazilo o predloženi zahtevi za mnenje, ki ni bilo izdano \nv predpisanem roku"]
[null,false,"Listine, ki izkazujejo pravico graditi, če lastninska ali druga stvarna pravica ni vpisana v zemljiško knjigo ali če iz uradnih evidenc ni razvidno, da je investitor zakoniti upravljavec nepremičnin (če spremembe vplivajo na že izkazano pravico graditi)"]
[null,null,"Pisne izjave strank, da se strinjajo z nameravano gradnjo, če so pridobljene"]
[null,null,"Druge priloge"]

{"sheet":"13B GRADNJA","index":9,"n_rows":98,"n_cols":3,"rows_kept":98,"cut":false,"hidden":false,"merged":[[71,0,71,2],[84,0,84,2],[1,0,1,2],[3,0,3,2],[17,0,17,2],[30,0,30,2],[35,0,35,1],[36,0,36,1]]}
["PRILOGA 13B"]
["PRIJAVA ZAČETKA GRADNJE"]
[]
[{"$f":"'VNOS PODATKOV'!C22","v":"INVESTITOR"}]
[{"$f":"'VNOS PODATKOV'!C23","v":"INVESTITOR 1"}]
[{"$f":"'VNOS PODATKOV'!C24","v":"ime in priimek ali naziv družbe"},null,{"$f":"'VNOS PODATKOV'!D24","v":0}]
[{"$f":"'VNOS PODATKOV'!C25","v":"naslov ali sedež družbe"},null,{"$f":"'VNOS PODATKOV'!D25","v":0}]
[{"$f":"'VNOS PODATKOV'!C26","v":"davčna številka"},null,{"$f":"'VNOS PODATKOV'!D26","v":0}]
[{"$f":"'VNOS PODATKOV'!C27","v":"INVESTITOR 2"}]
[{"$f":"'VNOS PODATKOV'!C28","v":"ime in priimek ali naziv družbe"},null,{"$f":"'VNOS PODATKOV'!D28","v":0}]
[{"$f":"'VNOS PODATKOV'!C29","v":"naslov ali sedež družbe"},null,{"$f":"'VNOS PODATKOV'!D29","v":0}]
[{"$f":"'VNOS PODATKOV'!C30","v":"davčna številka"},null,{"$f":"'VNOS PODATKOV'!D30","v":0}]
[{"$f":"'VNOS PODATKOV'!C31","v":"INVESTITOR 3"}]
[{"$f":"'VNOS PODATKOV'!C32","v":"ime in priimek ali naziv družbe"},null,{"$f":"'VNOS PODATKOV'!D32","v":0}]
[{"$f":"'VNOS PODATKOV'!C33","v":"naslov ali sedež družbe"},null,{"$f":"'VNOS PODATKOV'!D33","v":0}]
[{"$f":"'VNOS PODATKOV'!C34","v":"davčna številka"},null,{"$f":"'VNOS PODATKOV'!D34","v":0}]
[]
[{"$f":"'VNOS PODATKOV'!C35","v":"KONTAKTNA OSEBA"}]
[{"$f":"'VNOS PODATKOV'!C36","v":"ime in priimek"},null,{"$f":"'VNOS PODATKOV'!D36","v":0}]
[{"$f":"'VNOS PODATKOV'!C37","v":"telefonska številka"},null,{"$f":"'VNOS PODATKOV'!D37","v":0}]
[{"$f":"'VNOS PODATKOV'!C38","v":"elektronski naslov"},null,{"$f":"'VNOS PODATKOV'!D38","v":0}]
[]
[{"$f":"'VNOS PODATKOV'!C39","v":"POOBLAŠČENEC"}]
[{"$f":"'VNOS PODATKOV'!C40","v":"podatki se vpišejo, kadar je imenovan pooblaščenec"}]
[{"$f":"'VNOS PODATKOV'!C42","v":"ime in priimek ali naziv družbe"},null,{"$f":"IF('VNOS PODATKOV'!D$41=TRUE,'VNOS PODATKOV'!D42, \"\")","v":""}]
[{"$f":"'VNOS PODATKOV'!C43","v":"naslov ali sedež družbe"},null,{"$f":"IF('VNOS PODATKOV'!D$41=TRUE,'VNOS PODATKOV'!D43, \"\")","v":""}]
[{"$f":"'VNOS PODATKOV'!C44","v":"kontaktna oseba"},null,{"$f":"IF('VNOS PODATKOV'!D$41=TRUE,'VNOS PODATKOV'!D44, \"\")","v":""}]
[{"$f":"'VNOS PODATKOV'!C45","v":"telefonska številka"},null,{"$f":"IF('VNOS PODATKOV'!D$41=TRUE,'VNOS PODATKOV'!D45, \"\")","v":""}]
[{"$f":"'VNOS PODATKOV'!C46","v":"elektronski naslov"},null,{"$f":"IF('VNOS PODATKOV'!D$41=TRUE,'VNOS PODATKOV'!D46, \"\")","v":""}]
[]
[{"$f":"'VNOS PODATKOV'!C71","v":"PODATKI O GRADNJI"}]
[{"$f":"'VNOS PODATKOV'!C74","v":"naziv gradnje"},null,{"$f":"'VNOS PODATKOV'!D74","v":0}]
[{"$f":"'VNOS PODATKOV'!C76","v":"kratek opis gradnje"},null,{"$f":"'VNOS PODATKOV'!D76","v":0}]
[]
["NAVEDBA ORGANA, PRI KATEREM SE VLAGA ZAHTEVA"]
["naziv",null,{"$f":"'VNOS PODATKOV'!D181","v":0}]
["naslov",null,{"$f":"'VNOS PODATKOV'!D182","v":0}]
[]
[{"$f":"'VNOS PODATKOV'!C187","v":"PODATKI O IZDANEM GRADBENEM DOVOLJENJU"}]
[{"$f":"'VNOS PODATKOV'!C189","v":"navedba organa"},null,{"$f":"'VNOS PODATKOV'!D189","v":0}]
[{"$f":"'VNOS PODATKOV'!C190","v":"številka dovoljenja"},null,{"$f":"'VNOS PODATKOV'!D190","v":0}]
[{"$f":"'VNOS PODATKOV'!C191","v":"datum dovoljenja"},null,{"$f":"IF(ISBLANK('VNOS PODATKOV'!D191),\"\",'VNOS PODATKOV'!D191)","v":"2023-07-05"}]
[{"$f":"'VNOS PODATKOV'!C192","v":"dokončnost"},null,{"$f":"IF(ISBLANK('VNOS PODATKOV'!D192),\"\",'VNOS PODATKOV'!D192)","v":"2023-08-05"}]
[{"$f":"'VNOS PODATKOV'!C193","v":"pravnomočnost"},null,{"$f":"IF(ISBLANK('VNOS PODATKOV'!D193),\"\",'VNOS PODATKOV'!D193)","v":"2023-10-05"}]
[]
[{"$f":"'VNOS PODATKOV'!C194","v":"PODATKI O SPREMEMBI GRADBENEGA DOVOLJENJA"}]
[{"$f":"'VNOS PODATKOV'!C197","v":"številka dovoljenja"},null,{"$f":"'VNOS PODATKOV'!D197","v":0}]
[{"$f":"'VNOS PODATKOV'!C198","v":"datum dovoljenja"},null,{"$f":"IF(ISBLANK('VNOS PODATKOV'!D198),\"\",'VNOS PODATKOV'!D198)","v":"2023-07-05"}]
[{"$f":"'VNOS PODATKOV'!C199","v":"dokončnost"},null,{"$f":"IF(ISBLANK('VNOS PODATKOV'!D199),\"\",'VNOS PODATKOV'!D199)","v":"2023-08-05"}]
[{"$f":"'VNOS PODATKOV'!C200","v":"pravnomočnost"},null,{"$f":"IF(ISBLANK('VNOS PODATKOV'!D200),\"\",'VNOS PODATKOV'!D200)","v":"2023-10-05"}]
[]
["PREDMET PRIJAVE ZAČETKA GRADNJE OBJEKTA"]
[null,null,"Prijava začetka gradnje objekta Z GRADBENIM DOVOLJENJEM se nanaša na:"]
[null,false,"prijava se nanaša na vse objekte iz GD"]
[null,false,"prijava se nanaša na del objektov iz GD - naštej:"]
[]
[null,false,"novogradnjo ali rekonstrukcijo zahtevnega ali manj zahtevnega objekta"]
[null,false,"novogradnjo ali rekonstrukcijo nezahtevnega objekta"]
[null,false,"odstranitev zahtevnega ali manj zahtevnega objekta, ki se dotika objekta na tuji sosednji nepremičnini ali je od njega oddaljen manj kot en meter"]
[]
[null,null,"Prijava začetka gradnje objekta BREZ GRADBENEGA DOVOLJENJA se nanaša na:"]
[null,false,"odstranitev zahtevnega ali manj zahtevnega objekta, ki se ne dotika objekta na tuji sosednji nepremičnini oziroma je od njega oddaljen več kot en meter"]
[null,false,"nujno rekonstrukcijo"]
[]
["PROJEKT ZA IZVEDBO"]
["ni obvezno pri gradnji nezahtevnega objekta"]
[{"$f":"'VNOS PODATKOV'!C69","v":"številka projekta"},null,{"$f":"'VNOS PODATKOV'!D69","v":0}]
[{"$f":"'VNOS PODATKOV'!C70","v":"datum izdelave"},null,{"$f":"'VNOS PODATKOV'!D70","v":"00:00:00"}]
[{"$f":"'VNOS PODATKOV'!C50","v":"projektant (naziv družbe)"},null,{"$f":"'VNOS PODATKOV'!D50","v":0}]
[]
[{"$f":"'VNOS PODATKOV'!C53","v":"NADZORNIK"}]
[{"$f":"'VNOS PODATKOV'!C54","v":"imenovanje nadzornika ni obvezno v primeru gradnje nezahtevnega objekta, če jo izvaja izvajalec, ki izpolnjuje pogoje za opravljanje dejavnosti gradbeništva (16. člen GZ-1)"}]
[{"$f":"IF('VNOS PODATKOV'!D55=TRUE,TRUE,FALSE)","v":false},null,{"$f":"'VNOS PODATKOV'!C55","v":"imenovan je nadzornik gradnje"}]
[{"$f":"'VNOS PODATKOV'!C57","v":"naziv družbe"},null,{"$f":"IF('VNOS PODATKOV'!$D$55=TRUE,'VNOS PODATKOV'!D57,\"\")","v":""}]
[{"$f":"'VNOS PODATKOV'!C58","v":"sedež družbe"},null,{"$f":"IF('VNOS PODATKOV'!$D$55=TRUE,'VNOS PODATKOV'!D58,\"\")","v":""}]
[{"$f":"'VNOS PODATKOV'!C60","v":"odgovorna oseba nadzornika"},null,{"$f":"IF('VNOS PODATKOV'!$D$55=TRUE,'VNOS PODATKOV'!D60,\"\")","v":""}]
[{"$f":"'VNOS PODATKOV'!C62","v":"vodja nadzora"},null,{"$f":"IF('VNOS PODATKOV'!$D$55=TRUE,'VNOS PODATKOV'!D62,\"\")","v":""}]
[{"$f":"'VNOS PODATKOV'!C63","v":"strokovna izobrazba"},null,{"$f":"IF('VNOS PODATKOV'!$D$55=TRUE,'VNOS PODATKOV'!D63,\"\")","v":""}]
[{"$f":"'VNOS PODATKOV'!C64","v":"identifikacijska številka"},null,{"$f":"IF('VNOS PODATKOV'!$D$55=TRUE,'VNOS PODATKOV'!D64,\"\")","v":""}]
[]
["datum",null,"podpis vložnika"]
[{"$f":"TODAY()","v":"2023-06-07"}]
[]
[]
["PRILOGE"]
["ustrezno označiti"]
[null,false,"Pooblastilo (če zahteve ne vlaga investitor)"]
[null,false,"Zakoličbeni zapisnik"]
[null,false,"Projektna dokumentacija za izvedbo gradnje (PZI)"]
[null,false,"Projektna dokumentacija za odstranitev zahtevnega in manj zahtevnega objekta - PZO"]
[null,false,"Izjava izvajalca pregleda pri neuporabi priporočene metode - Priloga 2C"]
[null,false,"Načrt organizacije gradbišča"]
[null,false,"Potrdilo občine o plačanem komunalnem prispevku, če tako določa zakon, \nki ureja prostor (po 1. 1. 2024)"]
[null,false,"Mnenje organizacije, pristojne za ohranjanje narave, da so izpolnjeni pogoji za delovanje izravnalnih ukrepov, če so bili ti zaradi prevlade javne koristi določeni v gradbenem dovoljenju in morajo biti izvedeni pred začetkom gradnje"]
[null,false,"Pravnomočno okoljevarstveno dovoljenje, če tako določa zakon, ki ureja varstvo okolja"]
[null,false,"Posnetek dejanskega stanja in kulturnovarstveno soglasje za odstranitev dediščine \n(če gre za odstranitev objekta kulturne dediščine)"]
[null,false,"Izjava pooblaščenega strokovnjaka s področja gradbeništva, da stanje obstoječega objekta dopušča izvedbo del, ki so nujna za zmanjšanje ali odpravo posledic naravnih in drugih nesreč in s katerimi se vzpostavi prejšnje stanje (nujna rekonstrukcija) - Priloga 2I"]
[null,false,"Druge priloge (navesti, katere):"]

{"sheet":"9B MNENJA VLOGA DMO","index":10,"n_rows":58,"n_cols":3,"rows_kept":58,"cut":false,"hidden":false,"merged":[[41,0,41,2],[53,0,53,2],[1,0,1,2],[3,0,3,2],[17,0,17,2],[30,0,30,2],[38,0,38,2]]}
["PRILOGA 9B"]
["ZAHTEVA ZA IZDAJO MNENJA\nGLEDE SKLADNOSTI DOPUSTNIH MANJŠIH ODSTOPANJ\nS PREDPISI S PODROČJA MNENJEDAJALCA"]
[]
[{"$f":"'VNOS PODATKOV'!C22","v":"INVESTITOR"}]
[{"$f":"'VNOS PODATKOV'!C23","v":"INVESTITOR 1"}]
[{"$f":"'VNOS PODATKOV'!C24","v":"ime in priimek ali naziv družbe"},null,{"$f":"'VNOS PODATKOV'!D24","v":0}]
[{"$f":"'VNOS PODATKOV'!C25","v":"naslov ali sedež družbe"},null,{"$f":"'VNOS PODATKOV'!D25","v":0}]
[{"$f":"'VNOS PODATKOV'!C26","v":"davčna številka"},null,{"$f":"'VNOS PODATKOV'!D26","v":0}]
[{"$f":"'VNOS PODATKOV'!C27","v":"INVESTITOR 2"}]
[{"$f":"'VNOS PODATKOV'!C28","v":"ime in priimek ali naziv družbe"},null,{"$f":"'VNOS PODATKOV'!D28","v":0}]
[{"$f":"'VNOS PODATKOV'!C29","v":"naslov ali sedež družbe"},null,{"$f":"'VNOS PODATKOV'!D29","v":0}]
[{"$f":"'VNOS PODATKOV'!C30","v":"davčna številka"},null,{"$f":"'VNOS PODATKOV'!D30","v":0}]
[{"$f":"'VNOS PODATKOV'!C31","v":"INVESTITOR 3"}]
[{"$f":"'VNOS PODATKOV'!C32","v":"ime in priimek ali naziv družbe"},null,{"$f":"'VNOS PODATKOV'!D32","v":0}]
[{"$f":"'VNOS PODATKOV'!C33","v":"naslov ali sedež družbe"},null,{"$f":"'VNOS PODATKOV'!D33","v":0}]
[{"$f":"'VNOS PODATKOV'!C34","v":"davčna številka"},null,{"$f":"'VNOS PODATKOV'!D34","v":0}]
[]
[{"$f":"'VNOS PODATKOV'!C35","v":"KONTAKTNA OSEBA"}]
[{"$f":"'VNOS PODATKOV'!C36","v":"ime in priimek"},null,{"$f":"'VNOS PODATKOV'!D36","v":0}]
[{"$f":"'VNOS PODATKOV'!C37","v":"telefonska številka"},null,{"$f":"'VNOS PODATKOV'!D37","v":0}]
[{"$f":"'VNOS PODATKOV'!C38","v":"elektronski naslov"},null,{"$f":"'VNOS PODATKOV'!D38","v":0}]
[]
[{"$f":"'VNOS PODATKOV'!C39","v":"POOBLAŠČENEC"}]
[{"$f":"'VNOS PODATKOV'!C40","v":"podatki se vpišejo, kadar je imenovan pooblaščenec"}]
[{"$f":"'VNOS PODATKOV'!C42","v":"ime in priimek ali naziv družbe"},null,{"$f":"IF('VNOS PODATKOV'!D$41=TRUE,'VNOS PODATKOV'!D42, \"\")","v":""}]
[{"$f":"'VNOS PODATKOV'!C43","v":"naslov ali sedež družbe"},null,{"$f":"IF('VNOS PODATKOV'!D$41=TRUE,'VNOS PODATKOV'!D43, \"\")","v":""}]
[{"$f":"'VNOS PODATKOV'!C44","v":"kontaktna oseba"},null,{"$f":"IF('VNOS PODATKOV'!D$41=TRUE,'VNOS PODATKOV'!D44, \"\")","v":""}]
[{"$f":"'VNOS PODATKOV'!C45","v":"telefonska številka"},null,{"$f":"IF('VNOS PODATKOV'!D$41=TRUE,'VNOS PODATKOV'!D45, \"\")","v":""}]
[{"$f":"'VNOS PODATKOV'!C46","v":"elektronski naslov"},null,{"$f":"IF('VNOS PODATKOV'!D$41=TRUE,'VNOS PODATKOV'!D46, \"\")","v":""}]
[]
["NAVEDBA ORGANA, PRI KATEREM SE VLAGA ZAHTEVA"]
[{"$f":"'VNOS PODATKOV'!C114","v":"področje"}]
["izberi iz seznama ali vpiši"]
[{"$f":"'VNOS PODATKOV'!C182","v":"naslov"},null,{"$f":"IFERROR(INDEX('VNOS PODATKOV'!$C$115:$K$177,MATCH($C$32,'VNOS PODATKOV'!$C$115:$C$177,0),3),\"\")","v":""}]
[{"$f":"'VNOS PODATKOV'!D114","v":"naziv mnenja"},null,{"$f":"IFERROR(INDEX('VNOS PODATKOV'!$C$115:$K$177,MATCH($C$32,'VNOS PODATKOV'!$C$115:$C$177,0),4),\"\")","v":""}]
["št. izdanega mnenja",null,{"$f":"IFERROR(INDEX('VNOS PODATKOV'!$C$115:$K$177,MATCH($C$32,'VNOS PODATKOV'!$C$115:$C$177,0),5),\"\")","v":""}]
[{"$f":"'VNOS PODATKOV'!K114","v":"datum mnenja"},null,{"$f":"IFERROR(INDEX('VNOS PODATKOV'!$C$115:$K$177,MATCH($C$32,'VNOS PODATKOV'!$C$115:$C$177,0),6),\"\")","v":""}]
[]
[{"$f":"'VNOS PODATKOV'!C71","v":"PODATKI O GRADNJI"}]
[{"$f":"'VNOS PODATKOV'!C74","v":"naziv gradnje"},null,{"$f":"'VNOS PODATKOV'!D74","v":0}]
["vsebina zahteve glede dopustnih manjših odstopanj"]
["PODATKI O PROJEKTNI DOKUMENTACIJI, KI OBRAVNAVA DOPUSTNA MANJŠA ODSTOPANJA"]
[{"$f":"'VNOS PODATKOV'!C66","v":"podatki se vpišejo, če dokumentacijo izdela projektant"}]
[{"$f":"'VNOS PODATKOV'!C69","v":"številka projekta"},null,{"$f":"'VNOS PODATKOV'!D69","v":0}]
[{"$f":"'VNOS PODATKOV'!C70","v":"datum izdelave"},null,{"$f":"'VNOS PODATKOV'!D70","v":"00:00:00"}]
[{"$f":"'VNOS PODATKOV'!C50","v":"projektant (naziv družbe)"},null,{"$f":"'VNOS PODATKOV'!D50","v":0}]
[]
[null,null,"Na podlagi navedenih podatkov vas prosimo za mnenje, ali je priložena dokumentacija skladna s predpisi iz vaše pristojnosti, ter za določitev morebitnih pogojev za izvedbo gradnje in uporabo objekta."]
[]
["datum",null,"podpis vložnika"]
[{"$f":"TODAY()","v":"2023-06-07"}]
[]
[]
["PRILOGE"]
["ustrezno označiti"]
[null,false,"Pooblastilo (če zahteve ne vlaga investitor)"]
[null,false,"Projektna dokumentacija za izvedbo gradnje - PZI"]
[null,false,"Druge priloge (navesti, katere):"]

{"sheet":"16A DOPOL VLOGE","index":11,"n_rows":50,"n_cols":3,"rows_kept":50,"cut":false,"hidden":false,"merged":[[1,0,1,2],[48,0,48,2]]}
["PRILOGA 16A"]
["DOPOLNITEV VLOGE"]
[]
[{"$f":"'VNOS PODATKOV'!C22","v":"INVESTITOR"}]
[{"$f":"'VNOS PODATKOV'!C23","v":"INVESTITOR 1"}]
[{"$f":"'VNOS PODATKOV'!C24","v":"ime in priimek ali naziv družbe"},null,{"$f":"'VNOS PODATKOV'!D24","v":0}]
[{"$f":"'VNOS PODATKOV'!C25","v":"naslov ali sedež družbe"},null,{"$f":"'VNOS PODATKOV'!D25","v":0}]
[{"$f":"'VNOS PODATKOV'!C27","v":"INVESTITOR 2"}]
[{"$f":"'VNOS PODATKOV'!C28","v":"ime in priimek ali naziv družbe"},null,{"$f":"'VNOS PODATKOV'!D28","v":0}]
[{"$f":"'VNOS PODATKOV'!C29","v":"naslov ali sedež družbe"},null,{"$f":"'VNOS PODATKOV'!D29","v":0}]
[{"$f":"'VNOS PODATKOV'!C31","v":"INVESTITOR 3"}]
[{"$f":"'VNOS PODATKOV'!C32","v":"ime in priimek ali naziv družbe"},null,{"$f":"'VNOS PODATKOV'!D32","v":0}]
[{"$f":"'VNOS PODATKOV'!C33","v":"naslov ali sedež družbe"},null,{"$f":"'VNOS PODATKOV'!D33","v":0}]
[]
[{"$f":"'VNOS PODATKOV'!C35","v":"KONTAKTNA OSEBA"}]
[{"$f":"'VNOS PODATKOV'!C36","v":"ime in priimek"},null,{"$f":"'VNOS PODATKOV'!D36","v":0}]
[{"$f":"'VNOS PODATKOV'!C37","v":"telefonska številka"},null,{"$f":"'VNOS PODATKOV'!D37","v":0}]
[{"$f":"'VNOS PODATKOV'!C38","v":"elektronski naslov"},null,{"$f":"'VNOS PODATKOV'!D38","v":0}]
[]
[{"$f":"'VNOS PODATKOV'!C39","v":"POOBLAŠČENEC"}]
[{"$f":"'VNOS PODATKOV'!C40","v":"podatki se vpišejo, kadar je imenovan pooblaščenec"}]
[{"$f":"'VNOS PODATKOV'!C42","v":"ime in priimek ali naziv družbe"},null,{"$f":"IF('VNOS PODATKOV'!D$41=TRUE,'VNOS PODATKOV'!D42, \"\")","v":""}]
[{"$f":"'VNOS PODATKOV'!C43","v":"naslov ali sedež družbe"},null,{"$f":"IF('VNOS PODATKOV'!D$41=TRUE,'VNOS PODATKOV'!D43, \"\")","v":""}]
[]
["NAVEDBA ORGANA, PRI KATEREM SE VLAGA DOPOLNITEV"]
["naziv",null,{"$f":"'VNOS PODATKOV'!D181","v":0}]
["naslov",null,{"$f":"'VNOS PODATKOV'!D182","v":0}]
[]
["PODATKI O ZADEVI, KI SE VODI PRI UPRAVNEM ORGANU"]
["številka zadeve"]
["številka dopolnitve"]
["dopolnitev zahteve se nanaša na"]
[null,false,"zahtevo za izdajo projektnih in drugih pogojev"]
[null,false,"zahtevo za izdajo mnenja"]
[null,false,"zahtevo za izdajo gradbenega dovoljenja"]
[null,false,"zahtevo za izdajo gradbenega dovoljenja za nezahtevni objekt"]
[null,false,"zahtevo za izdajo gradbenega dovoljenja za spremembo namembnosti"]
[null,false,"zahtevo za izdajo uporabnega dovoljenja"]
[null,false,"zahtevo za legalizacijo ali uporabno dovoljenje za obstoječe objekte"]
[null,false,"drugo zahtevo"]
["vsebina dopolnitve"]
[]
[null,null,"Na podlagi navedenih podatkov in drugih priloženih listin dopolnjujem zahtevo."]
[]
["datum",null,"podpis vložnika"]
[{"$f":"TODAY()","v":"2023-06-07"}]
[]
[]
["PRILOGE"]
["navesti, katere"]

{"sheet":"16B DOPOL PODALJ","index":12,"n_rows":43,"n_cols":3,"rows_kept":43,"cut":false,"hidden":false,"merged":[[1,0,1,2]]}
["PRILOGA 16B"]
["ZAHTEVA ZA PODALJŠANJE ROKA \nZA DOPOLNITEV VLOGE"]
[]
[{"$f":"'VNOS PODATKOV'!C22","v":"INVESTITOR"}]
[{"$f":"'VNOS PODATKOV'!C23","v":"INVESTITOR 1"}]
[{"$f":"'VNOS PODATKOV'!C24","v":"ime in priimek ali naziv družbe"},null,{"$f":"'VNOS PODATKOV'!D24","v":0}]
[{"$f":"'VNOS PODATKOV'!C25","v":"naslov ali sedež družbe"},null,{"$f":"'VNOS PODATKOV'!D25","v":0}]
[{"$f":"'VNOS PODATKOV'!C27","v":"INVESTITOR 2"}]
[{"$f":"'VNOS PODATKOV'!C28","v":"ime in priimek ali naziv družbe"},null,{"$f":"'VNOS PODATKOV'!D28","v":0}]
[{"$f":"'VNOS PODATKOV'!C29","v":"naslov ali sedež družbe"},null,{"$f":"'VNOS PODATKOV'!D29","v":0}]
[{"$f":"'VNOS PODATKOV'!C31","v":"INVESTITOR 3"}]
[{"$f":"'VNOS PODATKOV'!C32","v":"ime in priimek ali naziv družbe"},null,{"$f":"'VNOS PODATKOV'!D32","v":0}]
[{"$f":"'VNOS PODATKOV'!C33","v":"naslov ali sedež družbe"},null,{"$f":"'VNOS PODATKOV'!D33","v":0}]
[]
[{"$f":"'VNOS PODATKOV'!C35","v":"KONTAKTNA OSEBA"}]
[{"$f":"'VNOS PODATKOV'!C36","v":"ime in priimek"},null,{"$f":"'VNOS PODATKOV'!D36","v":0}]
[{"$f":"'VNOS PODATKOV'!C37","v":"telefonska številka"},null,{"$f":"'VNOS PODATKOV'!D37","v":0}]
[{"$f":"'VNOS PODATKOV'!C38","v":"elektronski naslov"},null,{"$f":"'VNOS PODATKOV'!D38","v":0}]
[]
[{"$f":"'VNOS PODATKOV'!C39","v":"POOBLAŠČENEC"}]
[{"$f":"'VNOS PODATKOV'!C40","v":"podatki se vpišejo, kadar je imenovan pooblaščenec"}]
[{"$f":"'VNOS PODATKOV'!C42","v":"ime in priimek ali naziv družbe"},null,{"$f":"IF('VNOS PODATKOV'!D$41=TRUE,'VNOS PODATKOV'!D42, \"\")","v":""}]
[{"$f":"'VNOS PODATKOV'!C43","v":"naslov ali sedež družbe"},null,{"$f":"IF('VNOS PODATKOV'!D$41=TRUE,'VNOS PODATKOV'!D43, \"\")","v":""}]
[]
["NAVEDBA ORGANA, PRI KATEREM SE VLAGA DOPOLNITEV"]
["naziv"]
["naslov"]
[]
["PODATKI O ZADEVI, KI SE VODI PRI UPRAVNEM ORGANU"]
["številka zadeve"]
[{"$f":"'VNOS PODATKOV'!C74","v":"naziv gradnje"},null,{"$f":"'VNOS PODATKOV'!D74","v":0}]
["navedba dokumenta, s katerim je bil določen rok"]
["ČAS PODALJŠANJA ROKA"]
[null,false,"15 dni"]
[null,false,"1 mesec"]
[null,false,"2 meseca"]
[]
["navedba razlogov za podaljšanje roka"]
[]
[null,null,"Na podlagi navedenih podatkov prosim za podaljšanje roka za dopolnitev vloge."]
[]
["datum",null,"podpis vložnika"]
[{"$f":"TODAY()","v":"2023-06-07"}]

{"sheet":"BAZA PODATKOV","index":13,"n_rows":364,"n_cols":3,"rows_kept":364,"cut":false,"hidden":false,"merged":[]}
["VRSTE PROJEKTNE DOKUMENTACIJE"]
[]
["DPP (idejna zasnova za pridobitev projektnih pogojev)",1]
["DGD (projektna dokumentacija za pridobivanje mnenj in gradbenega dovoljenja)",2]
["PZI (projektna dokumentacija za izvedbo gradnje)",3]
["PZI v delu, ki se nanaša na pripravljalna dela",4]
["PID (projektna dokumentacija izvedenih del)",5]
["DL (dokumentacija za legalizacijo)",6]
["DNZO (dokumentacija za pridobitev gradbenega dovoljenja za nezahtevne objekte)",7]
["DSN (dokumentacija za pridobitev gradbenega dovoljenja za spremembo namembnosti)",8]
["DOZ (dokazilo o zanesljivosti)",9]
[]
["FAZA PROJEKTA"]
[]
["DPP",1]
["DGD",2]
["PZI",3]
["PID",4]
[]
["VRSTE NAČRTOV"]
[]
["0/1 Vodilni načrt - načrt arhitekture"]
["0/2 Vodilni načrt - načrt gradbeništva"]
["0/3 Vodilni načrt - načrt elektrotehnike"]
["0/4 Vodilni načrt - načrt strojništva"]
["0/5 Vodilni načrt - načrt tehnologije"]
["0/6 Vodilni načrt - načrt požarne varnosti"]
["0/7 Vodilni načrt - načrt geotehnologije in rudarstva"]
["0/8 Vodilni načrt - načrt geodezije"]
["0/9 Vodilni načrt - načrt prometnega inženirstva"]
["0/10 Vodilni načrt - načrt krajinske arhitekture"]
["0 Vodilna mapa"]
["1 Načrt s področja arhitekture",1]
["2 Načrt s področja gradbeništva",2]
["3 Načrt s področja elektrotehnike",3]
["4 Načrt s področja strojništva",4]
["5 Načrt s področja tehnologije",5]
["6 Načrt s področja požarne varnosti",6]
["7 Načrt s področja geotehnologije in rudarstva",7]
["8 Načrt s področja geodezije",8]
["9 Načrt s področja prometnega inženirstva",9]
["10 Načrt s področja krajinske arhitekture",10]
[]
["IZKAZI"]
[]
["izkaz energijskih karakteristik prezračevanja stavbe"]
["izkaz toplotnih karakteristik stavbe"]
["izkaz požarne varnosti"]
["izkaz zaščite pred hrupom"]
[]
["ZAGOTAVLJANJE MINIMALNE KOMUNALNE OSKRBE"]
[]
["priključevanje ni predvideno"]
["nov priključek"]
["obstoječ priključek"]
["lastni vir"]
[]
["ODVAJANJE FEKALNIH VODA"]
[]
["nov priključek"]
["obstoječ priključek"]
["pretočna greznica"]
["čistilna naprava"]
[]
["ODVAJANJE METEORNIH VODA"]
[]
["nov priključek"]
["obstoječ priključek"]
["odvajanje v vodotok"]
["razpršeno odvajanje"]
["ponikovalnica"]
[]
["DRUGA OSKRBA Z ENERGIJO"]
[]
["lastni vir"]
[]
["lokacija priključitve"]
[]
["/"]
["obstoječa merilna omarica"]
["nova merilna omarica"]
[]
["/"]
["obstoječ vodomerni jašek"]
["nov vodomerni jašek"]
[]
["PROSTORSKI AKTI"]
[]
["OPN"]
["DLN"]
["PUP"]
["ZN"]
[]
["VRSTE GRADNJE"]
[]
["novogradnja - novozgrajen objekt"]
["novogradnja - prizidava"]
["rekonstrukcija"]
["odstranitev"]
["sprememba namembnosti"]
[]
["ZAHTEVNOST OBJEKTOV"]
[]
["zahteven"]
["manj zahteven"]
["nezahteven"]
["enostaven"]
[]
["POŽARNA ZAHTEVNOST OBJEKTOV"]
[]
["požarno zahteven objekt"]
["požarno manj zahteven objekt"]
[]
["DA/NE"]
[]
["DA"]
["NE"]
[]
["VRSTA OBJEKTA"]
[]
["STAVBA"]
["GRADBENI INŽENIRSKI OBJEKT"]
[]
[]
["GLAVNI ALI PRIPADAJOČI"]
[]
["GLAVNI OBJEKT"]
["PRIPADAJOČI OBJEKT"]
[]
[]
["CC-SI STAVBE"]
[]
["11100 Enostanovanjske stavbe"]
["11210 Dvostanovanjske stavbe"]
["11220 Tri- in večstanovanjske stavbe"]
["11301 Stanovanjske stavbe z oskrbovanimi stanovanji"]
["11302 Stanovanjske stavbe za druge posebne družbene skupine"]
["12111 Hotelske in podobne stavbe za kratkotrajno nastanitev"]
["12112 Gostilne, restavracije in točilnice"]
["12121 Druge gostinske stavbe za kratkotrajno nastanitev"]
["12122 Stavbe za kratkotrajno nastanitev na drevesu"]
["12201 Stavbe javne uprave"]
["12202 Stavbe bank, pošt, zavarovalnic"]
["12203 Druge poslovne stavbe"]
["12204 Konferenčne in kongresne stavbe"]
["12301 Trgovske stavbe"]
["12302 Sejemske dvorane, razstavišča"]
["12303 Oskrbne postaje"]
["12304 Stavbe za storitvene dejavnosti"]
["12410 Postajna poslopja, terminali, stavbe za izvajanje komunikacij ter z njimi povezane stavbe"]
["12420 Garažne stavbe"]
["12510 Industrijske stavbe"]
["12520 Rezervoarji, silosi in skladiščne stavbe"]
["12610 Stavbe za kulturo in razvedrilo"]
["12620 Muzeji, arhivi in knjižnice"]
["12630 Stavbe za izobraževanje in znanstvenoraziskovalno delo"]
["12640 Stavbe za zdravstveno oskrbo"]
["12650 Stavbe za šport"]
["12711 Stavbe za rastlinsko pridelavo"]
["12712 Stavbe za rejo živali"]
["12713 Stavbe za skladiščenje pridelka"]
["12714 Druge nestanovanjske kmetijske stavbe"]
["12721 Stavbe za opravljanje verskih obredov"]
["12722 Pokopališke stavbe"]
["12730 Kulturna dediščina, ki se ne uporablja za druge namene"]
["12741 Vojašnice in stavbe za nastanitev policistov"]
["12742 Stavbe sil za zaščito, reševanje in pomoč, gasilski domovi"]
["12743 Zaklonišča"]
["12744 Sanitarije"]
["12745 Stavbe za funkcionalno dopolnitev"]
["12746 Druge stavbe, ki niso uvrščene drugje"]
[]
["CC-SI GRADBENI INŽENIRSKI OBJEKTI"]
[]
["21111 Avtoceste, hitre ceste in glavne ceste (daljinske ceste)"]
["21112 Regionalne ceste"]
["21121 Lokalne ceste in javne poti, nekategorizirane ceste in gozdne ceste"]
["21122 Parkirišča izven vozišča"]
["21210 Glavne in regionalne železniške proge"]
["21220 Mestne železniške proge"]
["21301 Letališke steze in ploščadi"]
["21302 Letalski radio-navigacijski objekti"]
["21410 Mostovi, viadukti, nadvozi, nadhodi"]
["21421 Predori"]
["21422 Podhodi"]
["21423 Pokriti vkopi in galerije"]
["21510 Pristanišča in plovbne poti"]
["21520 Jezovi, vodne pregrade in drugi vodni objekti"]
["21530 Sistem za namakanje in osuševanje, akvadukti"]
["22110 Naftovodi in daljinski (prenosni) plinovodi"]
["22121 Daljinski (transportni) vodovodi"]
["22122 Objekti za črpanje, filtriranje in zajem vode"]
["22130 Daljinsko (hrbtenično) komunikacijsko omrežje"]
["22140 Daljinski (prenosni) elektroenergetski vodi"]
["22210 Lokalni (distribucijski) plinovodi"]
["22221 Lokalni vodovodi za pitno vodo in cevovodi za tehnološko vodo"]
["22222 Lokalni cevovodi za toplo vodo, paro in stisnjen zrak"]
["22223 Vodni stolpi in vodnjaki"]
["22231 Cevovodi za odpadno vodo (kanalizacija)"]
["22232 Čistilne naprave"]
["22241 Lokalni (distribucijski) elektroenergetski vodi"]
["22242 Lokalna (dostopovna) komunikacijska omrežja"]
["23010 Objekti za pridobivanje in izkoriščanje mineralnih surovin"]
["23021 Elektrarne in drugi energetski objekti"]
["23022 Hranilniki električne energije"]
["23030 Objekti kemične industrije"]
["23040 Objekti industrije, ki niso uvrščeni drugje"]
["24110 Športna igrišča"]
["24121 Marine"]
["24122 Drugi gradbeni inženirski objekti za šport, rekreacijo in prosti čas"]
["24201 Obrambni objekti"]
["24202 Drugi kmetijski gradbeni inženirski objekti"]
["24203 Objekti za ravnanje z odpadki"]
["24204 Pokopališča"]
["24205 Objekti za preprečitev zdrsa in ograditev"]
["24206 Odprta skladišča in odprte prodajne površine"]
["24207 Nepokrita prezentirana arheološka najdišča in ruševine"]
["24208 Drugi gradbeni inženirski objekti, ki niso uvrščeni drugje"]
[]
["ZVKDS"]
[]
["ZVKDS, Območna enota Celje","Glavni trg 1, 3000 Celje","tajnistvo.ce@zvkds.si"]
["ZVKDS, Območna enota Kranj","Tomšičeva ulica 7, 4000 Kranj","tajnistvo.kr@zvkds.si"]
["ZVKDS, Območna enota Ljubljana","Tržaška cesta 4, 1000 Ljubljana","tajnistvo.lj@zvkds.si"]
["ZVKDS, Območna enota Maribor","Slomškov trg 6, 2000 Maribor","tajnistvo.mb@zvkds.si"]
["ZVKDS, Območna enota Nova Gorica","Delpinova ulica 16, 5000 Nova Gorica","tajnistvo.ng@zvkds.si"]
["ZVKDS, Območna enota Novo mesto","Skalickega ulica 1, 8000 Novo mesto","tajnistvo.nm@zvkds.si"]
["ZVKDS, Območna enota Piran","Trg bratstva 1, 6330 Piran/Pirano","tajnistvo.pi@zvkds.si"]
[]
["Zavod RS za varstvo narave"]
[]
["Zavod RS za varstvo narave, OE Celje","Vodnikova ulica 3, 3000 Celje","zrsvn.oece@zrsvn.si"]
["Zavod RS za varstvo narave, OE Kranj","PC Planina 3, 4000 Kranj","zrsvn.oekr@zrsvn.si"]
["Zavod RS za varstvo narave, OE Ljubljana","Cankarjeva 10, 1000 Ljubljana","zrsvn.oelj@zrsvn.si"]
["Zavod RS za varstvo narave, OE Maribor","Pobreška cesta 20a, 2000 Maribor","zrsvn.oemb@zrsvn.si"]
["Zavod RS za varstvo narave, OE Nova Gorica","Delpinova 16, 5000 Nova Gorica","zrsvn.oeng@zrsvn.si"]
["Zavod RS za varstvo narave, OE Novo mesto","Adamičeva ul. 2, 8000 Novo mesto","zrsvn.oenm@zrsvn.si"]
["Zavod RS za varstvo narave, OE Piran","Trg Etbina Kristana1, 6310 Izola","zrsvn.oepi@zrsvn.si"]
["Zavod RS za varstvo narave, Osrednja enota v Ljubljani","Tobačna ulica 5, 1000 Ljubljana","zrsvn.oe@zrsvn.si"]
[]
["Direkcija RS za vode"]
[]
["Direkcija Republike Slovenije za vode","Hajdrihova ulica 28c, 1000 Ljubljana","gp.drsv@gov.si"]
["Direkcija RS za vode, Sektor območja zgornje Save","Ulica Mirka Vadnova 5, 4000 Kranj","gp.drsv-kr@gov.si"]
["Direkcija RS za vode, Sektor območja srednje Save","Vojkova cesta 52, 1000 Ljubljana","gp.drsv-lj@gov.si"]
["Direkcija RS za vode, Sektor območja spodnje Save","Novi trg 9, 8000 Novo mesto","gp.drsv-nm@gov.si"]
["Direkcija RS za vode, Sektor območja jadranskih rek z morjem","Pristaniška ulica 12, 6000 Koper","gp.drsv-kp@gov.si"]
["Direkcija RS za vode, Sektor območja Soče","Cankarjeva ulica 62, 5000 Nova Gorica","gp.drsv-ng@gov.si"]
["Direkcija RS za vode, Sektor območja Savinje","Mariborska cesta 88, 3000 Celje","gp.drsv-ce@gov.si"]
["Direkcija RS za vode, Sektor območja Drave","Krekova ulica 17, 2000 Maribor","gp.drsv-mb@gov.si"]
["Direkcija RS za vode, Sektor območja Mure","Slovenska ulica 2, 9000 Murska Sobota","gp.drsv-ms@gov.si"]
[]
["Zavod za gozdove Slovenije"]
[]
["Zavod za gozdove Slovenije, Centralna enota Ljubljana","Večna pot 2, 1001 Ljubljana","zgs.tajnistvo@zgs.si"]
["ZGS, Območna enota Tolmin","Tumov drevored 17, 5220 Tolmin","OETolmin@zgs.si"]
["ZGS, Območna enota Ljubljana","Tržaška c. 2, 1000 Ljubljana","OELjubljana@zgs.si"]
["ZGS, Območna enota Novo mesto","Gubčeva 15, 8000 Novo mesto","OENovomesto@zgs.si"]
["ZGS, Območna enota Nazarje","Savinjska cesta 4, 3331 Nazarje","OENazarje@zgs.si"]
["ZGS, Območna enota Murska Sobota","Arh. Novaka 17, 9000 Murska Sobota","OEMurskaSobota@zgs.si"]
["Zavod za gozdove Slovenije, Območna enota Bled","Ljubljanska cesta 19, 4260 Bled","OEBled@zgs.si"]
["Zavod za gozdove Slovenije, Območna enota Postojna","Vojkova 9, 6230 Postojna","OEPostojna@zgs.si"]
["Zavod za gozdove Slovenije, Območna enota Brežice","C. bratov Milavcev 61, 8250 Brežice","OEBrezice@zgs.si"]
["Zavod za gozdove Slovenije, Območna enota Slovenj Gradec","Vorančev trg 1, 2380 Slovenj gradec","OESlovenjGradec@zgs.si"]
["Zavod za gozdove Slovenije, Območna enota Sežana","Partizanska 49, 6210 Sežana","OESezana@zgs.si"]
["Zavod za gozdove Slovenije, Območna enota Kranj","C. Staneta Žagarja 27b, 4000 Kranj","OEKranj@zgs.si"]
["Zavod za gozdove Slovenije, Območna enota Kočevje","Rožna ul. 39, 1330 Kočevje","OEKocevje@zgs.si"]
["Zavod za gozdove Slovenije, Območna enota Celje","Ljubljanska 13, 3000 Celje","OECelje@zgs.si"]
["Zavod za gozdove Slovenije, Območna enota Maribor","Tyrševa 15, 2000 Maribor","OEMaribor@zgs.si"]
[]
["Upravljavec javne ceste"]
[]
["Direkcija RS za infrastrukturo","Tržaška cesta 19, 1000 Ljubljana","gp.drsi@gov.si"]
["Družba za avtoceste RS ","Ulica XIV. divizije 4, 3000 Celje"]
[]
["Elektro"]
[]
["Elektro Celje","Vrunčeva 2a, 3000 Celje","info@elektro-celje.si"]
["Elektro Gorenjska","Ul. Mirka Vadnova 3a, 4000 Kranj","info@elektro-gorenjska.si"]
["Elektro Ljubljana","Slovenska cesta 58, 1516 Ljubljana","info@elektro-ljubljana.si"]
["Elektro Maribor","Vetrinjska ulica 2, 2000 Maribor","info@elektro-maribor.si"]
["Elektro Primorska","Erjavčeva ulica 22, 5000 Nova Gorica","info@elektro-primorska.si"]
["ELES","Hajdrihova 2, SI-1000 Ljubljana","info@eles.si"]
[]
["POLICIJSKA UPRAVA"]
[]
["Policijska uprava Celje ","Ljubljanska cesta 12 , 3000 Celje "]
["Policijska uprava Koper","Ukmarjev trg 6, 6000 Koper"]
["Policijska uprava Kranj","Bleiweisova cesta 3, 4000 Kranj "]
["Policijska uprava Ljubljana","Prešernova cesta 18, 1001 Ljubljana"]
["Policijska uprava Maribor","Maistrova ulica 2, 2001 Maribor"]
["Policijska uprava Murska Sobota","Ulica arhitekta Novaka 5. 9000 Murska Sobota"]
["Policijska uprava Nova Gorica ","Sedejeva ulica 11, 5000 Nova Gorica"]
["Policijska uprava Novo mesto","Ljubljanska cesta 30, 8000 Novo mesto "]
[]
["PODLAGE ZA PROJEKTIRANJE"]
[]
["TSG požarna varnost v stavbah"]
["zadnje stanje gradbene tehnike"]
[]
["TSG nizkonapetostne električne inštalacije"]
["zadnje stanje gradbene tehnike"]
[]
["TSG zaščita pred delovanjem strele"]
["zadnje stanje gradbene tehnike"]
[]
["TSG učinkovita raba energije"]
[]
["TSG zaščita pred hrupom v stavbah"]
["zadnje stanje gradbene tehnike"]
[]
["uporaba evrokodov"]
["uporaba drugih pravil"]
["brez uporabe pravil"]
[]
["MNENJA"]
[]
["OBČINA"]
[]
["VAROVANA OBMOČJA"]
["VARSTVO KULTURNE DEDIŠČINE - POSEG"]
["VARSTVO KULTURNE DEDIŠČINE - RAZISKAVA IN ODSTRANITEV"]
["VARSTVO NARAVE"]
["VARSTVO PODZEMNIH JAM"]
["VARSTVO VODA"]
["VARSTVO GOZDOV"]
["RIBIŠKI OKOLIŠ"]
["OKOLJE DIVJADI"]
["OBMOČJE MEJNEGA PREHODA"]
["CARINA"]
["LETALIŠČA"]
["OVIRE ZA ZRAČNI PROMET"]
["VARNOST PLOVBE"]
["OBJEKT V MEJAH RUDNIŠKEGA PROSTORA"]
["OBJEKT V VAROVALNEM PASU ŽIČNIŠKE NAPRAVE"]
[]
["VAROVALNI PASOVI INFRASTRUKTURE"]
["VODOVOD"]
["ELEKTRIKA"]
["PLIN"]
["TOPLOVOD"]
["FEKALNE VODE"]
["METEORNE VODE"]
["KOMUNIKACIJSKI VODI"]
["JAVNE CESTE"]
["ŽELEZNICE - GRADNJA"]
["ŽELEZNICE"]
[]
["PRIKLJUČEVANJE NA INFRASTRUKTURO"]
["VODOVOD"]
["ELEKTRIKA"]
["PLIN"]
["TOPLOVOD"]
["FEKALNE VODE"]
["METEORNE VODE"]
["DOSTOP"]
["KOMUNIKACIJE"]
[]
["DRUGA MNENJA"]
["JEDRSKA VARNOST "]
["SEVALNA VARNOST "]
["KMETIJSKO GOSPODARSTVO"]
["VETERINA"]
["OBRAMBA"]

{"sheet":"MNENJEDAJALCI","index":14,"n_rows":55,"n_cols":4,"rows_kept":55,"cut":false,"hidden":false,"merged":[[1,0,1,3]]}
["PRIPOMOČEK ZA DOLOČANJE POTREBNIH MNENJ"]
["Pripomoček je še v izdelavi."]
["SKLADNOST S PROSTORSKIMI AKTI"]
[]
["področje","naziv mnenja","pravna podlaga","mnenjedajalec"]
["OBČINA","SKLADNOST S PROSTORSKIMI AKTI"]
["VAROVANA OBMOČJA"]
[]
["področje","naziv mnenja","pravna podlaga","mnenjedajalec"]
["VARSTVO KULTURNE DEDIŠČINE","KULTUROVARSTVENO MNENJE","Zakon o varstvu kulturne dediščine\n28. do 30. člen\n31. člen","Pristojna organizacijska enota Zavoda za varstvo kulturne dediščine Slovenije (priloga X)"]
["VARSTVO KULTURNE DEDIŠČINE","KULTURNOVARSTVENO MNENJE ZA RAZISKAVO IN ODSTRANITEV DEDIŠČINE"]
["VARSTVO NARAVE","NARAVOVARSTVENO MNENJE","Zakon o ohranjanju narave 105. in 105. a člen","Pristojna organizacijska enota Zavoda RS za varstvo narave (priloga 1)"]
["VARSTVO VODA","VODNO MNENJE","Zakon o vodah 150. do 153.a člen (vodno soglasje)","Direkcija RS za vode (Priloga 1)"]
["VARSTVO GOZDOV","MNENJE ZA GRADNJO V GOZDNEM PROSTORU","Zakon o gozdovih \n21. in 24. člen","Pristojna organizacijska enota Zavoda za gozdove Slovenije (Priloga 1)"]
["RIBIŠKI OKOLIŠ","MNENJE ZA GRADNJO IN DRUGE POSEGE NA OBMOČJU RIBIŠKEGA OKOLIŠA","Zakon o sladkovodnem ribištvu \n19. člen\n","Zavod za ribištvo Slovenije\nSpodnje Gameljne 61a\n1000 Ljubljana"]
["OKOLJE DIVJADI","MNENJE ZA POSEGE V OKOLJE DIVJADI","Zakon o divjadi in lovstvu \n30. člen","Pristojna organizacijska enota Zavoda za gozdove Slovenije (Priloga 1)"]
["OBMOČJE MEJNEGA PREHODA","MNENJE ZA GRADNJO NA OBMOČJU MEJNEGA PREHODA","Zakon o nadzoru državne meje \n25. člen","Pristojna policijska uprava\nin\nFinančna uprava Republike Slovenije"]
["CARINA","MNENJE ZA GRADNJO OBJEKTOV V PROSTI CONI CARINSKEGA OBMOČJA UNIJE","Zakon o izvajanju carinske zakonodaje Evropske unije \n38. člen","Finančna uprava Republike Slovenije"]
[]
["VAROVALNI PASOVI INFRASTRUKTURE"]
[]
["področje","naziv mnenja","pravna podlaga","mnenjedajalec"]
["VODOVOD","MNENJE","Gradbeni zakon\n31. člen","Občina ali nosilec javnega pooblastila (gl. seznam občinskih soglasodajalcev)"]
["ELEKTRIKA","MNENJE Z VIDIKA VAROVANJA ENERGETSKIH SISTEMOV","Energetski zakon \n468. člen (varovalni pas sistemov elektrike)","Operaterji/distributerji\n(gl. seznam občinskih soglasodajalcev)"]
["PLIN","MNENJE Z VIDIKA VAROVANJA ENERGETSKIH SISTEMOV","Energetski zakon \n469. člen (varovalni in varnostni pas sistemov zemeljskega plina)","Operaterji/distributerji\n(gl. seznam občinskih soglasodajalcev)"]
["TOPLOVOD","MNENJE"]
["FEKALNE VODE","MNENJE","Gradbeni zakon\n31. člen","Občina ali nosilec javnega pooblastila (gl. seznam občinskih soglasodajalcev)"]
["METEORNE VODE","MNENJE","Gradbeni zakon\n31. člen","Občina ali nosilec javnega pooblastila (gl. seznam občinskih soglasodajalcev)"]
["TELEFONIJA","MNENJE",null,"Nosilec javnega pooblastila (gl. seznam občinskih soglasodajalcev)"]
["KABELSKA TV","MNENJE",null,"Nosilec javnega pooblastila (gl. seznam občinskih soglasodajalcev)"]
["JAVNE CESTE","SOGLASJE ZA GRADNJO Z VIDIKA VAROVANJA JAVNIH CEST","Zakon o cestah\n24. člen (gradnja žičniških naprav čez javne ceste),\n26. člen (omejitve izvajanja del zunaj varovalnega pasu ceste),\n50. člen (poseg v cestno telo obstoječe državne ceste, prestavitev)\n66. člen (gradnja v varovalnem pasu državne ceste)\n67. člen (gradnja gospodarske javne infrastrukture v območju državne ceste)\n68. člen (posegi v državno cesto zaradi vzdrževanja druge gospodarske javne infrastrukture)\n70. člen (priključki na državno cesto)\n97. člen (gradnja v varovalnem pasu občinske ceste)\n99. člen (priključki na občinsko cesto)","Upravljavec javne ceste\nDržavne ceste:\nDirekcija RS za infrastrukturo\nTržaška cesta 19\n1000 Ljubljana\navtoceste:\nDružba za avtoceste RS \nUlica XIV. divizije 4\n3000 Celje\nObčinske ceste:\nobčina ali občinski koncesionar\n(gl. seznam občinskih soglasodajalcev)"]
["ŽELEZNICE","SOGLASJE ZA GRADNJO Z VIDIKA VAROVANJA ŽELEZNIC","Zakon o varnosti v železniškem prometu\n45. člen (soglasje za gradnjo v progovnem pasu)\n46. člen (soglasje za gradnjo v varovalnem progovnem pasu)\n \n16. člen (soglasja pri gradnji infrastrukture)\n- 3. odstavek 16. člena: soglasje k projektni dokumentaciji za pridobitev gradbenega dovoljenja\n- 5. odstavek 16. člena: soglasje v primeru izdaje novega obratovalnega dovoljenja\n- 10. odstavek 16. člena: vzdrževalna dela v javno korist na drugi javni infrastrukturi v progovnem pasu ali pri križanju z železniško progo","upravljavec železniške infrastrukture:\nSlovenske železnice -Infrastruktura d.o.o.\nKolodvorska 11\n1000 Ljubljana\n\nvarnostni organ: \nJavna agencija za železniški promet Slovenije\nKopitarjeva 5\n2000 Maribor"]
["LETALIŠČA","SOGLASJE ZA GRADNJO Z VIDIKA VAROVANJA LETALIŠČ","Zakon o letalstvu  \n97. člen (soglasje za gradnjo v območju izključne rabe letališča) – razen če je investitor Republika Slovenija\n98. (soglasje za gradnjo v območju omejene in nadzorovane rabe)\n101. (soglasje za lokacijo, gradnjo, razširitev in opustitev vojaškega letališča)\n114. (soglasje za postavitev in delovanje naprav ali sistemov v coni letališča, ki bi utegnile povzročati elektromagnetne, svetlobne ali druge motnje na napravah za vodenje zrakoplovov)\n119. člen (soglasje glede lokacije in za graditev ali postavitev infrastrukturnih objektov, naprav in sistemov navigacijskih služb zračnega prometa ter drugih objektov in naprav na vplivnih območjih teh sredstev) – razen, če je investitor Republika Slovenija\n112. (soglasje za postavitev ali povečanje ovir v coni letališča)","Javna agencija za civilno letalstvo Slovenije\nKotnikova ulica 19A\n1000 Ljubljana\n \nMinistrstvo za obrambo (če gre za vojaško letališče)\nVojkova cesta 55\n1000 Ljubljana"]
["VARNOST PLOVBE","SOGLASJE ZA GRADNJO ALI OBNOVO OBJEKTOV PRISTANIŠKE INFRASTRUKTURE ALI OBJEKTOV, KI LAHKO VPLIVAJO NA VARNOST PLOVBE NA OBALI ALI V MORJU","Pomorski zakonik \n64. člen (soglasje za gradnjo ali obnovo objektov pristaniške infrastrukture ali objektov, ki lahko vplivajo na varnost plovbe na obali ali v morju)\n \nZakon o plovbi po celinskih vodah \n10. člen (soglasje za gradnjo ali obnovo objektov, ki lahko vplivajo na varnost plovbe, na obali ali v vodi)","Uprava RS za pomorstvo\nUkmarjev trg 2\n6000 Koper\n\n"]
["OBJEKT V MEJAH RUDNIŠKEGA PROSTORA","SOGLASJE ZA GRADNJO V MEJAH RUDNIŠKEGA PROSTORA","Zakon o rudarstvu \n65. člen (soglasje za gradnjo v območju rudarskega prostora v javno korist)","Ministrstvo za infrastrukturo\nLangusova ulica 4\n1535 Ljubljana"]
["OBJEKT V VAROVALNEM PASU ŽIČNIŠKE NAPRAVE","SOGLASJE ZA GRADNJO Z VIDIKA VAROVANJA ŽIČNIC","Zakon o žičniških napravah za prevoz oseb \ntretji odstavek 61. člena\n","Upravljavec žičniške naprave"]
["PRIKLJUČEVANJE NA INFRASTRUKTURO"]
[]
[null,"naziv mnenja","pravna podlaga","mnenjedajalec"]
["VODOVOD","SOGLASJE ZA PRIKLJUČITEV NA VODOVOD","Gradbeni zakon\n31. člen","Občina ali nosilec javnega pooblastila (gl. seznam občinskih soglasodajalcev)"]
["ELEKTRIKA","SOGLASJE ZA PRIKLJUČITEV OBJEKTOV NA ELEKTROENERGETSKI SISTEM","Energetski zakon \n147. člen (soglasje za priključitev na prenosni ali distribucijski elektroenergetski sistem ali njeno spremembo)","Operaterji distribucijskega omrežja\nElektro Celje d.d., Elektro Gorenjska d.d., Elektro Ljubljana d.d., Elektro Maribor d.d. in Elektro Primorska d.d. \nSistemski operater prenosnega omrežja – ELES d.o.o."]
["PLIN","SOGLASJE ZA PRIKLJUČITEV OBJEKTOV NA SISTEM ZEMELJSKEGA PLINA","Energetski zakon \n270. člen (soglasje za priključitev na prenosni ali distribucijski sistem zemeljskega plina ali njegovo spremembo)","Prenosni sistem:\nSistemski operater prenosnega omrežja - Plinovodi d.o.o.\nCesta Ljubljanske brigade 11b, p.p. 3720\n1001 Ljubljana"]
["TOPLOVOD","SOGLASJE ZA PRIKLJUČITEV OBJEKTOV NA SISTEM TOPLOTE IN DRUGIH ENERGETSKIH PLINOV IZ ZAKLJUČENIH DISTRIBUCIJSKIH SISTEMOV","Energetski zakon \n306. člen (priključitev na sistem toplote in drugih energetskih plinov iz zaključenih distribucijskih sistemov ali spremembo parametrov priključitve)\n \n310. člen (soglasje lokalne skupnosti za priključitev na lastniški distribucijski sistem)","Lokalna skupnost oziroma distributerji, ki izvaja gospodarsko javno službo \n(gl. seznam občinskih soglasodajalcev)"]
["FEKALNE VODE","MNENJE","Gradbeni zakon\n31. člen","Občina ali nosilec javnega pooblastila (gl. seznam občinskih soglasodajalcev)"]
["METEORNE VODE","MNENJE","Gradbeni zakon\n31. člen","Občina ali nosilec javnega pooblastila (gl. seznam občinskih soglasodajalcev)"]
["DOSTOP","MNENJE"]
["DRUGA MNENJA"]
[]
["področje","naziv mnenja","pravna podlaga","soglasodajalec"]
["JEDRSKA VARNOST ","MNENJE H GRADNJAM, KI VPLIVAJO NA JEDRSKO VARNOST","Zakona o varstvu pred ionizirajočimi sevanji in jedrski varnosti \n97. člen ","Uprava RS za jedrsko varnost \nLitostrojska cesta 54\n1000 Ljubljana"]
["SEVALNA VARNOST ","MNENJE H GRADNJAM, KI VPLIVAJO NA SEVALNO VARNOST","Zakona o varstvu pred ionizirajočimi sevanji in jedrski varnosti \n97. člen ","Uprava RS za jedrsko varnost \nLitostrojska cesta 54\n1000 Ljubljana"]
["KMETIJSKO GOSPODARSTVO","SOGLASJE ZA GRADNJO ALI REKONSTRUKCIJO VELIKEGA OBRATA KMETIJSKEGA GOSPODARSTVA","Zakon o živinoreji \n17. člen","Ministrstvo za kmetijstvo\nDunajska 22 \n1000 Ljubljana"]
["VETERINA","SOGLASJE ZA GRADNJO OBJEKTA POD VETERINARSKIM NADZOROM","Zakon o veterinarskih merilih skladnosti \n78. člen, 25. točka","Uprava RS za varno hrano, veterinarstvo in varstvo rastlin\nDunajska 22\n1000 Ljubljana"]
["OBRAMBA","SOGLASJE ZA GRADNJO NEKATERIH OBJEKTOV Z VIDIKA UPOŠTEVANJA OBRAMBNIH POTREB","Zakon o obrambi \n28. in 29. člen","Ministrstvo za obrambo\nVojkova cesta 55\n1000 Ljubljana "]
["METEOROLOŠKA DEJAVNOST","IZDAJANJE PROJEKTNIH POGOJEV Z VIDIKA VARSTVA IZVAJANJA METEOROLOŠKE DEJAVNOSTI","Zakon o meteorološki dejavnosti\n32. člen (projektni pogoji za gradnjo nekaterih objektov – op: določenih v 20. členu zakona z vidika upoštevanja vremena in podnebja ter postavitev meteorološke postaje)\n20. člen (obvezno zagotavljanje meteoroloških storitev)\n1. avtocesta, hitra cesta, glavna in regionalna cesta I. reda po predpisih o cestah,\n2. pristanišče po predpisih o pomorstvu,\n3. visoka pregrada po predpisih o graditvi objektov in\n4. objekt ali naprava, za katero je treba po predpisih o varstvu pred naravnimi in drugimi nesrečami ali po predpisih o varstvu pred ionizirajočimi sevanji in jedrski varnosti izvajati meteorološke meritve, ali za katero je treba po predpisih o varstvu okolja v okviru obratovalnega monitoringa izvajati meritve meteoroloških veličin.\n","Izvajalec državne meteorološke službe - ARSO"]